Workbook

Sheet Power
A1: RSA - Electricity Production | B1: =IF($E$16,"\C","") -> \C | P1: =IF(E17,"\C","") -> \C | AC1: =IF($E$18,"\C","") -> \C | AP1: =IF($E$19,"\C","") -> \C
A15: Scenario to refresh | E15: refresh?
A16: 1 | B16: CGERUN10 | C16: Best | E16: 1
A17: 2 | B17: CGERUN11 | C17: Best Forced | E17: 1
A18: 3 | B18: CGERUN20 | C18: Worst | E18: 1
A19: 4 | B19: CGERUN21 | C19: Worst Forced | E19: 1 | I19: =I43-H43 -> 4.202199936
AO20: =AN43/1.6 -> 0 | BF20: 1000
A23: CO2 emissions | B23: \T | F23: 0 | G23: =F23+1 -> 1 | H23: =G23+1 -> 2 | I23: 3 | J23: 4 | K23: 5 | L23: 6 | M23: 7 | P23: \T | T23: 0 | U23: =T23+1 -> 1 | V23: =U23+1 -> 2 | W23: 3 | X23: 4 | Y23: 5 | Z23: 6 | AA23: 7 | AC23: \T | AG23: 0 | AH23: =AG23+1 -> 1 | AI23: 2 | AJ23: 3 | AK23: 4 | AL23: 5 | AM23: 6 | AN23: 7 | AP23: \T | AT23: 0 | AU23: =AT23+1 -> 1 | AV23: 2 | AW23: 3 | AX23: 4 | AY23: 5 | AZ23: 6 | BA23: 7 | BF23: Peak Demand
B24: =$B$16 -> CGERUN10 | F24: =SUMIF($N$3:$N$17,B24,$O$3:$O$17) -> 0 | G24: =F24 -> 0 | H24: =G24 -> 0 | I24: 0 | J24: 0 | K24: 0 | L24: 0 | M24: 0 | P24: =$B$17 -> CGERUN11 | T24: =SUMIF($N$3:$N$17,P24,$O$3:$O$17) -> 0 | U24: =T24 -> 0 | V24: =U24 -> 0 | W24: =T24 -> 0 | X24: =W24 -> 0 | Y24: =V24 -> 0 | Z24: =Y24 -> 0 | AA24: =Z24 -> 0 | AC24: =$B$18 -> CGERUN20 | AG24: =SUMIF($N$3:$N$17,AC24,$O$3:$O$17) -> 0 | AH24: =AG24 -> 0 | AI24: =AH24 -> 0 | AJ24: =AG24 -> 0 | AK24: =AJ24 -> 0 | AL24: =AI24 -> 0 | AM24: =AL24 -> 0 | AN24: =AM24 -> 0 | AP24: =$B$19 -> CGERUN21 | AT24: =SUMIF($N$3:$N$17,AP24,$O$3:$O$17) -> 0 | AU24: =AT24 -> 0 | AV24: 0 | AW24: 0 | AX24: 0 | AY24: 0 | AZ24: 0 | BA24: =AX24 -> 0 | BS24: Difference Charts
B25: Flow:PWRCO2S | E25: =VLOOKUP(B24,$B$16:$C$19,2,FALSE) -> Best | P25: =$B25 -> Flow:PWRCO2S | S25: =VLOOKUP(P24,$B$16:$C$19,2,FALSE) -> Best Forced | AC25: =$B25 -> Flow:PWRCO2S | AF25: =VLOOKUP(AC24,$B$16:$C$19,2,FALSE) -> Worst | AP25: =$B25 -> Flow:PWRCO2S | AS25: =VLOOKUP(AP24,$B$16:$C$19,2,FALSE) -> Worst Forced | BF25: 0 | BG25: =BF25+1 -> 1 | BH25: 2 | BI25: 3 | BJ25: 4 | BK25: 5 | BL25: 6 | BM25: 7 | BN25: 8
E26: 2010 | F26: =E26+5 -> 2015 | G26: 2020 | H26: 2025 | I26: 2030 | J26: 2035 | K26: 2040 | L26: 2045 | M26: 2050 | S26: 2010 | T26: =S26+5 -> 2015 | U26: 2020 | V26: 2025 | W26: 2030 | X26: 2035 | Y26: 2040 | Z26: 2045 | AA26: 2050 | AF26: 2010 | AG26: =AF26+5 -> 2015 | AH26: 2020 | AI26: 2025 | AJ26: 2030 | AK26: 2035 | AL26: 2040 | AM26: 2045 | AN26: 2050 | AS26: 2010 | AT26: =AS26+5 -> 2015 | AU26: 2020 | AV26: 2025 | AW26: 2030 | AX26: 2035 | AY26: 2040 | AZ26: 2045 | BA26: 2050 | BF26: =AS26 -> 2010 | BG26: 2015 | BH26: 2020 | BI26: 2025 | BJ26: 2030 | BK26: 2035 | BL26: 2040 | BM26: 2045 | BN26: =BA26 -> 2050
B27: X* | D27: CO2 | E27: 241985.1273 | F27: 226631.8732 | G27: 257572.1745 | H27: 281860.5592 | I27: 231611.3136 | J27: 192893.1102 | K27: 128481.4279 | L27: 130156.9399 | M27: 156249.1251 | P27: X* | R27: CO2 | S27: 241985.1273 | T27: 226657.5455 | U27: 257368.8942 | V27: 276881.1221 | W27: 226687.5684 | X27: 192598.5809 | Y27: 128313.2262 | Z27: 128414.8657 | AA27: 147634.3322 | AC27: X* | AE27: CO2 | AF27: 241985.1273 | AG27: 227127.8958 | AH27: 246697.5517 | AI27: 263469.704 | AJ27: 227789.7288 | AK27: 189197.9284 | AL27: 129001.1803 | AM27: 121330.8579 | AN27: 97930.46851 | AP27: X* | AR27: CO2 | AS27: 241985.1273 | AT27: 227161.8637 | AU27: 246605.9872 | AV27: 261740.4384 | AW27: 227631.142 | AX27: 188940.2326 | AY27: 125286.1278 | AZ27: 110935.2153 | BA27: 83705.20288 | BD27: =MATCH(BE27,E$25:BA$25,) -> 1 | BE27: =C16 -> Best | BF27: =OFFSET($D$53,0,$BD27+BF$25) -> 38.14682578 | BG27: 39.35504878 | BH27: 44.25088523 | BI27: 49.76253926 | BJ27: 56.59739706 | BK27: 65.77512997 | BL27: 77.15609071 | BM27: 90.50634823 | BN27: 106.1664943
BD28: =MATCH(BE28,E$25:BA$25,) -> 15 | BE28: =C17 -> Best Forced | BF28: =OFFSET($D$53,0,$BD28+BF$25) -> 38.14682578 | BG28: =OFFSET($D$53,0,$BD28+BG$25) -> 39.35796239 | BH28: 44.22310265 | BI28: 49.83152931 | BJ28: 56.71831621 | BK28: 65.84880404 | BL28: 77.28470277 | BM28: 90.70676075 | BN28: 106.4597298
BD29: =MATCH(BE29,E$25:BA$25,) -> 28 | BE29: =C18 -> Worst | BF29: =OFFSET($D$53,0,$BD29+BF$25) -> 38.14682578 | BG29: 39.41196755 | BH29: 43.67825194 | BI29: 47.67179936 | BJ29: 51.12310007 | BK29: 55.75744121 | BL29: 60.62986551 | BM29: 65.92809497 | BN29: 71.68938739
BD30: =MATCH(BE30,E$25:BA$25,) -> 41 | BE30: =C19 -> Worst Forced | BF30: =OFFSET($D$53,0,$BD30+BF$25) -> 38.14682578 | BG30: 39.41581798 | BH30: 43.66576386 | BI30: 47.35837494 | BJ30: 50.20925976 | BK30: 54.01383875 | BL30: 58.28043673 | BM30: 62.88407769 | BN30: 67.85140499
B32: \T | P32: \T | AC32: \T | AP32: \T | BS32: =A35 -> Capacity (GW) | DG32: ENERGY SECURITY
B33: =$B$16 -> CGERUN10 | P33: =$P$24 -> CGERUN11 | AC33: =$AC$24 -> CGERUN20 | AP33: =$AP$24 -> CGERUN21
B34: Capacity | E34: =VLOOKUP(B33,$B$16:$C$19,2,FALSE) -> Best | P34: Capacity | S34: =VLOOKUP(P33,$B$16:$C$19,2,FALSE) -> Best Forced | AC34: Capacity | AF34: =VLOOKUP(AC33,$B$16:$C$19,2,FALSE) -> Worst | AP34: Capacity | AS34: =VLOOKUP(AP33,$B$16:$C$19,2,FALSE) -> Worst Forced | BC34: Capacity Credit | BT34: =S34&"-"&$E34 -> Best Forced-Best | CE34: =AF34&"-"&$E34 -> Worst-Best | CP34: =AS34&"-"&$E34 -> Worst Forced-Best | DG34: Shannon-Wiener Diversity Index | EC34: 2040 values
A35: Capacity (GW) | E35: =E$26 -> 2010 | F35: =F$26 -> 2015 | G35: 2020 | H35: 2025 | I35: 2030 | J35: 2035 | K35: 2040 | L35: 2045 | M35: 2050 | S35: =S$26 -> 2010 | T35: =T$26 -> 2015 | U35: 2020 | V35: 2025 | W35: 2030 | X35: 2035 | Y35: 2040 | Z35: 2045 | AA35: 2050 | AF35: =AF$26 -> 2010 | AG35: =AG$26 -> 2015 | AH35: 2020 | AI35: 2025 | AJ35: 2030 | AK35: 2035 | AL35: 2040 | AM35: 2045 | AN35: 2050 | AS35: =AS$26 -> 2010 | AT35: =AT$26 -> 2015 | AU35: 2020 | AV35: 2025 | AW35: 2030 | AX35: 2035 | AY35: 2040 | AZ35: 2045 | BA35: 2050 | BT35: =E35 -> 2010 | BU35: =F35 -> 2015 | BV35: =G35 -> 2020 | BW35: =H35 -> 2025 | BX35: =I35 -> 2030 | BY35: =L35 -> 2045 | BZ35: =M35 -> 2050 | CE35: =S35 -> 2010 | CF35: =T35 -> 2015 | CG35: =U35 -> 2020 | CH35: =V35 -> 2025 | CI35: =Y35 -> 2040 | CJ35: =Z35 -> 2045 | CK35: =AA35 -> 2050 | CP35: =AF35 -> 2010 | CQ35: =AG35 -> 2015 | CR35: =AH35 -> 2020 | CS35: =AI35 -> 2025 | CT35: =AL35 -> 2040 | CU35: =AM35 -> 2045 | CV35: =AN35 -> 2050 | DG35: =BV82 -> Future 1 Free | DM35: =BX82 -> Future 2 Free
A36: Existing Coal | B36: ETCL*E,ETCL*E-A | D36: =$A36 -> Existing Coal | E36: 35.99999988 | F36: 37.02669981 | G36: 36.53999972 | H36: 32.05000049 | I36: 22.66000038 | J36: 17.28000036 | K36: 8.360000044 | L36: 3.840000033 | M36: 0 | P36: =$B36 -> ETCL*E,ETCL*E-A | R36: =$A36 -> Existing Coal | S36: 35.99999988 | T36: 37.02669981 | U36: 36.53999972 | V36: 32.05000049 | W36: 22.66000038 | X36: 17.28000036 | Y36: 8.360000044 | Z36: 3.840000033 | AA36: 0 | AC36: =$B36 -> ETCL*E,ETCL*E-A | AE36: =$A36 -> Existing Coal | AF36: 35.99999988 | AG36: 37.02669981 | AH36: 36.53999972 | AI36: 32.05000049 | AJ36: 22.66000038 | AK36: 17.28000036 | AL36: 8.360000044 | AM36: 3.840000033 | AN36: 0 | AP36: =$B36 -> ETCL*E,ETCL*E-A | AR36: =$A36 -> Existing Coal | AS36: 35.99999988 | AT36: 37.02669981 | AU36: 36.53999972 | AV36: 32.05000049 | AW36: 22.66000038 | AX36: 17.28000036 | AY36: 8.360000044 | AZ36: 3.840000033 | BA36: 0 | BC36: 1 | BS36: =D36 -> Existing Coal | BT36: =S36-E36 -> 0 | BU36: =T36-F36 -> 0 | BV36: =U36-G36 -> 0 | BW36: =V36-H36 -> 0 | BX36: =Y36-I36 -> -14.30000034 | BY36: =Z36-L36 -> 0 | BZ36: 0 | CD36: =R36 -> Existing Coal | CE36: =AF36-E36 -> 0 | CF36: =AG36-F36 -> 0 | CG36: =AH36-G36 -> 0 | CH36: =AI36-H36 -> 0 | CI36: =AL36-I36 -> -14.30000034 | CJ36: =AM36-L36 -> 0 | CK36: 0 | CO36: =AE36 -> Existing Coal | CP36: =AS36-E36 -> 0 | CQ36: =AT36-F36 -> 0 | CR36: =AU36-G36 -> 0 | CS36: =AV36-H36 -> 0 | CT36: =AW36-I36 -> 0 | CU36: =AX36-L36 -> 13.44000033 | CV36: =BA36-M36 -> 0 | DG36: =2020 -> 2020 | DH36: 2025 | DI36: 2030 | DJ36: 2035 | DK36: 2040 | DM36: 2020 | DN36: 2025 | DO36: 2030 | DP36: 2035 | DQ36: 2040 | EC36: BEST | ED36: Electricity price economy | EE36: Welfare benefit | EF36: Total employment | EG36: Diversity of production | EH36: CO2 efficiency | EI36: Import independence
A37: New Coal | B37: ETCL*N,ETCL*N-A | D37: =$A37 -> New Coal | E37: 0 | F37: 0.7220000029 | G37: 7.21999979 | H37: 8.663999557 | I37: 8.663999557 | J37: 8.663999557 | K37: 8.663999557 | L37: 7.65320015 | M37: 8.960200354 | P37: =$B37 -> ETCL*N,ETCL*N-A | R37: =$A37 -> New Coal | S37: 0 | T37: 0.7220000029 | U37: 7.21999979 | V37: 8.663999557 | W37: 8.663999557 | X37: 8.663999557 | Y37: 8.663999557 | Z37: 7.65320015 | AA37: 8.14850001 | AC37: =$B37 -> ETCL*N,ETCL*N-A | AE37: =$A37 -> New Coal | AF37: 0 | AG37: 0.7220000029 | AH37: 7.21999979 | AI37: 8.663999557 | AJ37: 8.663999557 | AK37: 8.663999557 | AL37: 8.663999557 | AM37: 7.65320015 | AN37: 1.616099998 | AP37: =$B37 -> ETCL*N,ETCL*N-A | AR37: =$A37 -> New Coal | AS37: 0 | AT37: 0.7220000029 | AU37: 7.21999979 | AV37: 8.663999557 | AW37: 8.663999557 | AX37: 8.663999557 | AY37: 8.663999557 | AZ37: 7.65320015 | BA37: 1.616099998 | BC37: 1 | BS37: =D37 -> New Coal | BT37: =S37-E37 -> 0 | BU37: =T37-F37 -> 0 | BV37: 0 | BW37: 0 | BX37: =Y37-I37 -> 0 | BY37: 0 | BZ37: -0.8117003441 | CD37: =R37 -> New Coal | CE37: =AF37-E37 -> 0 | CF37: =AG37-F37 -> 0 | CG37: 0 | CH37: 0 | CI37: =AL37-I37 -> 0 | CJ37: 0 | CK37: -7.344100356 | CO37: =AE37 -> New Coal | CP37: =AS37-E37 -> 0 | CQ37: =AT37-F37 -> 0 | CR37: 0 | CS37: 0 | CT37: 0 | CU37: =AX37-L37 -> 1.010799408 | CV37: =BA37-M37 -> -7.344100356 | DG37: =IF(G168=0,0,(G168/G$187)*LN(G168/G$187)) -> -0.2685021868 | DH37: =IF(H168=0,0,(H168/H$187)*LN(H168/H$187)) -> -0.2881401245 | DI37: =IF(I168=0,0,(I168/I$187)*LN(I168/I$187)) -> -0.3635537307 | DJ37: =IF(J168=0,0,(J168/J$187)*LN(J168/J$187)) -> -0.3563190277 | DK37: =IF(K168=0,0,(K168/K$187)*LN(K168/K$187)) -> -0.2467775463 | DM37: =IF(AH168=0,0,(AH168/AH$187)*LN(AH168/AH$187)) -> -0.2838933341 | DN37: =IF(AI168=0,0,(AI168/AI$187)*LN(AI168/AI$187)) -> -0.3010221917 | DO37: =IF(AJ168=0,0,(AJ168/AJ$187)*LN(AJ168/AJ$187)) -> -0.3546183113 | DP37: =IF(AK168=0,0,(AK168/AK$187)*LN(AK168/AK$187)) -> -0.3658042529 | DQ37: =IF(AL168=0,0,(AL168/AL$187)*LN(AL168/AL$187)) -> -0.2815500863 | EC37: Optimised | ED37: 84.38 | EE37: =15378.02 -> 15378.02 | EF37: =8470 -> 8470 | EG37: =DK54/DK55*100 -> 32.34806276 | EH37: =K27 -> 128481.4279 | EI37: =SUM(K168:K181)/K187*100 -> 93.22188784
A38: OCGT diesel | B38: ETO*GT* | D38: OCGT diesel | E38: 2.460000038 | F38: 2.795000046 | G38: 3.465000033 | H38: 3.405000091 | I38: 3.1049999 | J38: 3.1049999 | K38: 1.004999995 | L38: 0.5360000134 | M38: 0 | P38: ETO*GT* | R38: OCGT diesel | S38: 2.460000038 | T38: 2.795000046 | U38: 3.465000033 | V38: 3.405000091 | W38: 3.1049999 | X38: 3.1049999 | Y38: 1.004999995 | Z38: 0.5360000134 | AA38: 0 | AC38: ETO*GT* | AE38: OCGT diesel | AF38: 2.460000038 | AG38: 2.795000046 | AH38: 3.465000033 | AI38: 3.405000091 | AJ38: 3.1049999 | AK38: 3.1049999 | AL38: 1.004999995 | AM38: 0.5360000134 | AN38: 0 | AP38: ETO*GT* | AR38: OCGT diesel | AS38: 2.460000038 | AT38: 2.795000046 | AU38: 3.465000033 | AV38: 3.405000091 | AW38: 3.1049999 | AX38: 3.1049999 | AY38: 1.004999995 | AZ38: 0.5360000134 | BA38: 0 | BC38: 1 | BS38: OCGT diesel | BT38: 0 | BU38: 0 | BV38: 0 | BW38: 0 | BX38: =Y38-I38 -> -2.099999905 | BY38: 0 | BZ38: 0 | CD38: OCGT diesel | CE38: 0 | CF38: 0 | CG38: 0 | CH38: 0 | CI38: =AL38-I38 -> -2.099999905 | CJ38: 0 | CK38: 0 | CO38: OCGT diesel | CP38: 0 | CQ38: 0 | CR38: 0 | CS38: 0 | CT38: 0 | CU38: =AX38-L38 -> 2.568999887 | CV38: =BA38-M38 -> 0 | DG38: -0.3073375097 | DH38: -0.3162641714 | DI38: -0.3018564897 | DJ38: -0.2819450186 | DK38: -0.2604791053 | DM38: -0.309223305 | DN38: -0.321667456 | DO38: -0.3148573811 | DP38: -0.3037989672 | DQ38: -0.292810546 | EC38: Forced | ED38: 85.25 | EE38: =15367.21 -> 15367.21 | EF38: =8441 -> 8441 | EG38: =DK76/DK77*100 -> 31.66693534 | EH38: =Y27 -> 128313.2262 | EI38: =SUM(Y168:Y181)/Y187*100 -> 93.54779456
A39: Inland Gas Plants | B39: ETGAS* | D39: Inland Gas Plants | E39: 0.2599999905 | F39: 0.3899999857 | G39: 0.3899999857 | H39: 0.3899999857 | I39: 0.3899999857 | J39: 0.3899999857 | K39: 0.3899999857 | L39: 0.3659999967 | M39: 0.3899999857 | P39: ETGAS* | R39: Inland Gas Plants | S39: 0.2599999905 | T39: 0.3899999857 | U39: 0.3899999857 | V39: 0.3899999857 | W39: 0.3899999857 | X39: 0.3899999857 | Y39: 0.3899999857 | Z39: 0.3659999967 | AA39: 0.3899999857 | AC39: ETGAS* | AE39: Inland Gas Plants | AF39: 0.2599999905 | AG39: 0.3899999857 | AH39: 0.3899999857 | AI39: 0.3899999857 | AJ39: 0.3899999857 | AK39: 0.3899999857 | AL39: 0.337500006 | AM39: 0.337500006 | AN39: 0.337500006 | AP39: ETGAS* | AR39: Inland Gas Plants | AS39: 0.2599999905 | AT39: 0.3899999857 | AU39: 0.3899999857 | AV39: 0.3899999857 | AW39: 0.3899999857 | AX39: 0.3899999857 | AY39: 0.337500006 | AZ39: 0.337500006 | BA39: 0.337500006 | BC39: 1 | BS39: Inland Gas Plants | BT39: 0 | BU39: =T39-F39 -> 0 | BV39: =U39-G39 -> 0 | BW39: =V39-H39 -> 0 | BX39: =Y39-I39 -> 0 | BY39: =Z39-L39 -> 0 | BZ39: =AA39-M39 -> 0 | CD39: Inland Gas Plants | CE39: 0 | CF39: =AG39-F39 -> 0 | CG39: =AH39-G39 -> 0 | CH39: =AI39-H39 -> 0 | CI39: =AL39-I39 -> -0.05249997973 | CJ39: =AM39-L39 -> -0.0284999907 | CK39: =AN39-M39 -> -0.05249997973 | CO39: Inland Gas Plants | CP39: 0 | CQ39: =AT39-F39 -> 0 | CR39: =AU39-G39 -> 0 | CS39: =AV39-H39 -> 0 | CT39: =AW39-I39 -> 0 | CU39: =AX39-L39 -> 0.02399998903 | CV39: =BA39-M39 -> -0.05249997973 | DG39: -0.02661852988 | DH39: -0.02395462166 | DI39: -0.02026112382 | DJ39: -0.0179122167 | DK39: -0.00604859879 | DM39: -0.03587530134 | DN39: -0.02482301263 | DO39: -0.0220121623 | DP39: -0.02050975735 | DQ39: -0.007426542077 | EC39: Processed
A40: Gas from N Moz | B40: ETGRM* | D40: Gas from N Moz | P40: ETGRM* | R40: Gas from N Moz | AC40: ETGRM* | AE40: Gas from N Moz | AP40: ETGRM* | AR40: Gas from N Moz | BC40: 1 | BS40: Gas from N Moz | BT40: 0 | BU40: 0 | BV40: 0 | BW40: 0 | BX40: 0 | BY40: 0 | BZ40: 0 | CD40: Gas from N Moz | CE40: 0 | CF40: 0 | CG40: 0 | CH40: 0 | CI40: 0 | CJ40: 0 | CK40: 0 | CO40: Gas from N Moz | CP40: 0 | CQ40: 0 | CR40: 0 | CS40: 0 | CT40: 0 | CU40: 0 | CV40: 0 | DG40: -0.03237316874 | DH40: -0.03191876555 | DI40: -0.03453522225 | DJ40: -0.03063728987 | DK40: -0.0269500837 | DM40: -0.03088693963 | DN40: -0.03909706092 | DO40: -0.03743033312 | DP40: -0.03494735795 | DQ40: -0.03269561798 | EC40: Optimised | ED40: =IF(ED37>ED38,ED38/ED37,1) -> 1 | EE40: =IF(EE37>EE38,1,EE37/EE38) -> 1 | EF40: =IF(EF37>EF38,1,EF37/EF38) -> 1 | EG40: =IF(EG37>EG38,1,EG37/EG38) -> 1 | EH40: =IF(EH37>EH38,EH38/EH37,1) -> 0.9986908485 | EI40: =IF(EI37>EI38,1,EI37/EI38) -> 0.9965161474
A41: Gas Domestic Shale | B41: ETGIH* | D41: Gas Domestic Shale | P41: ETGIH* | R41: Gas Domestic Shale | AC41: ETGIH* | AE41: Gas Domestic Shale | AF41: 0 | AG41: 0 | AH41: 0 | AI41: 0 | AJ41: 0.5411999822 | AK41: 1.070700049 | AL41: 6.809000015 | AM41: 20.18919945 | AN41: 35.86839962 | AP41: ETGIH* | AR41: Gas Domestic Shale | AS41: 0 | AT41: 0 | AU41: 0 | AV41: 0 | AW41: 0 | AX41: 0.1913000047 | AY41: 3.709599972 | AZ41: 16.09809971 | BA41: 30.75069904 | BC41: 1 | BS41: Gas Domestic Shale | BT41: 0 | BU41: 0 | BV41: 0 | BW41: 0 | BX41: 0 | BY41: 0 | BZ41: 0 | CD41: Gas Domestic Shale | CE41: 0 | CF41: 0 | CG41: 0 | CH41: 0 | CI41: 6.809000015 | CJ41: 20.18919945 | CK41: 35.86839962 | CO41: Gas Domestic Shale | CP41: 0 | CQ41: 0 | CR41: 0 | CS41: 0 | CT41: 0 | CU41: 0.1913000047 | CV41: 30.75069904 | DG41: 0 | DH41: 0 | DI41: 0 | DJ41: 0 | DK41: 0 | DM41: 0 | DN41: 0 | DO41: 0 | DP41: 0 | DQ41: 0 | EC41: Forced | ED41: =IF(ED38>ED37,ED37/ED38,1) -> 0.9897947214 | EE41: =IF(EE38>EE37,1,EE38/EE37) -> 0.9992970486 | EF41: =IF(EF38>EF37,1,EF38/EF37) -> 0.9965761511 | EG41: =IF(EG38>EG37,1,EG38/EG37) -> 0.9789437956 | EH41: =IF(EH38>EH37,EH37/EH38,1) -> 1 | EI41: =IF(EI38>EI37,1,EI38/EI37) -> 1
A42: Coastal Gas | B42: ETGIC* | D42: Coastal Gas | E42: 0 | F42: 0 | G42: 0.4828000069 | H42: 0.8325999975 | I42: 8.656000137 | J42: 11.16629982 | K42: 15.85179996 | L42: 34.90369987 | M42: 51.32299995 | P42: ETGIC* | R42: Coastal Gas | S42: 0 | T42: 0 | U42: 0.4828000069 | V42: 0.4828000069 | W42: 5.73059988 | X42: 10.36569977 | Y42: 15.39459991 | Z42: 34.37719917 | AA42: 51.32299995 | AC42: ETGIC* | AE42: Coastal Gas | AP42: ETGIC* | AR42: Coastal Gas | BC42: 1 | BS42: Coastal Gas | BT42: 0 | BU42: 0 | BV42: 0 | BW42: -0.3497999907 | BX42: 6.738599777 | BY42: -0.5265007019 | BZ42: 0 | CD42: Coastal Gas | CE42: 0 | CF42: 0 | CG42: -0.4828000069 | CH42: -0.8325999975 | CI42: -8.656000137 | CJ42: -34.90369987 | CK42: -51.32299995 | CO42: Coastal Gas | CP42: 0 | CQ42: 0 | CR42: -0.4828000069 | CS42: -0.8325999975 | CT42: -8.656000137 | CU42: -34.90369987 | CV42: -51.32299995 | DG42: 0 | DH42: 0 | DI42: 0 | DJ42: 0 | DK42: 0 | DM42: 0 | DN42: 0 | DO42: -0.005049470001 | DP42: -0.008413842977 | DQ42: -0.09089044352
A43: Nuclear | B43: ETNUC* | D43: Nuclear | E43: 1.860000014 | F43: 1.860000014 | G43: 1.860000014 | H43: 1.860000014 | I43: 6.06219995 | J43: 8.850600123 | K43: 17.76530015 | L43: 19.1053009 | M43: 22.30529976 | P43: ETNUC* | R43: Nuclear | S43: 1.860000014 | T43: 1.860000014 | U43: 1.860000014 | V43: 3.460000038 | W43: 11.4600004 | X43: 12.34709966 | Y43: 20.57319963 | Z43: 21.91320038 | AA43: 25.11319923 | AC43: ETNUC* | AE43: Nuclear | AF43: 1.860000014 | AG43: 1.860000014 | AH43: 1.860000014 | AI43: 1.860000014 | AJ43: 1.860000014 | AK43: 1.860000014 | AL43: 1.860000014 | AM43: 0 | AN43: 0 | AP43: ETNUC* | AR43: Nuclear | AS43: 1.860000014 | AT43: 1.860000014 | AU43: 1.860000014 | AV43: 1.860000014 | AW43: 1.860000014 | AX43: 9.860000014 | AY43: 11.4600004 | AZ43: 9.600000381 | BA43: 9.600000381 | BC43: 1 | BS43: Nuclear | BT43: 0 | BU43: 0 | BV43: 0 | BW43: 1.600000024 | BX43: 14.51099968 | BY43: 2.807899475 | BZ43: 2.807899475 | CD43: Nuclear | CE43: 0 | CF43: 0 | CG43: 0 | CH43: 0 | CI43: -4.202199936 | CJ43: -19.1053009 | CK43: -22.30529976 | CO43: Nuclear | CP43: 0 | CQ43: 0 | CR43: 0 | CS43: 0 | CT43: -4.202199936 | CU43: -9.245300889 | CV43: -12.70529938 | DG43: -0.01303009197 | DH43: -0.01770526729 | DI43: -0.09001320197 | DJ43: -0.08108161864 | DK43: -0.09459510938 | DM43: 0 | DN43: 0 | DO43: 0 | DP43: 0 | DQ43: 0
A44: Solar Thermal | B44: ERSOLT* | D44: Solar Thermal | E44: 0 | F44: 0.05000000075 | G44: 0.200000003 | H44: 0.200000003 | I44: 0.9925000221 | J44: 10.99249955 | K44: 20.99249955 | L44: 22.91249954 | M44: 24.73150063 | P44: ERSOLT* | R44: Solar Thermal | S44: 0 | T44: 0.05000000075 | U44: 0.200000003 | V44: 0.200000003 | W44: 0.200000003 | X44: 8.783999637 | Y44: 18.78399964 | Z44: 20.70399963 | AA44: 22.58399963 | AC44: ERSOLT* | AE44: Solar Thermal | AF44: 0 | AG44: 0.05000000075 | AH44: 0.200000003 | AI44: 0.200000003 | AJ44: 0.200000003 | AK44: 10.15660019 | AL44: 20.15660019 | AM44: 22.07660019 | AN44: 23.95660019 | AP44: ERSOLT* | AR44: Solar Thermal | AS44: 0 | AT44: 0.05000000075 | AU44: 0.200000003 | AV44: 0.200000003 | AW44: 0.200000003 | AX44: 1.283600047 | AY44: 11.28360005 | AZ44: 13.20360004 | BA44: 15.08360004 | BC44: 1 | BS44: Solar Thermal | BT44: 0 | BU44: 0 | BV44: 0 | BW44: 0 | BX44: 17.79149961 | BY44: -2.208499908 | BZ44: -2.147500992 | CD44: Solar Thermal | CE44: 0 | CF44: 0 | CG44: 0 | CH44: 0 | CI44: 19.16410017 | CJ44: -0.835899353 | CK44: -0.7749004364 | CO44: Solar Thermal | CP44: 0 | CQ44: 0 | CR44: 0 | CS44: 0 | CT44: -0.7925000191 | CU44: -21.62889949 | CV44: -9.647900581 | DG44: -0.1369208463 | DH44: -0.1267790702 | DI44: -0.257404244 | DJ44: -0.2896480456 | DK44: -0.3534121741 | DM44: -0.1382902856 | DN44: -0.1306565728 | DO44: -0.1257996374 | DP44: -0.1184693594 | DQ44: -0.1117236227 | EC44: WORST | ED44: =ED36 -> Electricity price economy | EE44: =EE36 -> Welfare benefit | EF44: =EF36 -> Total employment | EG44: =EG36 -> Diversity of production | EH44: =EH36 -> CO2 efficiency | EI44: =EI36 -> Import independence
A45: Solar PV | B45: ERSOLP* | D45: Solar PV | E45: 0 | F45: 1.449000001 | G45: 1.449000001 | H45: 1.449000001 | I45: 4.752099991 | J45: 9.752099991 | K45: 13.30309963 | L45: 14.30309963 | M45: 12.32400036 | P45: ERSOLP* | R45: Solar PV | S45: 0 | T45: 1.449000001 | U45: 1.449000001 | V45: 1.449000001 | W45: 2.314399958 | X45: 7.314400196 | Y45: 10.86540031 | Z45: 11.86540031 | AA45: 11.31210041 | AC45: ERSOLP* | AE45: Solar PV | AF45: 0 | AG45: 1.449000001 | AH45: 1.449000001 | AI45: 1.449000001 | AJ45: 1.449000001 | AK45: 6.448999882 | AL45: 10 | AM45: 11 | AN45: 10.84619999 | AP45: ERSOLP* | AR45: Solar PV | AS45: 0 | AT45: 1.449000001 | AU45: 1.449000001 | AV45: 1.449000001 | AW45: 1.449000001 | AX45: 4.448999882 | AY45: 8 | AZ45: 9 | BA45: 9.538499832 | BC45: 0 | BS45: Solar PV | BT45: 0 | BU45: 0 | BV45: 0 | BW45: 0 | BX45: 6.113300323 | BY45: -2.437699318 | BZ45: -1.011899948 | CD45: Solar PV | CE45: 0 | CF45: 0 | CG45: 0 | CH45: 0 | CI45: 5.247900009 | CJ45: -3.303099632 | CK45: -1.477800369 | CO45: Solar PV | CP45: 0 | CQ45: 0 | CR45: 0 | CS45: 0 | CT45: -3.30309999 | CU45: -9.854099751 | CV45: -2.785500526 | DG45: -0.01232572876 | DH45: -0.01255493839 | DI45: -0.06197336064 | DJ45: -0.2867605666 | DK45: -0.3463316216 | DM45: -0.01396114218 | DN45: -0.01306460414 | DO45: -0.01247689043 | DP45: -0.2980255605 | DQ45: -0.3620331353 | EC45: Optimised | ED45: 71.24 | EE45: =12891.56 -> 12891.56 | EF45: =6912 -> 6912 | EG45: =DQ54/DQ55*100 -> 34.54513382 | EH45: =AL27 -> 129001.1803 | EI45: =SUM(AL168:AL181)/AL187*100 -> 83.18024938
A46: Wind | B46: ERWND* | D46: Wind | E46: 0 | F46: 1.949000001 | G46: 1.949000001 | H46: 2.319999933 | I46: 8.720000267 | J46: 10 | K46: 10 | L46: 10.28940001 | M46: 4.080200106 | P46: ERWND* | R46: Wind | S46: 0 | T46: 1.949000001 | U46: 1.949000001 | V46: 1.949000001 | W46: 3.229000092 | X46: 7.679999828 | Y46: 10 | Z46: 11.27999997 | AA46: 6.938199759 | AC46: ERWND* | AE46: Wind | AF46: 0 | AG46: 1.949000001 | AH46: 1.949000001 | AI46: 1.949000001 | AJ46: 5.789000034 | AK46: 5.877099991 | AL46: 10 | AM46: 10 | AN46: 5.548799992 | AP46: ERWND* | AR46: Wind | AS46: 0 | AT46: 1.949000001 | AU46: 1.949000001 | AV46: 1.949000001 | AW46: 5.548999786 | AX46: 4.880000114 | AY46: 8.720000267 | AZ46: 10 | BA46: 6.400000095 | BC46: 0.15 | BS46: Wind | BT46: 0 | BU46: 0 | BV46: 0 | BW46: -0.3709999323 | BX46: 1.279999733 | BY46: 0.9905999601 | BZ46: 2.857999653 | CD46: Wind | CE46: 0 | CF46: 0 | CG46: 0 | CH46: -0.3709999323 | CI46: 1.279999733 | CJ46: -0.2894000113 | CK46: 1.468599886 | CO46: Wind | CP46: 0 | CQ46: 0 | CR46: 0 | CS46: -0.3709999323 | CT46: -3.171000481 | CU46: -5.409399897 | CV46: 2.319799989 | DG46: -0.04923829969 | DH46: -0.04632069276 | DI46: -0.1040214233 | DJ46: -0.1541208569 | DK46: -0.1701555844 | DM46: -0.05113350095 | DN46: -0.0479299573 | DO46: -0.04591611682 | DP46: -0.1302537655 | DQ46: -0.1652129437 | EC46: Forced | ED46: 86.76 | EE46: =12723.24 -> 12723.24 | EF46: =6806 -> 6806 | EG46: =DQ76/DQ77*100 -> 35.71153202 | EH46: =AY27 -> 125286.1278 | EI46: =SUM(AY168:AY181)/AY187*100 -> 84.39369574
A47: Hydro domestic | B47: ERHYD-E,ERHYD-N | D47: Hydro domestic | E47: 0.6700000167 | F47: 1.170000017 | G47: 1.170000017 | H47: 1.170000017 | I47: 1.170000017 | J47: 1.170000017 | K47: 1.170000017 | L47: 1.170000017 | M47: 1.170000017 | P47: ERHYD-E,ERHYD-N | R47: Hydro domestic | S47: 0.6700000167 | T47: 1.170000017 | U47: 1.170000017 | V47: 1.170000017 | W47: 1.170000017 | X47: 1.170000017 | Y47: 1.170000017 | Z47: 1.170000017 | AA47: 1.170000017 | AC47: ERHYD-E,ERHYD-N | AE47: Hydro domestic | AF47: 0.6700000167 | AG47: 1.170000017 | AH47: 1.170000017 | AI47: 1.170000017 | AJ47: 1.170000017 | AK47: 1.170000017 | AL47: 1.170000017 | AM47: 1.170000017 | AN47: 1.170000017 | AP47: ERHYD-E,ERHYD-N | AR47: Hydro domestic | AS47: 0.6700000167 | AT47: 1.170000017 | AU47: 1.170000017 | AV47: 1.170000017 | AW47: 1.170000017 | AX47: 1.170000017 | AY47: 1.170000017 | AZ47: 1.170000017 | BA47: 1.170000017 | BC47: 1 | BS47: Hydro domestic | BT47: 0 | BU47: 0 | BV47: 0 | BW47: 0 | BX47: 0 | BY47: 0 | BZ47: 0 | CD47: Hydro domestic | CE47: 0 | CF47: 0 | CG47: 0 | CH47: 0 | CI47: 0 | CJ47: 0 | CK47: 0 | CO47: Hydro domestic | CP47: 0 | CQ47: 0 | CR47: 0 | CS47: 0 | CT47: 0 | CU47: 0 | CV47: 0 | DG47: -0.06386618149 | DH47: -0.08000026975 | DI47: -0.1874524224 | DJ47: -0.1860058786 | DK47: -0.168168214 | DM47: -0.07806269055 | DN47: -0.07379069965 | DO47: -0.1537219805 | DP47: -0.1466164857 | DQ47: -0.1955573221 | EC47: Processed
A48: Pumped Storage | B48: EP*T* | D48: Pumped Storage | E48: 1.580000043 | F48: 2.91200006 | G48: 2.91200006 | H48: 2.91200006 | I48: 2.91200006 | J48: 2.91200006 | K48: 2.91200006 | L48: 1.332000017 | M48: 1.332000017 | P48: EP*T* | R48: Pumped Storage | S48: 1.580000043 | T48: 2.91200006 | U48: 2.91200006 | V48: 2.91200006 | W48: 2.91200006 | X48: 2.91200006 | Y48: 2.91200006 | Z48: 1.332000017 | AA48: 1.332000017 | AC48: EP*T* | AE48: Pumped Storage | AF48: 1.580000043 | AG48: 2.91200006 | AH48: 2.91200006 | AI48: 2.91200006 | AJ48: 2.91200006 | AK48: 2.91200006 | AL48: 2.91200006 | AM48: 1.332000017 | AN48: 1.332000017 | AP48: EP*T* | AR48: Pumped Storage | AS48: 1.580000043 | AT48: 2.91200006 | AU48: 2.91200006 | AV48: 2.91200006 | AW48: 2.91200006 | AX48: 2.91200006 | AY48: 2.91200006 | AZ48: 1.332000017 | BA48: 1.332000017 | BC48: 1 | BS48: Pumped Storage | BT48: 0 | BU48: 0 | BV48: 0 | BW48: 0 | BX48: 0 | BY48: 0 | BZ48: 0 | CD48: Pumped Storage | CE48: 0 | CF48: 0 | CG48: 0 | CH48: 0 | CI48: 0 | CJ48: 0 | CK48: 0 | CO48: Pumped Storage | CP48: 0 | CQ48: 0 | CR48: 0 | CS48: 0 | CT48: 0 | CU48: 1.580000043 | CV48: 0 | DG48: -0.07823863139 | DH48: -0.07865410417 | DI48: -0.07727284713 | DJ48: -0.06908039068 | DK48: -0.06123293224 | DM48: -0.08995509143 | DN48: -0.0867294396 | DO48: -0.08329036505 | DP48: -0.07813290951 | DQ48: -0.07342037452 | EC48: Optimised | ED48: =IF(ED45>ED46,ED46/ED45,1) -> 1 | EE48: =IF(EE45>EE46,1,EE45/EE46) -> 1 | EF48: =IF(EF45>EF46,1,EF45/EF46) -> 1 | EG48: =IF(EG45>EG46,1,EG45/EG46) -> 0.967338332 | EH48: =IF(EH45>EH46,EH46/EH45,1) -> 0.971201407 | EI48: =IF(EI45>EI46,1,EI45/EI46) -> 0.9856215994
A49: Biomass | B49: E*BI* | D49: Biomass | E49: 0 | F49: 0.007499999832 | G49: 0.007499999832 | H49: 0.4138000011 | I49: 0.5 | J49: 0.5 | K49: 0.4975000024 | L49: 0.5 | M49: 0.5 | P49: E*BI* | R49: Biomass | S49: 0 | T49: 0.007499999832 | U49: 0.007499999832 | V49: 0.007499999832 | W49: 0.5 | X49: 0.5 | Y49: 0.4975000024 | Z49: 0.5 | AA49: 0.5 | AC49: E*BI* | AE49: Biomass | AF49: 0 | AG49: 0.007499999832 | AH49: 0.007499999832 | AI49: 0.007499999832 | AJ49: 0.007499999832 | AK49: 0.007499999832 | AL49: 0.004999999888 | AM49: 0 | AN49: 0 | AP49: E*BI* | AR49: Biomass | AS49: 0 | AT49: 0.007499999832 | AU49: 0.007499999832 | AV49: 0.007499999832 | AW49: 0.007499999832 | AX49: 0.007499999832 | AY49: 0.004999999888 | AZ49: 0 | BA49: 0 | BC49: 1 | BS49: Biomass | BT49: 0 | BU49: 0 | BV49: 0 | BW49: -0.4063000013 | BX49: -0.002499997616 | BY49: 0 | BZ49: 0 | CD49: Biomass | CE49: 0 | CF49: 0 | CG49: 0 | CH49: -0.4063000013 | CI49: -0.4950000001 | CJ49: -0.5 | CK49: -0.5 | CO49: Biomass | CP49: 0 | CQ49: 0 | CR49: 0 | CS49: -0.4063000013 | CT49: -0.4925000002 | CU49: -0.4925000002 | CV49: -0.5 | DG49: -0.0693837062 | DH49: -0.06372906832 | DI49: -0.02490582152 | DJ49: -0.02204592357 | DK49: -0.01934987677 | DM49: -0.07015357303 | DN49: -0.06588063894 | DO49: -0.0270359484 | DP49: -0.0252090674 | DQ49: -0.02355520634 | EC49: Forced | ED49: =IF(ED46>ED45,ED45/ED46,1) -> 0.8211157215 | EE49: =IF(EE46>EE45,1,EE46/EE45) -> 0.9869433955 | EF49: =IF(EF46>EF45,1,EF46/EF45) -> 0.9846643519 | EG49: =IF(EG46>EG45,1,EG46/EG45) -> 1 | EH49: =IF(EH46>EH45,EH45/EH46,1) -> 1 | EI49: =IF(EI46>EI45,1,EI46/EI45) -> 1
A50: Imported Electricity (Hydro) | B50: ERHYD*I | D50: Imported Electricity (Hydro) | E50: 1.5 | F50: 1.5 | G50: 1.5 | H50: 2.25000002 | I50: 3.000000022 | J50: 3.000000022 | K50: 3.000000022 | L50: 3.000000022 | M50: 3.000000022 | P50: ERHYD*I | R50: Imported Electricity (Hydro) | S50: 1.5 | T50: 1.5 | U50: 1.5 | V50: 2.249999993 | W50: 3.000000022 | X50: 3.000000022 | Y50: 3.000000022 | Z50: 3.000000022 | AA50: 3.000000022 | AC50: ERHYD*I | AE50: Imported Electricity (Hydro) | AF50: 1.5 | AG50: 1.5 | AH50: 2.409999996 | AI50: 6.828799926 | AJ50: 11.06499984 | AK50: 11.06499984 | AL50: 11.06499984 | AM50: 11.06499984 | AN50: 11.06499984 | AP50: ERHYD*I | AR50: Imported Electricity (Hydro) | AS50: 1.5 | AT50: 1.5 | AU50: 2.409999996 | AV50: 6.766099922 | AW50: 11.06499984 | AX50: 11.06499984 | AY50: 11.06499984 | AZ50: 11.06499984 | BA50: 11.06499984 | BC50: 1 | BS50: Imported Electricity (Hydro) | BT50: 0 | BU50: 0 | BV50: 0 | BW50: -2.793967724e-08 | BX50: 0 | BY50: 0 | BZ50: 0 | CD50: Imported Electricity (Hydro) | CE50: 0 | CF50: 0 | CG50: 0.9099999964 | CH50: 4.578799905 | CI50: 8.064999819 | CJ50: 8.064999819 | CK50: 8.064999819 | CO50: Imported Electricity (Hydro) | CP50: 0 | CQ50: 0 | CR50: 0.9099999964 | CS50: 4.516099902 | CT50: 8.064999819 | CU50: 8.064999819 | CV50: 8.064999819 | DG50: -0.0009929721424 | DH50: -0.02806557309 | DI50: -0.02986391376 | DJ50: -0.02646580287 | DK50: -0.02316098703 | DM50: -0.001006757688 | DN50: -0.0009342079424 | DO50: -0.0008895747363 | DP50: -0.0008243414471 | DQ50: -0.0005317278461
A51: Imported Electricity (Coal) | B51: ETCRB* | D51: Imported Electricity (Coal) | E51: 0 | F51: 0 | G51: 0 | H51: 0 | I51: 2.200000048 | J51: 2.200000048 | K51: 2.200000048 | L51: 2.200000048 | M51: 2.200000048 | P51: ETCRB* | R51: Imported Electricity (Coal) | S51: 0 | T51: 0 | U51: 0 | V51: 0 | W51: 1.614499986 | X51: 2.200000048 | Y51: 2.200000048 | Z51: 2.200000048 | AA51: 2.200000048 | AC51: ETCRB* | AE51: Imported Electricity (Coal) | AF51: 0 | AG51: 0 | AH51: 0 | AI51: 0 | AJ51: 2.200000048 | AK51: 2.200000048 | AL51: 2.200000048 | AM51: 2.200000048 | AN51: 2.200000048 | AP51: ETCRB* | AR51: Imported Electricity (Coal) | AS51: 0 | AT51: 0 | AU51: 0 | AV51: 0 | AW51: 2.200000048 | AX51: 2.200000048 | AY51: 2.200000048 | AZ51: 2.200000048 | BA51: 2.200000048 | BC51: 1 | BS51: Imported Electricity (Coal) | BT51: 0 | BU51: =T51-F51 -> 0 | BV51: 0 | BW51: 0 | BX51: =Y51-I51 -> 0 | BY51: =Z51-L51 -> 0 | BZ51: =AA51-M51 -> 0 | CD51: Imported Electricity (Coal) | CE51: 0 | CF51: =AG51-F51 -> 0 | CG51: 0 | CH51: 0 | CI51: =AL51-I51 -> 0 | CJ51: =AM51-L51 -> 0 | CK51: =AN51-M51 -> 0 | CO51: Imported Electricity (Coal) | CP51: 0 | CQ51: =AT51-F51 -> 0 | CR51: 0 | CS51: 0 | CT51: 0 | CU51: =AX51-L51 -> 0 | CV51: =BA51-M51 -> 0 | DG51: -0.1026760044 | DH51: -0.1229569516 | DI51: -0.1351605787 | DJ51: -0.1219284899 | DK51: -0.1090360121 | DM51: -0.1355779298 | DN51: -0.1787707659 | DO51: -0.269192387 | DP51: -0.2440321115 | DQ51: -0.2475764218
A52: Imported Electricity (Gas) | B52: ETGRN* | D52: Imported Electricity (Gas) | E52: 0 | F52: 0 | G52: 0.1076000035 | H52: 0.7110000253 | I52: 0.7110000253 | J52: 0.7110000253 | K52: 0.7110000253 | L52: 0.7110000253 | M52: 0.7110000253 | P52: ETGRN* | R52: Imported Electricity (Gas) | S52: 0 | T52: 0 | U52: 0.1063999981 | V52: 0.5853000283 | W52: 0.7110000253 | X52: 0.7110000253 | Y52: 0.7110000253 | Z52: 0.7110000253 | AA52: 0.7110000253 | AC52: ETGRN* | AE52: Imported Electricity (Gas) | AF52: 0 | AG52: 0 | AH52: 0 | AI52: 0 | AJ52: 0.7110000253 | AK52: 0.7110000253 | AL52: 0.7110000253 | AM52: 0.7110000253 | AN52: 0.7110000253 | AP52: ETGRN* | AR52: Imported Electricity (Gas) | AS52: 0 | AT52: 0 | AU52: 0 | AV52: 0 | AW52: 0.2842000127 | AX52: 0.7110000253 | AY52: 0.7110000253 | AZ52: 0.7110000253 | BA52: 0.7110000253 | BC52: 1 | BS52: Imported Electricity (Gas) | BT52: 0 | BU52: 0 | BV52: -0.001200005412 | BW52: -0.1256999969 | BX52: =Y52-I52 -> 0 | BY52: =Z52-L52 -> 0 | BZ52: =AA52-M52 -> 0 | CD52: Imported Electricity (Gas) | CE52: 0 | CF52: 0 | CG52: -0.1076000035 | CH52: -0.7110000253 | CI52: =AL52-I52 -> 0 | CJ52: =AM52-L52 -> 0 | CK52: =AN52-M52 -> 0 | CO52: Imported Electricity (Gas) | CP52: 0 | CQ52: 0 | CR52: -0.1076000035 | CS52: -0.7110000253 | CT52: -0.4268000126 | CU52: =AX52-L52 -> 0 | CV52: =BA52-M52 -> 0 | DG52: 0 | DH52: 0 | DI52: -0.1361010561 | DJ52: -0.1227950676 | DK52: -0.1098268377 | DM52: 0 | DN52: 0 | DO52: -0.14572358 | DP52: -0.1374840727 | DQ52: -0.1298733802
A53: Peak Demand (updated) | B53: \I | D53: Peak Demand (updated) | E53: =E54/E57 -> 38.14682578 | F53: =F54/F57 -> 39.35504878 | G53: 44.25088523 | H53: 49.76253926 | I53: 56.59739706 | J53: =J54/J57 -> 65.77512997 | K53: =K54/K57 -> 77.15609071 | L53: 90.50634823 | M53: 106.1664943 | P53: \I | R53: Peak Demand (updated) | S53: =S54/S57 -> 38.14682578 | T53: 39.35796239 | U53: 44.22310265 | V53: 49.83152931 | W53: =W54/W57 -> 56.71831621 | X53: =X54/X57 -> 65.84880404 | Y53: 77.28470277 | Z53: 90.70676075 | AA53: 106.4597298 | AC53: \I | AE53: Peak Demand (updated) | AF53: =AF54/AF57 -> 38.14682578 | AG53: 39.41196755 | AH53: 43.67825194 | AI53: 47.67179936 | AJ53: =AJ54/AJ57 -> 51.12310007 | AK53: =AK54/AK57 -> 55.75744121 | AL53: 60.62986551 | AM53: 65.92809497 | AN53: 71.68938739 | AP53: \I | AR53: Peak Demand (updated) | AS53: =AS54/AS57 -> 38.14682578 | AT53: 39.41581798 | AU53: 43.66576386 | AV53: 47.35837494 | AW53: 50.20925976 | AX53: 54.01383875 | AY53: =AY54/AY57 -> 58.28043673 | AZ53: =AZ54/AZ57 -> 62.88407769 | BA53: 67.85140499 | DG53: -0.004048436509 | DH53: -0.04500315522 | DI53: -0.06185248766 | DJ53: -0.05515321163 | DK53: -0.02371468222 | DM53: 0 | DN53: 0 | DO53: -0.0667918326 | DP53: -0.06255750042 | DQ53: -0.05869856474
B54: ETRANS | E54: 36.65909958 | F54: 37.82020187 | G54: 42.52510071 | H54: 47.82180023 | I54: 54.39009857 | J54: 63.2098999 | K54: 74.14700317 | L54: 86.97660065 | M54: 102.026001 | P54: ETRANS | S54: 36.65909958 | T54: 37.82300186 | U54: 42.49840164 | V54: 47.88809967 | W54: 54.50630188 | X54: 63.28070068 | Y54: 74.27059937 | Z54: 87.16919708 | AA54: 102.3078003 | AC54: ETRANS | AF54: 36.65909958 | AG54: 37.87490082 | AH54: 41.97480011 | AI54: 45.81259918 | AJ54: 49.12929916 | AK54: 53.582901 | AL54: 58.26530075 | AM54: 63.35689926 | AN54: 68.89350128 | AP54: ETRANS | AS54: 36.65909958 | AT54: 37.87860107 | AU54: 41.96279907 | AV54: 45.51139832 | AW54: 48.25109863 | AX54: 51.90729904 | AY54: 56.00749969 | AZ54: 60.43159866 | BA54: 65.2052002 | DG54: =-SUM(DG37:DG53) -> 1.165552294 | DH54: =-SUM(DH37:DH53) -> 1.282046774 | DI54: 1.886227924 | DJ54: 2.101899405 | DK54: 2.019239366 | DM54: =-SUM(DM37:DM53) -> 1.238019851 | DN54: =-SUM(DN37:DN53) -> 1.284366608 | DO54: =-SUM(DO37:DO53) -> 1.664805971 | DP54: =-SUM(DP37:DP53) -> 1.975079352 | DQ54: =-SUM(DQ37:DQ53) -> 2.073555935
A55: Peak Demand Original | D55: Peak Demand Original | E55: 38.63 | F55: 42.27 | G55: 49.3 | H55: 56.73 | I55: 64.39 | J55: 72 | L55: 72 | DG55: Maximum diversity | DK55: =LN(K187) -> 6.242226561 | DM55: =DG55 -> Maximum diversity | DQ55: =LN(AL187) -> 6.002454488
A56: Total Incl. Imports | B56: Total | E56: =SUM(E36:E52) -> 44.32999998 | F56: 51.83119994 | G56: 59.25289964 | H56: 58.6274002 | I56: 74.49480037 | J56: =SUM(J36:J52) -> 90.69349945 | K56: =SUM(K36:K52) -> 106.8221991 | L56: 122.8222003 | M56: =SUM(M36:M52) -> 133.0272013 | P56: Total | S56: =SUM(S36:S52) -> 44.32999998 | T56: 51.83119994 | U56: 59.25169963 | V56: 58.97460027 | W56: =SUM(W36:W52) -> 67.66050027 | X56: =SUM(X36:X52) -> 86.42319907 | Y56: 104.5266993 | Z56: 121.4479998 | AA56: 134.7219991 | AC56: Total | AF56: =SUM(AF36:AF52) -> 44.32999998 | AG56: 51.83119994 | AH56: 59.57249962 | AI56: 60.88530014 | AJ56: =SUM(AJ36:AJ52) -> 62.72369985 | AK56: =SUM(AK36:AK52) -> 72.91789992 | AL56: 85.25509982 | AM56: 92.11049978 | AN56: 94.65159974 | AP56: Total | AS56: =SUM(AS36:AS52) -> 44.32999998 | AT56: 51.83119994 | AU56: 59.57249962 | AV56: 60.82260014 | AW56: 61.51569961 | AX56: 68.16839986 | AY56: =SUM(AY36:AY52) -> 79.60270028 | AZ56: =SUM(AZ36:AZ52) -> 86.74640028 | BA56: 89.80439935
B57: 1- T_losses | E57: 0.961 | F57: =$E$57 -> 0.961 | G57: =$E$57 -> 0.961 | H57: 0.961 | I57: 0.961 | J57: 0.961 | K57: 0.961 | L57: 0.961 | M57: 0.961 | S57: =E57 -> 0.961 | T57: =F57 -> 0.961 | U57: =G57 -> 0.961 | V57: =H57 -> 0.961 | W57: =G57 -> 0.961 | X57: =J57 -> 0.961 | Y57: =I57 -> 0.961 | Z57: =L57 -> 0.961 | AA57: =M57 -> 0.961 | AF57: =E57 -> 0.961 | AG57: =F57 -> 0.961 | AH57: 0.961 | AI57: 0.961 | AJ57: 0.961 | AK57: 0.961 | AL57: 0.961 | AM57: 0.961 | AN57: 0.961 | AS57: =E57 -> 0.961 | AT57: =F57 -> 0.961 | AU57: 0.961 | AV57: 0.961 | AW57: 0.961 | AX57: 0.961 | AY57: 0.961 | AZ57: 0.961 | BA57: 0.961 | DG57: =BW82 -> Future 1 Focred | DM57: =BY82 -> Future 2 Forced
B58: Reserve Margin | E58: =E56/E53-1 -> 0.1620888258 | F58: =F56/F53-1 -> 0.3170152637 | G58: 0.339021792 | H58: 0.1781432592 | I58: 0.3162230816 | J58: =J56/J53-1 -> 0.3788418129 | K58: =K56/K53-1 -> 0.3844947051 | L58: 0.3570561921 | M58: 0.2530055006 | S58: =S56/S53-1 -> 0.1620888258 | T58: =T56/T53-1 -> 0.3169177667 | U58: 0.3398358797 | V58: 0.1834796379 | W58: =W56/W53-1 -> 0.1929215249 | X58: =X56/X53-1 -> 0.3124490311 | Y58: 0.3524888562 | Z58: 0.3389079136 | AA58: 0.2654738034 | DG58: 2020 | DH58: 2025 | DI58: 2030 | DJ58: 2035 | DK58: 2040 | DM58: 2020 | DN58: 2025 | DO58: 2030 | DP58: 2035 | DQ58: 2040
B59: Total 2 | E59: =SUMPRODUCT(E36:E52,$BC$36:$BC$52) -> 44.32999998 | F59: 48.72554994 | G59: 56.14724964 | H59: 55.20640025 | I59: 62.33070015 | J59: 72.44139946 | K59: 85.01909942 | L59: 99.77311064 | M59: 117.2350308 | S59: =SUMPRODUCT(S36:S52,$BC$36:$BC$52) -> 44.32999998 | T59: 48.72554994 | U59: 56.14604963 | V59: 55.86895027 | W59: 62.60145023 | X59: 72.58079901 | Y59: 85.16129894 | Z59: 99.9945995 | AA59: 117.5124289 | DG59: =IF(U168=0,0,(U168/U$187)*LN(U168/U$187)) -> -0.2686390635 | DH59: =IF(V168=0,0,(V168/V$187)*LN(V168/V$187)) -> -0.2959034843 | DI59: =IF(W168=0,0,(W168/W$187)*LN(W168/W$187)) -> -0.3650891131 | DJ59: =IF(X168=0,0,(X168/X$187)*LN(X168/X$187)) -> -0.356233439 | DK59: =IF(Y168=0,0,(Y168/Y$187)*LN(Y168/Y$187)) -> -0.2465562358 | DM59: =IF(AU168=0,0,(AU168/AU$187)*LN(AU168/AU$187)) -> -0.2839575873 | DN59: =IF(AV168=0,0,(AV168/AV$187)*LN(AV168/AV$187)) -> -0.301688005 | DO59: =IF(AW168=0,0,(AW168/AW$187)*LN(AW168/AW$187)) -> -0.3524389961 | DP59: =IF(AX168=0,0,(AX168/AX$187)*LN(AX168/AX$187)) -> -0.3668006519 | DQ59: =IF(AY168=0,0,(AY168/AY$187)*LN(AY168/AY$187)) -> -0.2868372211
B60: Reserve Margin 2 | E60: =E59/E53-1 -> 0.1620888258 | F60: =F59/F53-1 -> 0.2381016275 | G60: 0.2688390151 | H60: 0.1093967685 | I60: 0.1012997662 | J60: =J59/J53-1 -> 0.1013493929 | K60: =K59/K53-1 -> 0.1019104083 | L60: 0.1023879827 | M60: 0.1042564008 | S60: =S59/S53-1 -> 0.1620888258 | T60: 0.2380099724 | U60: 0.2696090114 | V60: 0.121156646 | W60: =W59/W53-1 -> 0.1037254702 | X60: =X59/X53-1 -> 0.1022341267 | Y60: 0.1019166262 | Z60: 0.1023941178 | AA60: 0.1038204698 | BF60: 0 | BG60: =BF60+1 -> 1 | BH60: 2 | BI60: 3 | BJ60: 4 | BK60: 5 | BL60: 6 | BM60: 7 | BN60: =BK60+1 -> 6 | DG60: -0.3074205574 | DH60: -0.3156739505 | DI60: -0.2999760354 | DJ60: -0.2817947597 | DK60: -0.2602552457 | DM60: -0.3092601957 | DN60: -0.3224530537 | DO60: -0.3171015516 | DP60: -0.3078930632 | DQ60: -0.2980243497
BF61: =AS61 -> 0 | BG61: 0 | BH61: 0 | BI61: 0 | BJ61: 0 | BK61: 0 | BL61: 0 | BM61: 0 | BN61: 0 | DG61: -0.02663202987 | DH61: -0.02386278254 | DI61: -0.02002356784 | DJ61: -0.01789602854 | DK61: -0.006039992544 | DM61: -0.03587397207 | DN61: -0.0249533228 | DO61: -0.02233805918 | DP61: -0.02104869629 | DQ61: -0.007680016891
B62: Retiring Coal Capacity | G62: =F36-G36 -> 0.4867000878 | H62: =G36-H36 -> 4.489999235 | I62: =H36-I36 -> 9.390000105 | J62: =G36-J36 -> 19.25999936 | K62: =J36-K36 -> 8.920000315 | L62: =I36-L36 -> 18.82000035 | M62: =L36-M36 -> 3.840000033 | BD62: =MATCH(BE62,E$25:BA$25,) -> 1 | BE62: =BE27 -> Best | BF62: =OFFSET($D$187,0,$BD62+BF$25) -> 265.4248063 | BG62: 269.1526382 | BH62: 301.7553063 | BI62: 337.5786386 | BJ62: 377.6819466 | BK62: 438.5371671 | BL62: 514.001694 | BM62: 602.5241654 | BN62: 706.3633033 | DG62: -0.03238987895 | DH62: -0.02946851835 | DI62: -0.03414234523 | DJ62: -0.03060958213 | DK62: -0.02691387574 | DM62: -0.0308940628 | DN62: -0.03929735536 | DO62: -0.03796654615 | DP62: -0.03583815044 | DQ62: -0.03374062073
A63: Capacity Share Detailed | B63: Cumulative Retiring Coal Capacity | G63: =G62 -> 0.4867000878 | H63: =G63+H62 -> 4.976699322 | I63: =H63+I62 -> 14.36669943 | J63: =G63+J62 -> 19.74669945 | K63: =J63+K62 -> 28.66669977 | L63: =I63+L62 -> 33.18669978 | M63: =L63+M62 -> 37.02669981 | BD63: =MATCH(BE63,E$25:BA$25,) -> 15 | BE63: =BE28 -> Best Forced | BF63: 265.4247507 | BG63: 269.1729181 | BH63: 301.5611962 | BI63: 339.1721938 | BJ63: 383.1288092 | BK63: 439.0259165 | BL63: 514.854968 | BM63: 603.8531368 | BN63: 708.3074442 | DG63: 0 | DH63: 0 | DI63: 0 | DJ63: 0 | DK63: 0 | DM63: 0 | DN63: 0 | DO63: 0 | DP63: 0 | DQ63: 0
E64: =E35 -> 2010 | F64: =F35 -> 2015 | G64: 2020 | H64: 2025 | I64: 2030 | J64: =J35 -> 2035 | K64: =K35 -> 2040 | L64: 2045 | M64: 2050 | S64: =S35 -> 2010 | T64: =T35 -> 2015 | U64: 2020 | V64: 2025 | W64: =W35 -> 2030 | X64: =X35 -> 2035 | Y64: 2040 | Z64: 2045 | AA64: 2050 | AF64: =AF35 -> 2010 | AG64: =AG35 -> 2015 | AH64: 2020 | AI64: 2025 | AJ64: =AJ35 -> 2030 | AK64: =AK35 -> 2035 | AL64: 2040 | AM64: 2045 | AN64: 2050 | AS64: =AS35 -> 2010 | AT64: =AT35 -> 2015 | AU64: 2020 | AV64: 2025 | AW64: 2030 | AX64: 2035 | AY64: =AY35 -> 2040 | AZ64: =AZ35 -> 2045 | BA64: 2050 | BD64: =MATCH(BE64,E$25:BA$25,) -> 28 | BE64: =BE29 -> Worst | BF64: 265.4248063 | BG64: 269.5435539 | BH64: 297.3696945 | BI64: 323.1432803 | BJ64: 341.3832252 | BK64: 372.1119441 | BL64: 404.4202209 | BM64: 439.5518051 | BN64: 477.7533592 | DG64: 0 | DH64: 0 | DI64: 0 | DJ64: 0 | DK64: 0 | DM64: 0 | DN64: 0 | DO64: 0 | DP64: -0.001944778207 | DQ64: -0.02288933759
A65: =A36 -> Existing Coal | D65: =D36 -> Existing Coal | E65: =E36/E$56 -> 0.8120911323 | F65: =F36/F$56 -> 0.714370878 | G65: 0.6166786764 | H65: 0.5466727227 | I65: 0.304182309 | J65: =J36/J$56 -> 0.1905318514 | K65: 0.07826088695 | L65: 0.03126470642 | M65: 0 | R65: =R36 -> Existing Coal | S65: =S36/S$56 -> 0.8120911323 | T65: =T36/T$56 -> 0.714370878 | U65: 0.6166911658 | V65: 0.5434543065 | W65: =W36/W$56 -> 0.3349073728 | X65: 0.199946317 | Y65: 0.07997956602 | Z65: 0.03161847079 | AA65: 0 | AE65: =AE36 -> Existing Coal | AF65: =AF36/AF$56 -> 0.8120911323 | AG65: =AG36/AG$56 -> 0.714370878 | AH65: 0.6133702623 | AI65: 0.5263996468 | AJ65: =AJ36/AJ$56 -> 0.3612669603 | AK65: 0.236978854 | AL65: 0.09805865059 | AM65: 0.04168905871 | AN65: 0 | AR65: =AR36 -> Existing Coal | AS65: =AS36/AS$56 -> 0.8120911323 | AT65: =AT36/AT$56 -> 0.714370878 | AU65: 0.6133702623 | AV65: 0.5269422947 | AW65: 0.3683612562 | AX65: 0.2534898926 | AY65: =AY36/AY$56 -> 0.1050215635 | AZ65: 0.04426696694 | BA65: 0 | BD65: =MATCH(BE65,E$25:BA$25,) -> 41 | BE65: =BE30 -> Worst Forced | BF65: 265.4247507 | BG65: 269.5702779 | BH65: 297.2844433 | BI65: 321.0653339 | BJ65: 335.3235008 | BK65: 360.5510548 | BL65: 388.8419723 | BM65: 419.3674449 | BN65: 452.3043617 | DG65: -0.01303854219 | DH65: -0.01181397253 | DI65: -0.05166456634 | DJ65: -0.07637544972 | DK65: -0.09240345746 | DM65: 0 | DN65: 0 | DO65: 0 | DP65: 0 | DQ65: 0
A66: =A37 -> New Coal | D66: =D37 -> New Coal | E66: =E37/E$56 -> 0 | F66: 0.01392983384 | G66: 0.1218505733 | H66: 0.1477807225 | I66: 0.1163034133 | J66: 0.0955305464 | K66: 0.08110673282 | L66: 0.06231121191 | M66: 0.06735615174 | R66: =R37 -> New Coal | S66: =S37/S$56 -> 0 | T66: 0.01392983384 | U66: 0.1218530411 | V66: 0.1469106958 | W66: 0.1280510715 | X66: 0.1002508545 | Y66: 0.08288790921 | Z66: 0.06301627168 | AA66: 0.06048381158 | AE66: =AE37 -> New Coal | AF66: =AF37/AF$56 -> 0 | AG66: 0.01392983384 | AH66: 0.1211968582 | AI66: 0.1423003506 | AJ66: 0.1381295998 | AK66: 0.1188185558 | AL66: 0.101624414 | AM66: 0.08308716343 | AN66: 0.01707419634 | AR66: =AR37 -> New Coal | AS66: =AS37/AS$56 -> 0 | AT66: 0.01392983384 | AU66: 0.1211968582 | AV66: 0.1424470433 | AW66: 0.1408420877 | AX66: 0.1270970065 | AY66: 0.1088405233 | AZ66: 0.0882249883 | BA66: 0.0179957776 | DG66: -0.1369808051 | DH66: -0.1960457389 | DI66: -0.3389616446 | DJ66: -0.3322810701 | DK66: -0.3634359187 | DM66: -0.1383172075 | DN66: -0.1312368782 | DO66: -0.1273677585 | DP66: -0.3103623608 | DQ66: -0.319511512
A67: OCGT diesel | D67: OCGT diesel | E67: =E38/E$56 -> 0.05549289508 | F67: 0.05392504996 | G67: 0.05847815136 | H67: 0.05807864717 | I67: 0.04168076006 | J67: 0.03423619023 | K67: 0.00940815677 | L67: 0.004364032008 | M67: 0 | R67: OCGT diesel | S67: =S38/S$56 -> 0.05549289508 | T67: 0.05392504996 | U67: 0.0584793357 | V67: 0.05773672183 | W67: 0.04589088002 | X67: 0.03592785194 | Y67: 0.009614768307 | Z67: 0.004413411619 | AA67: 0 | AE67: OCGT diesel | AF67: =AF38/AF$56 -> 0.05549289508 | AG67: 0.05392504996 | AH67: 0.05816442243 | AI67: 0.0559248305 | AJ67: 0.04950281803 | AK67: 0.04258213557 | AL67: 0.01178815106 | AM67: 0.005819097873 | AN67: 0 | AR67: OCGT diesel | AS67: =AS38/AS$56 -> 0.05549289508 | AT67: 0.05392504996 | AU67: 0.05816442243 | AV67: 0.05598248156 | AW67: 0.0504749181 | AX67: 0.04554896266 | AY67: 0.0126251998 | AZ67: 0.006178930902 | BA67: 0 | DG67: -0.01233238761 | DH67: -0.01241067914 | DI67: -0.0113239437 | DJ67: -0.2560493775 | DK67: -0.3344597772 | DM67: -0.01396448673 | DN67: -0.01313537712 | DO67: -0.01266572985 | DP67: -0.07920003484 | DQ67: -0.3061593626
A68: Inland Gas Plants | D68: Inland Gas Plants | E68: =E39/E$56 -> 0.005865102426 | F68: 0.007524425175 | G68: 0.006581956125 | H68: 0.006652179431 | I68: 0.005235264526 | J68: 0.004300197788 | K68: 0.003650926391 | L68: 0.002979917277 | M68: 0.002931731119 | R68: Inland Gas Plants | S68: =S39/S$56 -> 0.005865102426 | T68: 0.007524425175 | U68: 0.006582089427 | V68: 0.006613016178 | W68: 0.005764071861 | X68: 0.004512677035 | Y68: 0.003731104 | Z68: 0.003013635443 | AA68: 0.002894850049 | AE68: Inland Gas Plants | AF68: =AF39/AF$56 -> 0.005865102426 | AG68: 0.007524425175 | AH68: 0.006546644646 | AI68: 0.006405486789 | AJ68: 0.006217745232 | AK68: 0.005348480772 | AL68: 0.003958707534 | AM68: 0.003664077459 | AN68: 0.003565708418 | AR68: Inland Gas Plants | AS68: =AS39/AS$56 -> 0.005865102426 | AT68: 0.007524425175 | AU68: 0.006546644646 | AV68: 0.006412089993 | AW68: 0.006339844758 | AX68: 0.00572112572 | AY68: 0.004239805996 | AZ68: 0.003890651426 | BA68: 0.003758167845 | DG68: -0.04927723967 | DH68: -0.04589335003 | DI68: -0.06034459419 | DJ68: -0.1267580711 | DK68: -0.14885402 | DM68: -0.05114488411 | DN68: -0.04817182523 | DO68: -0.04656422924 | DP68: -0.1025777273 | DQ68: -0.1463441225
A69: Gas from N Moz | D69: Gas from N Moz | E69: =E40/E$56 -> 0 | F69: 0 | G69: 0 | H69: 0 | I69: 0 | J69: 0 | K69: 0 | L69: 0 | M69: 0 | R69: Gas from N Moz | S69: =S40/S$56 -> 0 | T69: 0 | U69: 0 | V69: 0 | W69: 0 | X69: 0 | Y69: 0 | Z69: 0 | AA69: 0 | AE69: Gas from N Moz | AF69: =AF40/AF$56 -> 0 | AG69: 0 | AH69: 0 | AI69: 0 | AJ69: 0 | AK69: 0 | AL69: 0 | AM69: 0 | AN69: 0 | AR69: Gas from N Moz | AS69: =AS40/AS$56 -> 0 | AT69: 0 | AU69: 0 | AV69: 0 | AW69: 0 | AX69: 0 | AY69: 0 | AZ69: 0 | BA69: 0 | DG69: -0.06394872637 | DH69: -0.06172804216 | DI69: -0.09446731631 | DJ69: -0.1569108897 | DK69: -0.167988382 | DM69: -0.07807935764 | DN69: -0.07414820857 | DO69: -0.1512518806 | DP69: -0.1320511487 | DQ69: -0.1840745361
A70: Gas Domestic Shale | D70: Gas Domestic Shale | E70: =E41/E$56 -> 0 | F70: 0 | G70: 0 | H70: 0 | I70: 0 | J70: 0 | K70: 0 | L70: 0 | M70: 0 | R70: Gas Domestic Shale | S70: =S41/S$56 -> 0 | T70: 0 | U70: 0 | V70: 0 | W70: 0 | X70: 0 | Y70: 0 | Z70: 0 | AA70: 0 | AE70: Gas Domestic Shale | AF70: =AF41/AF$56 -> 0 | AG70: 0 | AH70: 0 | AI70: 0 | AJ70: 0.008628317262 | AK70: 0.01468363804 | AL70: 0.07986619018 | AM70: 0.2191845609 | AN70: 0.3789518584 | AR70: Gas Domestic Shale | AS70: =AS41/AS$56 -> 0 | AT70: 0 | AU70: 0 | AV70: 0 | AW70: 0 | AX70: 0.002806285686 | AY70: 0.04660143386 | AZ70: 0.1855765733 | BA70: 0.3424186261 | DG70: -0.07827611491 | DH70: -0.07644152838 | DI70: -0.07645190316 | DJ70: -0.06902233369 | DK70: -0.06115555691 | DM70: -0.0900019398 | DN70: -0.08714149442 | DO70: -0.08439876563 | DP70: -0.07998794187 | DQ70: -0.07561138899
A71: Coastal Gas | D71: Coastal Gas | E71: =E42/E$56 -> 0 | F71: 0 | G71: 0.008148124561 | H71: 0.01420155072 | I71: 0.1161960311 | J71: 0.1231212809 | K71: 0.1483942486 | L71: 0.2841807083 | M71: 0.3858083119 | R71: Coastal Gas | S71: =S42/S$56 -> 0 | T71: 0 | U71: 0.008148289582 | V71: 0.008186575316 | W71: 0.08469638648 | X71: 0.1199411718 | Y71: 0.1472791165 | Z71: 0.2830610569 | AA71: 0.3809548573 | AE71: Coastal Gas | AF71: =AF42/AF$56 -> 0 | AG71: 0 | AH71: 0 | AI71: 0 | AJ71: 0 | AK71: 0 | AL71: 0 | AM71: 0 | AN71: 0 | AR71: Coastal Gas | AS71: =AS42/AS$56 -> 0 | AT71: 0 | AU71: 0 | AV71: 0 | AW71: 0 | AX71: 0 | AY71: 0 | AZ71: 0 | BA71: 0 | DG71: -0.06941739656 | DH71: -0.06350129359 | DI71: -0.05785105655 | DJ71: -0.02202582172 | DK71: -0.0193234469 | DM71: -0.07016873236 | DN71: -0.06620425963 | DO71: -0.02743103862 | DP71: -0.02586350218 | DQ71: -0.02432240154
A72: Nuclear | D72: Nuclear | E72: =E43/E$56 -> 0.0419580423 | F72: 0.03588572166 | G72: 0.03139086907 | H72: 0.03172578023 | I72: 0.08137749105 | J72: 0.09758803196 | K72: 0.1663071937 | L72: 0.1555525048 | M72: 0.1676747278 | R72: Nuclear | S72: =S43/S$56 -> 0.0419580423 | T72: 0.03588572166 | U72: 0.03139150481 | V72: 0.05866932582 | W72: 0.1693750468 | X72: 0.142867885 | Y72: 0.1968224365 | Z72: 0.1804327812 | AA72: 0.1864075607 | AE72: Nuclear | AF72: =AF43/AF$56 -> 0.0419580423 | AG72: 0.03588572166 | AH72: 0.03122246046 | AI72: 0.03054924604 | AJ72: 0.02965386319 | AK72: 0.0255081402 | AL72: 0.02181687686 | AM72: 0 | AN72: 0 | AR72: Nuclear | AS72: =AS43/AS$56 -> 0.0419580423 | AT72: 0.03588572166 | AU72: 0.03122246046 | AV72: 0.03058073825 | AW72: 0.03023618403 | AX72: 0.1446417994 | AY72: 0.1439649705 | AZ72: 0.1106674208 | BA72: 0.1068989988 | DG72: -0.0009935412421 | DH72: -0.000894744789 | DI72: -0.02952119449 | DJ72: -0.02644189615 | DK72: -0.02312962211 | DM72: -0.001007014698 | DN72: -0.000939594448 | DO72: -0.0009038968309 | DP72: -0.0008466175098 | DQ72: -0.0005508193089
A73: Solar Thermal | D73: Solar Thermal | E73: =E44/E$56 -> 0 | F73: 0.000964669944 | G73: 0.003375362289 | H73: 0.003411374243 | I73: 0.01332307781 | J73: 0.1212049332 | K73: 0.196518137 | L73: 0.1865501472 | M73: 0.1859131094 | R73: Solar Thermal | S73: =S44/S$56 -> 0 | T73: 0.000964669944 | U73: 0.00337543065 | V73: 0.003391290523 | W73: 0.00295593444 | X73: 0.1016393715 | Y73: 0.1797052789 | Z73: 0.1704762505 | AA73: 0.1676340893 | AE73: Solar Thermal | AF73: =AF44/AF$56 -> 0 | AG73: 0.000964669944 | AH73: 0.003357253838 | AI73: 0.003284865189 | AJ73: 0.003188587463 | AK73: 0.1392881611 | AL73: 0.2364269145 | AM73: 0.2396751753 | AN73: 0.2531029613 | AR73: Solar Thermal | AS73: =AS44/AS$56 -> 0 | AT73: 0.000964669944 | AU73: 0.003357253838 | AV73: 0.003288251448 | AW73: 0.003251202608 | AX73: 0.01882983978 | AY73: 0.1417489609 | AZ73: 0.1522091983 | BA73: 0.1679605916 | DG73: -0.1027234218 | DH73: -0.115640522 | DI73: -0.1338448991 | DJ73: -0.1218336022 | DK73: -0.1089078112 | DM73: -0.1356146525 | DN73: -0.1774255413 | DO73: -0.266281033 | DP73: -0.2430520877 | DQ73: -0.229881683
A74: Solar PV | D74: Solar PV | E74: =E45/E$56 -> 0 | F74: 0.02795613458 | G74: 0.02445449944 | H74: 0.02471540604 | I74: 0.06379102927 | J74: 0.1075281034 | K74: 0.1245349726 | L74: 0.1164536997 | M74: 0.09264270947 | R74: Solar PV | S74: =S45/S$56 -> 0 | T74: 0.02795613458 | U74: 0.02445499471 | V74: 0.02456989949 | W74: 0.03420607221 | X74: 0.08463468461 | Y74: 0.1039485643 | Z74: 0.09769942967 | AA74: 0.08396624519 | AE74: Solar PV | AF74: =AF45/AF$56 -> 0 | AG74: 0.02795613458 | AH74: 0.02432330371 | AI74: 0.02379884796 | AJ74: 0.02310131584 | AK74: 0.08844193111 | AL74: 0.117295036 | AM74: 0.1194217817 | AN74: 0.1145907731 | AR74: Solar PV | AS74: =AS45/AS$56 -> 0 | AT74: 0.02795613458 | AU74: 0.02432330371 | AV74: 0.0238233814 | AW74: 0.02355496256 | AX74: 0.06526484253 | AY74: 0.1004991033 | AZ74: 0.1037507029 | BA74: 0.106214171 | DG74: 0 | DH74: 0 | DI74: -0.1086197111 | DJ74: -0.1226997821 | DK74: -0.1096975956 | DM74: 0 | DN74: 0 | DO74: -0.1474820569 | DP74: -0.1404588101 | DQ74: -0.1334218177
A75: Wind | D75: Wind | E75: =E46/E$56 -> 0 | F75: 0.03760283388 | G75: 0.03289290504 | H75: 0.03957193949 | I75: 0.1170551532 | J75: 0.1102614858 | K75: 0.09361350064 | L75: 0.08377475723 | M75: 0.03067192324 | R75: Wind | S75: =S46/S$56 -> 0 | T75: 0.03760283388 | U75: 0.03289357121 | V75: 0.03304812567 | W75: 0.04772356218 | X75: 0.08886502596 | Y75: 0.09566933684 | Z75: 0.09287925689 | AA75: 0.05150012473 | AE75: Wind | AF75: =AF46/AF$56 -> 0 | AG75: 0.03760283388 | AH75: 0.03271643818 | AI75: 0.03201101081 | AJ75: 0.09229366329 | AK75: 0.08059886526 | AL75: 0.117295036 | AM75: 0.1085652561 | AN75: 0.05862341478 | AR75: Wind | AS75: =AS46/AS$56 -> 0 | AT75: 0.03760283388 | AU75: 0.03271643818 | AV75: 0.0320440099 | AW75: 0.09020461153 | AX75: 0.07158742357 | AY75: 0.109544026 | AZ75: 0.1152785587 | BA75: 0.07126599745 | DG75: -0.004022419383 | DH75: -0.0277402849 | DI75: -0.04412234313 | DJ75: -0.05510584432 | DK75: -0.0081261654 | DM75: 0 | DN75: 0 | DO75: -0.0331059238 | DP75: -0.06407923077 | DQ75: -0.06049125239
A76: Hydro domestic | D76: Hydro domestic | E76: =E47/E$56 -> 0.01511391872 | F76: 0.02257327668 | G76: 0.01974586938 | H76: 0.01995653931 | I76: 0.01570579438 | J76: 0.01290059402 | K76: 0.01095277973 | L76: 0.00952596529 | M76: 0.008795193806 | R76: Hydro domestic | S76: =S47/S$56 -> 0.01511391872 | T76: 0.02257327668 | U76: 0.01974626929 | V76: 0.01983904955 | W76: 0.01729221646 | X76: 0.01353803179 | Y76: 0.01119331257 | Z76: 0.009633752871 | AA76: 0.008684550588 | AE76: Hydro domestic | AF76: =AF47/AF$56 -> 0.01511391872 | AG76: 0.02257327668 | AH76: 0.01963993494 | AI76: 0.01921646134 | AJ76: 0.01865323665 | AK76: 0.01604544313 | AL76: 0.0137235194 | AM76: 0.01270213515 | AN76: 0.01236112247 | AR76: Hydro domestic | AS76: =AS47/AS$56 -> 0.01511391872 | AT76: 0.02257327668 | AU76: 0.01963993494 | AV76: 0.01923627096 | AW76: 0.01901953524 | AX76: 0.01716337803 | AY76: 0.01469799407 | AZ76: 0.01348759156 | BA76: 0.01302831515 | DG76: =-SUM(DG59:DG75) -> 1.166092124 | DH76: =-SUM(DH59:DH75) -> 1.277018892 | DI76: =-SUM(DI59:DI75) -> 1.726404234 | DJ76: =-SUM(DJ59:DJ75) -> 2.052037948 | DK76: =-SUM(DK59:DK75) -> 1.977247103 | DM76: =-SUM(DM59:DM75) -> 1.238284093 | DN76: =-SUM(DN59:DN75) -> 1.286794916 | DO76: =-SUM(DO59:DO75) -> 1.627297466 | DP76: =-SUM(DP59:DP75) -> 1.912004802 | DQ76: =-SUM(DQ59:DQ75) -> 2.129540442
A77: Pumped Storage | D77: Pumped Storage | E77: =E48/E$56 -> 0.03564177856 | F77: 0.05618237786 | G77: 0.04914527522 | H77: 0.04966960927 | I77: 0.03908997736 | J77: 0.03210814532 | K77: 0.02726025195 | L77: 0.01084494508 | M77: 0.01001298986 | R77: Pumped Storage | S77: =S48/S$56 -> 0.03564177856 | T77: 0.05618237786 | U77: 0.04914627054 | V77: 0.04937719029 | W77: 0.0430384057 | X77: 0.03369465712 | Y77: 0.02785891146 | Z77: 0.0109676571 | AA77: 0.00988702681 | AE77: Pumped Storage | AF77: =AF48/AF$56 -> 0.03564177856 | AG77: 0.05618237786 | AH77: 0.04888161616 | AI77: 0.04782763743 | AJ77: 0.04642583373 | AK77: 0.03993532539 | AL77: 0.03415631518 | AM77: 0.0144608923 | AN77: 0.01407266249 | AR77: Pumped Storage | AS77: =AS48/AS$56 -> 0.03564177856 | AT77: 0.05618237786 | AU77: 0.04888161616 | AV77: 0.04787694136 | AW77: 0.04733751024 | AX77: 0.04271774116 | AY77: 0.03658167437 | AZ77: 0.01535510422 | BA77: 0.01483223569 | DG77: =DG55 -> Maximum diversity | DK77: =LN(Y187) -> 6.243885245 | DM77: =DM55 -> Maximum diversity | DQ77: =LN(AY187) -> 5.96317302
A78: Biomass | D78: Biomass | E78: =E49/E$56 -> 0 | F78: 0.0001447004862 | G78: 0.0001265760811 | H78: 0.007058133224 | I78: 0.006711877843 | J78: 0.005513074289 | K78: 0.004657271679 | L78: 0.004070925279 | M78: 0.003758629778 | R78: Biomass | S78: =S49/S$56 -> 0 | T78: 0.0001447004862 | U78: 0.0001265786446 | V78: 0.0001271733899 | W78: 0.007389835991 | X78: 0.00578548359 | Y78: 0.004759549531 | Z78: 0.004116988348 | AA78: 0.003711346352 | AE78: Biomass | AF78: =AF49/AF$56 -> 0 | AG78: 0.0001447004862 | AH78: 0.0001258970142 | AI78: 0.00012318244 | AJ78: 0.0001195720254 | AK78: 0.0001028554009 | AL78: 5.864751668e-05 | AM78: 0 | AN78: 0 | AR78: Biomass | AS78: =AS49/AS$56 -> 0 | AT78: 0.0001447004862 | AU78: 0.0001258970142 | AV78: 0.0001233094247 | AW78: 0.0001219200932 | AX78: 0.00011002165 | AY78: 6.281193817e-05 | AZ78: 0 | BA78: 0
A79: Imported Electricity (Hydro) | D79: Imported Electricity (Hydro) | E79: =E50/E$56 -> 0.03383713062 | F79: 0.02894009789 | G79: 0.02531521679 | H79: 0.03837796002 | I79: 0.04027126736 | J79: 0.03307844598 | K79: 0.0280840504 | L79: 0.02442555186 | M79: 0.02255177884 | R79: Imported Electricity (Hydro) | S79: =S50/S$56 -> 0.03383713062 | T79: 0.02894009789 | U79: 0.02531572949 | V79: 0.03815201769 | W79: 0.04433901627 | X79: 0.0347129018 | Y79: 0.02870080127 | Z79: 0.02470193027 | AA79: 0.02226807828 | AE79: Imported Electricity (Hydro) | AF79: =AF50/AF$56 -> 0.03383713062 | AG79: 0.02894009789 | AH79: 0.04045490808 | AI79: 0.1121584341 | AJ79: 0.1764085962 | AK79: 0.1517460027 | AL79: 0.1297869554 | AM79: 0.1201274542 | AN79: 0.1169024071 | AR79: Imported Electricity (Hydro) | AS79: =AS50/AS$56 -> 0.03383713062 | AT79: 0.02894009789 | AU79: 0.04045490808 | AV79: 0.1112431877 | AW79: 0.179872779 | AX79: 0.162318609 | AY79: 0.1390028203 | AZ79: 0.1275557234 | BA79: 0.1232122248 | DG79: Security of primary resource supply (2040)
A80: Imported Electricity (Coal) | D80: Imported Electricity (Coal) | E80: =E51/E$56 -> 0 | F80: 0 | G80: 0 | H80: 0 | I80: 0.02953226315 | J80: 0.0242575274 | K80: 0.02059497059 | L80: 0.01791207162 | M80: 0.01653797138 | R80: Imported Electricity (Coal) | S80: =S51/S$56 -> 0 | T80: 0 | U80: 0 | V80: 0 | W80: 0.02386178021 | X80: 0.02545612835 | Y80: 0.02104725456 | Z80: 0.01811474912 | AA80: 0.0163299243 | AE80: Imported Electricity (Coal) | AF80: =AF51/AF$56 -> 0 | AG80: 0 | AH80: 0 | AI80: 0 | AJ80: 0.03507446233 | AK80: 0.03017091894 | AL80: 0.02580490847 | AM80: 0.02388435686 | AN80: 0.02324313645 | AR80: Imported Electricity (Coal) | AS80: =AS51/AS$56 -> 0 | AT80: 0 | AU80: 0 | AV80: 0 | AW80: 0.03576322893 | AX80: 0.03227301876 | AY80: 0.02763725401 | AZ80: 0.02536128347 | BA80: 0.02449768679 | DI80: Best | DK80: Worst
A81: Imported Electricity (Gas) | D81: Imported Electricity (Gas) | E81: =E52/E$56 -> 0 | F81: 0 | G81: 0.001815944943 | H81: 0.01212743569 | I81: 0.009544290632 | J81: 0.007839591917 | K81: 0.006655920132 | L81: 0.005788855953 | M81: 0.005344771734 | R81: Imported Electricity (Gas) | S81: =S52/S$56 -> 0 | T81: 0 | U81: 0.001795729046 | V81: 0.009924612047 | W81: 0.01050834715 | X81: 0.008226957958 | Y81: 0.006802090091 | Z81: 0.005854357639 | AA81: 0.005277534701 | AE81: Imported Electricity (Gas) | AF81: =AF52/AF$56 -> 0 | AG81: 0 | AH81: 0 | AI81: 0 | AJ81: 0.01133542866 | AK81: 0.009750692574 | AL81: 0.008339677354 | AM81: 0.007718989984 | AN81: 0.007511759201 | AR81: Imported Electricity (Gas) | AS81: =AS52/AS$56 -> 0 | AT81: 0 | AU81: 0 | AV81: 0 | AW81: 0.004619959043 | AX81: 0.01043005303 | AY81: 0.008931858126 | AZ81: 0.008196305817 | BA81: 0.007917207068 | BT81: 2010 | BV81: 2030 | CA81: 2040 | CG81: =BT81 -> 2010 | CI81: =BV81 -> 2030 | CL81: =CA81 -> 2040 | CP81: =CG81 -> 2010 | CR81: =BV81 -> 2030 | CU81: =CA81 -> 2040 | DG81: Resource composition | DI81: Opt. | DJ81: Forced | DK81: Opt. | DL81: Forced | DM81: Reserve to prod. Ratio | DO81: Abs. | DP81: Rel.
BT82: =C16 -> Best | BV82: Future 1 Free | BW82: Future 1 Focred | BX82: Future 2 Free | BY82: Future 2 Forced | CA82: =BV82 -> Future 1 Free | CB82: =BW82 -> Future 1 Focred | CC82: =BX82 -> Future 2 Free | CD82: =BY82 -> Future 2 Forced | CI82: =BV82 -> Future 1 Free | CJ82: =BW82 -> Future 1 Focred | CL82: =CA82 -> Future 1 Free | CM82: =CB82 -> Future 1 Focred | CR82: =BX82 -> Future 2 Free | CS82: =BY82 -> Future 2 Forced | CU82: =CC82 -> Future 2 Free | CV82: =CD82 -> Future 2 Forced | DG82: Coal | DI82: =SUM(K168,K169,K171,K183)/K187 -> 0.2758223174 | DM82: Coal
BS83: Existing Coal | BT83: =E36 -> 35.99999988 | BV83: =I36 -> 22.66000038 | BW83: =W36 -> 22.66000038 | BX83: =AJ36 -> 22.66000038 | BY83: =AW36 -> 22.66000038 | CA83: =K36 -> 8.360000044 | CB83: =Y36 -> 8.360000044 | CC83: =AL36 -> 8.360000044 | CD83: =AY36 -> 8.360000044 | CF83: =BS83 -> Existing Coal | CG83: =BT83 -> 35.99999988 | CI83: =BV83 -> 22.66000038 | CJ83: =BW83 -> 22.66000038 | CL83: =CA83 -> 8.360000044 | CM83: =CB83 -> 8.360000044 | CO83: =CF83 -> Existing Coal | CP83: 35.99999988 | CR83: =BX83 -> 22.66000038 | CS83: =BY83 -> 22.66000038 | CU83: =CC83 -> 8.360000044 | CV83: =CD83 -> 8.360000044 | DG83: Crude oil | DI83: =K169/K187 -> 0.1255094759 | DM83: Crude oil
BS84: New Coal | BT84: =E37 -> 0 | BV84: =I37 -> 8.663999557 | BW84: =W37 -> 8.663999557 | BX84: =AJ37 -> 8.663999557 | BY84: =AW37 -> 8.663999557 | CA84: =K37 -> 8.663999557 | CB84: =Y37 -> 8.663999557 | CC84: =AL37 -> 8.663999557 | CD84: =AY37 -> 8.663999557 | CF84: =BS84 -> New Coal | CG84: 0 | CI84: 8.663999557 | CJ84: 8.663999557 | CL84: 8.663999557 | CM84: 8.663999557 | CO84: New Coal | CP84: 0 | CR84: 8.663999557 | CS84: 8.663999557 | CU84: 8.663999557 | CV84: 8.663999557 | DG84: Natural gas | DM84: Natural gas
BS85: OCGT diesel | BT85: 2.460000038 | BV85: 3.1049999 | BW85: 3.1049999 | BX85: 3.1049999 | BY85: 3.1049999 | CA85: 1.004999995 | CB85: 1.004999995 | CC85: 1.004999995 | CD85: 1.004999995 | CF85: OCGT diesel | CG85: 2.460000038 | CI85: 3.1049999 | CJ85: 3.1049999 | CL85: 1.004999995 | CM85: 1.004999995 | CO85: OCGT diesel | CP85: 2.460000038 | CR85: 3.1049999 | CS85: 3.1049999 | CU85: 1.004999995 | CV85: 1.004999995 | DG85: Uranium | DM85: Uranium
BS86: Inland Gas Plants | BT86: 0.2599999905 | BV86: 0.3899999857 | BW86: 0.3899999857 | BX86: 0.3899999857 | BY86: 0.3899999857 | CA86: 0.3899999857 | CB86: 0.3899999857 | CC86: 0.337500006 | CD86: 0.337500006 | CF86: Inland Gas Plants | CG86: 0.2599999905 | CI86: 0.3899999857 | CJ86: 0.3899999857 | CL86: 0.3899999857 | CM86: 0.3899999857 | CO86: Inland Gas Plants | CP86: 0.2599999905 | CR86: 0.3899999857 | CS86: 0.3899999857 | CU86: 0.337500006 | CV86: 0.337500006 | DG86: Biomass | DM86: Biomass
BS87: Gas from N Moz | BT87: 0 | BV87: 0 | BW87: 0 | BX87: 0 | BY87: 0 | CA87: 0 | CB87: 0 | CC87: 0 | CD87: 0 | CF87: Gas from N Moz | CG87: 0 | CI87: 0 | CJ87: 0 | CL87: 0 | CM87: 0 | CO87: Gas from N Moz | CP87: 0 | CR87: 0 | CS87: 0 | CU87: 0 | CV87: 0 | DG87: Wind, solar | DM87: Wind, solar
A88: Capacity Share (aggregated) | E88: =E64 -> 2010 | F88: =F64 -> 2015 | G88: 2020 | H88: 2025 | I88: 2030 | J88: =J64 -> 2035 | K88: =K64 -> 2040 | L88: 2045 | M88: 2050 | S88: =S64 -> 2010 | T88: =T64 -> 2015 | U88: 2020 | V88: 2025 | W88: =W64 -> 2030 | X88: =X64 -> 2035 | Y88: 2040 | Z88: 2045 | AA88: 2050 | AF88: =AF64 -> 2010 | AG88: =AG64 -> 2015 | AH88: 2020 | AI88: 2025 | AJ88: =AJ64 -> 2030 | AK88: =AK64 -> 2035 | AL88: 2040 | AM88: 2045 | AN88: 2050 | AS88: =AS64 -> 2010 | AT88: =AT64 -> 2015 | AU88: 2020 | AV88: 2025 | AW88: 2030 | AX88: 2035 | AY88: =AY64 -> 2040 | AZ88: =AZ64 -> 2045 | BA88: 2050 | BS88: Gas Domestic Shale | BT88: 0 | BV88: 0 | BW88: 0 | BX88: 0.5411999822 | BY88: 0 | CA88: 0 | CB88: 0 | CC88: 6.809000015 | CD88: 3.709599972 | CF88: Gas Domestic Shale | CG88: 0 | CI88: 0 | CJ88: 0 | CL88: 0 | CM88: 0 | CO88: Gas Domestic Shale | CP88: 0 | CR88: 0.5411999822 | CS88: 0 | CU88: 6.809000015 | CV88: 3.709599972 | DG88: Other* | DM88: Average*
A89: Coal | D89: =$A89 -> Coal | E89: =(E36+E37)/E56 -> 0.8120911323 | F89: =(F36+F37)/F56 -> 0.7283007119 | G89: 0.7385292497 | H89: 0.6944534452 | I89: 0.4204857223 | J89: =(J36+J37)/J56 -> 0.2860623978 | K89: =(K36+K37)/K56 -> 0.1593676198 | L89: 0.09357591833 | M89: 0.06735615174 | R89: =$A89 -> Coal | S89: =(S36+S37)/S56 -> 0.8120911323 | T89: =(T36+T37)/T56 -> 0.7283007119 | U89: 0.7385442069 | V89: 0.6903650022 | W89: =(W36+W37)/W56 -> 0.4629584443 | X89: =(X36+X37)/X56 -> 0.3001971716 | Y89: 0.1628674752 | Z89: 0.09463474246 | AA89: 0.06048381158 | AE89: =$A89 -> Coal | AF89: =(AF36+AF37)/AF56 -> 0.8120911323 | AG89: =(AG36+AG37)/AG56 -> 0.7283007119 | AH89: 0.7345671206 | AI89: 0.6686999974 | AJ89: =(AJ36+AJ37)/AJ56 -> 0.4993965601 | AK89: =(AK36+AK37)/AK56 -> 0.3557974097 | AL89: 0.1996830646 | AM89: 0.1247762221 | AN89: 0.01707419634 | AR89: =$A89 -> Coal | AS89: =(AS36+AS37)/AS56 -> 0.8120911323 | AT89: =(AT36+AT37)/AT56 -> 0.7283007119 | AU89: 0.7345671206 | AV89: 0.669389338 | AW89: 0.5092033439 | AX89: 0.3805868991 | AY89: =(AY36+AY37)/AY56 -> 0.2138620869 | AZ89: =(AZ36+AZ37)/AZ56 -> 0.1324919552 | BA89: 0.0179957776 | BS89: LNG | BT89: 0 | BV89: 8.656000137 | BW89: 5.73059988 | BX89: 0 | BY89: 0 | CA89: 15.85179996 | CB89: 15.39459991 | CC89: 0 | CD89: 0 | CF89: LNG | CG89: 0 | CI89: 8.656000137 | CJ89: 5.73059988 | CL89: 15.85179996 | CM89: 15.39459991 | CO89: LNG | CP89: 0 | CR89: 0 | CS89: 0 | CU89: 0 | CV89: 0
A90: Gas and diesel | D90: =$A90 -> Gas and diesel | E90: =SUM(E38:E42)/E56 -> 0.06135799751 | F90: =SUM(F38:F42)/F56 -> 0.06144947514 | G90: 0.07320823204 | H90: 0.07893237733 | I90: 0.1631120556 | J90: =SUM(J38:J42)/J56 -> 0.1616576689 | K90: =SUM(K38:K42)/K56 -> 0.1614533318 | L90: 0.2915246576 | M90: 0.388740043 | R90: =$A90 -> Gas and diesel | S90: =SUM(S38:S42)/S56 -> 0.06135799751 | T90: =SUM(T38:T42)/T56 -> 0.06144947514 | U90: 0.0732097147 | V90: 0.07253631332 | W90: =SUM(W38:W42)/W56 -> 0.1363513384 | X90: =SUM(X38:X42)/X56 -> 0.1603817008 | Y90: 0.1606249888 | Z90: 0.2904881039 | AA90: 0.3838497074 | AE90: =$A90 -> Gas and diesel | AF90: =SUM(AF38:AF42)/AF56 -> 0.06135799751 | AG90: =SUM(AG38:AG42)/AG56 -> 0.06144947514 | AH90: 0.06471106708 | AI90: 0.06233031729 | AJ90: =SUM(AJ38:AJ42)/AJ56 -> 0.06434888052 | AK90: =SUM(AK38:AK42)/AK56 -> 0.06261425439 | AL90: 0.09561304877 | AM90: 0.2286677362 | AN90: 0.3825175668 | AR90: =$A90 -> Gas and diesel | AS90: =SUM(AS38:AS42)/AS56 -> 0.06135799751 | AT90: =SUM(AT38:AT42)/AT56 -> 0.06144947514 | AU90: 0.06471106708 | AV90: 0.06239457155 | AW90: 0.05681476286 | AX90: 0.05407637407 | AY90: =SUM(AY38:AY42)/AY56 -> 0.06346643965 | AZ90: =SUM(AZ38:AZ42)/AZ56 -> 0.1956461556 | BA90: 0.346176794 | BS90: Nuclear | BT90: 1.860000014 | BV90: 6.06219995 | BW90: 11.4600004 | BX90: 1.860000014 | BY90: 1.860000014 | CA90: 17.76530015 | CB90: 20.57319963 | CC90: 1.860000014 | CD90: 11.4600004 | CF90: Nuclear | CG90: 1.860000014 | CI90: 6.06219995 | CJ90: 11.4600004 | CL90: 17.76530015 | CM90: 20.57319963 | CO90: Nuclear | CP90: 1.860000014 | CR90: 1.860000014 | CS90: 1.860000014 | CU90: 1.860000014 | CV90: 11.4600004 | DG90: * Pumped storage
A91: Nuclear | D91: Nuclear | E91: =E72 -> 0.0419580423 | F91: =F72 -> 0.03588572166 | G91: 0.03139086907 | H91: 0.03172578023 | I91: 0.08137749105 | J91: =J72 -> 0.09758803196 | K91: =K72 -> 0.1663071937 | L91: 0.1555525048 | M91: 0.1676747278 | R91: Nuclear | S91: =S72 -> 0.0419580423 | T91: =T72 -> 0.03588572166 | U91: 0.03139150481 | V91: 0.05866932582 | W91: =W72 -> 0.1693750468 | X91: =X72 -> 0.142867885 | Y91: 0.1968224365 | Z91: 0.1804327812 | AA91: 0.1864075607 | AE91: Nuclear | AF91: =AF72 -> 0.0419580423 | AG91: =AG72 -> 0.03588572166 | AH91: 0.03122246046 | AI91: 0.03054924604 | AJ91: =AJ72 -> 0.02965386319 | AK91: =AK72 -> 0.0255081402 | AL91: 0.02181687686 | AM91: 0 | AN91: 0 | AR91: Nuclear | AS91: =AS72 -> 0.0419580423 | AT91: =AT72 -> 0.03588572166 | AU91: 0.03122246046 | AV91: 0.03058073825 | AW91: 0.03023618403 | AX91: 0.1446417994 | AY91: =AY72 -> 0.1439649705 | AZ91: =AZ72 -> 0.1106674208 | BA91: 0.1068989988 | BS91: Solar Thermal | BT91: 0 | BV91: 0.9925000221 | BW91: 0.200000003 | BX91: 0.200000003 | BY91: 0.200000003 | CA91: 20.99249955 | CB91: 18.78399964 | CC91: 20.15660019 | CD91: 11.28360005 | CF91: Solar Thermal | CG91: 0 | CI91: 0.9925000221 | CJ91: 0.200000003 | CL91: 20.99249955 | CM91: 18.78399964 | CO91: Solar Thermal | CP91: 0 | CR91: 0.200000003 | CS91: 0.200000003 | CU91: 20.15660019 | CV91: 11.28360005
A92: Hydro and pump storgage | D92: Hydro and pump storgage | E92: =SUM(E47:E48)/E56 -> 0.05075569728 | F92: =SUM(F47:F48)/F56 -> 0.07875565454 | G92: 0.0688911446 | H92: 0.06962614858 | I92: 0.05479577174 | J92: =SUM(J47:J48)/J56 -> 0.04500873934 | K92: =SUM(K47:K48)/K56 -> 0.03821303168 | L92: 0.02037091037 | M92: 0.01880818366 | R92: Hydro and pump storgage | S92: =SUM(S47:S48)/S56 -> 0.05075569728 | T92: =SUM(T47:T48)/T56 -> 0.07875565454 | U92: 0.06889253983 | V92: 0.06921623984 | W92: =SUM(W47:W48)/W56 -> 0.06033062216 | X92: =SUM(X47:X48)/X56 -> 0.04723268892 | Y92: 0.03905222403 | Z92: 0.02060140997 | AA92: 0.0185715774 | AE92: Hydro and pump storgage | AF92: =SUM(AF47:AF48)/AF56 -> 0.05075569728 | AG92: =SUM(AG47:AG48)/AG56 -> 0.07875565454 | AH92: 0.06852155109 | AI92: 0.06704409877 | AJ92: =SUM(AJ47:AJ48)/AJ56 -> 0.06507907037 | AK92: =SUM(AK47:AK48)/AK56 -> 0.05598076852 | AL92: 0.04787983459 | AM92: 0.02716302745 | AN92: 0.02643378496 | AR92: Hydro and pump storgage | AS92: =SUM(AS47:AS48)/AS56 -> 0.05075569728 | AT92: =SUM(AT47:AT48)/AT56 -> 0.07875565454 | AU92: 0.06852155109 | AV92: 0.06711321231 | AW92: 0.06635704548 | AX92: 0.05988111919 | AY92: =SUM(AY47:AY48)/AY56 -> 0.05127966844 | AZ92: =SUM(AZ47:AZ48)/AZ56 -> 0.02884269579 | BA92: 0.02786055084 | BS92: Solar PV | BT92: 0 | BV92: 4.752099991 | BW92: 2.314399958 | BX92: 1.449000001 | BY92: 1.449000001 | CA92: 13.30309963 | CB92: 10.86540031 | CC92: 10 | CD92: 8 | CF92: Solar PV | CG92: 0 | CI92: 4.752099991 | CJ92: 2.314399958 | CL92: 13.30309963 | CM92: 10.86540031 | CO92: Solar PV | CP92: 0 | CR92: 1.449000001 | CS92: 1.449000001 | CU92: 10 | CV92: 8
A93: CSP | D93: CSP | E93: =E73 -> 0 | F93: =F73 -> 0.000964669944 | G93: 0.003375362289 | H93: 0.003411374243 | I93: 0.01332307781 | J93: =J73 -> 0.1212049332 | K93: 0.196518137 | L93: 0.1865501472 | M93: 0.1859131094 | R93: CSP | S93: =S73 -> 0 | T93: =T73 -> 0.000964669944 | U93: 0.00337543065 | V93: 0.003391290523 | W93: =W73 -> 0.00295593444 | X93: 0.1016393715 | Y93: 0.1797052789 | Z93: 0.1704762505 | AA93: 0.1676340893 | AE93: CSP | AF93: =AF73 -> 0 | AG93: =AG73 -> 0.000964669944 | AH93: 0.003357253838 | AI93: 0.003284865189 | AJ93: =AJ73 -> 0.003188587463 | AK93: 0.1392881611 | AL93: 0.2364269145 | AM93: 0.2396751753 | AN93: 0.2531029613 | AR93: CSP | AS93: =AS73 -> 0 | AT93: =AT73 -> 0.000964669944 | AU93: 0.003357253838 | AV93: 0.003288251448 | AW93: 0.003251202608 | AX93: 0.01882983978 | AY93: =AY73 -> 0.1417489609 | AZ93: 0.1522091983 | BA93: 0.1679605916 | BS93: Wind | BT93: 0 | BV93: 8.720000267 | BW93: 3.229000092 | BX93: 5.789000034 | BY93: 5.548999786 | CA93: 10 | CB93: 10 | CC93: 10 | CD93: 8.720000267 | CF93: Wind | CG93: 0 | CI93: 8.720000267 | CJ93: 3.229000092 | CL93: 10 | CM93: 10 | CO93: Wind | CP93: 0 | CR93: 5.789000034 | CS93: 5.548999786 | CU93: 10 | CV93: 8.720000267
A94: PV | D94: PV | E94: =E74 -> 0 | F94: =F74 -> 0.02795613458 | G94: 0.02445449944 | H94: 0.02471540604 | I94: 0.06379102927 | J94: 0.1075281034 | K94: 0.1245349726 | L94: 0.1164536997 | M94: 0.09264270947 | R94: PV | S94: =S74 -> 0 | T94: =T74 -> 0.02795613458 | U94: 0.02445499471 | V94: 0.02456989949 | W94: 0.03420607221 | X94: 0.08463468461 | Y94: 0.1039485643 | Z94: 0.09769942967 | AA94: 0.08396624519 | AE94: PV | AF94: =AF74 -> 0 | AG94: =AG74 -> 0.02795613458 | AH94: 0.02432330371 | AI94: 0.02379884796 | AJ94: 0.02310131584 | AK94: 0.08844193111 | AL94: 0.117295036 | AM94: 0.1194217817 | AN94: 0.1145907731 | AR94: PV | AS94: =AS74 -> 0 | AT94: =AT74 -> 0.02795613458 | AU94: 0.02432330371 | AV94: 0.0238233814 | AW94: 0.02355496256 | AX94: 0.06526484253 | AY94: 0.1004991033 | AZ94: 0.1037507029 | BA94: 0.106214171 | BS94: Hydro domestic | BT94: 0.6700000167 | BV94: 1.170000017 | BW94: 1.170000017 | BX94: 1.170000017 | BY94: 1.170000017 | CA94: 1.170000017 | CB94: 1.170000017 | CC94: 1.170000017 | CD94: 1.170000017 | CF94: Hydro domestic | CG94: 0.6700000167 | CI94: 1.170000017 | CJ94: 1.170000017 | CL94: 1.170000017 | CM94: 1.170000017 | CO94: Hydro domestic | CP94: 0.6700000167 | CR94: 1.170000017 | CS94: 1.170000017 | CU94: 1.170000017 | CV94: 1.170000017
A95: Wind | D95: Wind | E95: =E75 -> 0 | F95: =F75 -> 0.03760283388 | G95: 0.03289290504 | H95: 0.03957193949 | I95: 0.1170551532 | J95: 0.1102614858 | K95: 0.09361350064 | L95: 0.08377475723 | M95: 0.03067192324 | R95: Wind | S95: =S75 -> 0 | T95: =T75 -> 0.03760283388 | U95: 0.03289357121 | V95: 0.03304812567 | W95: 0.04772356218 | X95: 0.08886502596 | Y95: 0.09566933684 | Z95: 0.09287925689 | AA95: 0.05150012473 | AE95: Wind | AF95: =AF75 -> 0 | AG95: =AG75 -> 0.03760283388 | AH95: 0.03271643818 | AI95: 0.03201101081 | AJ95: 0.09229366329 | AK95: 0.08059886526 | AL95: 0.117295036 | AM95: 0.1085652561 | AN95: 0.05862341478 | AR95: Wind | AS95: =AS75 -> 0 | AT95: =AT75 -> 0.03760283388 | AU95: 0.03271643818 | AV95: 0.0320440099 | AW95: 0.09020461153 | AX95: 0.07158742357 | AY95: 0.109544026 | AZ95: 0.1152785587 | BA95: 0.07126599745 | BS95: Pumped Storage | BT95: 1.580000043 | BV95: 2.91200006 | BW95: 2.91200006 | BX95: 2.91200006 | BY95: 2.91200006 | CA95: 2.91200006 | CB95: 2.91200006 | CC95: 2.91200006 | CD95: 2.91200006 | CF95: Pumped Storage | CG95: 1.580000043 | CI95: 2.91200006 | CJ95: 2.91200006 | CL95: 2.91200006 | CM95: 2.91200006 | CO95: Pumped Storage | CP95: 1.580000043 | CR95: 2.91200006 | CS95: 2.91200006 | CU95: 2.91200006 | CV95: 2.91200006
A96: Biomass | D96: Biomass | E96: =E78 -> 0 | F96: =F78 -> 0.0001447004862 | G96: 0.0001265760811 | H96: 0.007058133224 | I96: 0.006711877843 | J96: =J78 -> 0.005513074289 | K96: =K78 -> 0.004657271679 | L96: 0.004070925279 | M96: 0.003758629778 | R96: Biomass | S96: =S78 -> 0 | T96: =T78 -> 0.0001447004862 | U96: 0.0001265786446 | V96: 0.0001271733899 | W96: =W78 -> 0.007389835991 | X96: =X78 -> 0.00578548359 | Y96: 0.004759549531 | Z96: 0.004116988348 | AA96: 0.003711346352 | AE96: Biomass | AF96: =AF78 -> 0 | AG96: =AG78 -> 0.0001447004862 | AH96: 0.0001258970142 | AI96: 0.00012318244 | AJ96: =AJ78 -> 0.0001195720254 | AK96: =AK78 -> 0.0001028554009 | AL96: 5.864751668e-05 | AM96: 0 | AN96: 0 | AR96: Biomass | AS96: =AS78 -> 0 | AT96: =AT78 -> 0.0001447004862 | AU96: 0.0001258970142 | AV96: 0.0001233094247 | AW96: 0.0001219200932 | AX96: 0.00011002165 | AY96: =AY78 -> 6.281193817e-05 | AZ96: =AZ78 -> 0 | BA96: 0 | BS96: Biomass | BT96: 0 | BV96: 0.5 | BW96: 0.5 | BX96: 0.007499999832 | BY96: 0.007499999832 | CA96: 0.4975000024 | CB96: 0.4975000024 | CC96: 0.004999999888 | CD96: 0.004999999888 | CF96: Biomass | CG96: 0 | CI96: 0.5 | CJ96: 0.5 | CL96: 0.4975000024 | CM96: 0.4975000024 | CO96: Biomass | CP96: 0 | CR96: 0.007499999832 | CS96: 0.007499999832 | CU96: 0.004999999888 | CV96: 0.004999999888
A97: Imports | D97: Imports | E97: =SUM(E79:E81) -> 0.03383713062 | F97: =SUM(F79:F81) -> 0.02894009789 | G97: 0.02713116174 | H97: 0.0505053957 | I97: 0.07934782114 | J97: =SUM(J79:J81) -> 0.06517556529 | K97: =SUM(K79:K81) -> 0.05533494112 | L97: 0.04812647943 | M97: 0.04443452195 | R97: Imports | S97: =SUM(S79:S81) -> 0.03383713062 | T97: =SUM(T79:T81) -> 0.02894009789 | U97: 0.02711145854 | V97: 0.04807662973 | W97: =SUM(W79:W81) -> 0.07870914363 | X97: =SUM(X79:X81) -> 0.06839598811 | Y97: 0.05655014592 | Z97: 0.04867103703 | AA97: 0.04387553728 | AE97: Imports | AF97: =SUM(AF79:AF81) -> 0.03383713062 | AG97: =SUM(AG79:AG81) -> 0.02894009789 | AH97: 0.04045490808 | AI97: 0.1121584341 | AJ97: =SUM(AJ79:AJ81) -> 0.2228184872 | AK97: =SUM(AK79:AK81) -> 0.1916676143 | AL97: 0.1639315413 | AM97: 0.151730801 | AN97: 0.1476573027 | AR97: Imports | AS97: =SUM(AS79:AS81) -> 0.03383713062 | AT97: =SUM(AT79:AT81) -> 0.02894009789 | AU97: 0.04045490808 | AV97: 0.1112431877 | AW97: 0.220255967 | AX97: 0.2050216808 | AY97: =SUM(AY79:AY81) -> 0.1755719324 | AZ97: =SUM(AZ79:AZ81) -> 0.1611133127 | BA97: 0.1556271187 | BS97: Imported Electricity (Hydro) | BT97: 1.5 | BV97: 3.000000022 | BW97: 3.000000022 | BX97: 11.06499984 | BY97: 11.06499984 | CA97: 3.000000022 | CB97: 3.000000022 | CC97: 11.06499984 | CD97: 11.06499984 | CF97: Imported Electricity (Hydro) | CG97: 1.5 | CI97: 3.000000022 | CJ97: 3.000000022 | CL97: 3.000000022 | CM97: 3.000000022 | CO97: Imported Electricity (Hydro) | CP97: 1.5 | CR97: 11.06499984 | CS97: 11.06499984 | CU97: 11.06499984 | CV97: 11.06499984
BS98: Imported Electricity (Coal) | BT98: 0 | BV98: 2.200000048 | BW98: 1.614499986 | BX98: 2.200000048 | BY98: 2.200000048 | CA98: 2.200000048 | CB98: 2.200000048 | CC98: 2.200000048 | CD98: 2.200000048 | CF98: Imported Electricity (Coal) | CG98: 0 | CI98: 2.200000048 | CJ98: 1.614499986 | CL98: 2.200000048 | CM98: 2.200000048 | CO98: Imported Electricity (Coal) | CP98: 0 | CR98: 2.200000048 | CS98: 2.200000048 | CU98: 2.200000048 | CV98: 2.200000048
B99: \T | P99: \T | AC99: \T | AP99: \T | BS99: Imported Electricity (Gas) | BT99: 0 | BV99: 0.7110000253 | BW99: 0.7110000253 | BX99: 0.7110000253 | BY99: 0.2842000127 | CA99: 0.7110000253 | CB99: 0.7110000253 | CC99: 0.7110000253 | CD99: 0.7110000253 | CF99: Imported Electricity (Gas) | CG99: 0 | CI99: 0.7110000253 | CJ99: 0.7110000253 | CL99: 0.7110000253 | CM99: 0.7110000253 | CO99: Imported Electricity (Gas) | CP99: 0 | CR99: 0.7110000253 | CS99: 0.2842000127 | CU99: 0.7110000253 | CV99: 0.7110000253
B100: =$B$16 -> CGERUN10 | P100: =$P$24 -> CGERUN11 | AC100: =$AC$24 -> CGERUN20 | AP100: =$AP$24 -> CGERUN21 | BS100: Peak Demand (updated) | BT100: 38.14682578 | BV100: 56.59739706 | BW100: 56.71831621 | BX100: 51.12310007 | BY100: 50.20925976 | CA100: 77.15609071 | CB100: 77.28470277 | CC100: 60.62986551 | CD100: 58.28043673 | CF100: Peak Demand (updated) | CG100: 38.14682578 | CI100: 56.59739706 | CJ100: 56.71831621 | CL100: 77.15609071 | CM100: 77.28470277 | CO100: Peak Demand (updated) | CP100: 38.14682578 | CR100: =BX100 -> 51.12310007 | CS100: =BY100 -> 50.20925976 | CU100: 60.62986551 | CV100: 58.28043673
B101: VAR_NCAP.L | E101: =E34 -> Best | P101: =$B$101 -> VAR_NCAP.L | S101: =S34 -> Best Forced | AC101: =$B$101 -> VAR_NCAP.L | AF101: =AF34 -> Worst | AP101: =$B$101 -> VAR_NCAP.L | AS101: =AS34 -> Worst Forced
A102: New Capacity (GW) | E102: =E64 -> 2010 | F102: =F64 -> 2015 | G102: 2020 | H102: 2025 | I102: 2030 | J102: =J64 -> 2035 | K102: =K64 -> 2040 | L102: 2045 | M102: 2050 | S102: =S64 -> 2010 | T102: =T64 -> 2015 | U102: 2020 | V102: 2025 | W102: =W64 -> 2030 | X102: =X64 -> 2035 | Y102: 2040 | Z102: 2045 | AA102: 2050 | AF102: =AF64 -> 2010 | AG102: =AG64 -> 2015 | AH102: 2020 | AI102: 2025 | AJ102: =AJ64 -> 2030 | AK102: =AK64 -> 2035 | AL102: 2040 | AM102: 2045 | AN102: 2050 | AS102: =AS64 -> 2010 | AT102: =AT64 -> 2015 | AU102: 2020 | AV102: 2025 | AW102: 2030 | AX102: 2035 | AY102: =AY64 -> 2040 | AZ102: =AZ64 -> 2045 | BA102: 2050
A103: =A65 -> Existing Coal | B103: =B36 -> ETCL*E,ETCL*E-A | D103: =$A103 -> Existing Coal | P103: =$B103 -> ETCL*E,ETCL*E-A | R103: =$D103 -> Existing Coal | AC103: =$B103 -> ETCL*E,ETCL*E-A | AE103: =$D103 -> Existing Coal | AP103: =$B103 -> ETCL*E,ETCL*E-A | AR103: =$D103 -> Existing Coal
A104: =A66 -> New Coal | B104: =B37 -> ETCL*N,ETCL*N-A | D104: =$A104 -> New Coal | E104: 0 | F104: 0.7220000029 | G104: 1.444000006 | H104: 0 | I104: 0 | J104: 0 | K104: 0 | L104: 0 | M104: 8.293800354 | P104: =$B104 -> ETCL*N,ETCL*N-A | R104: =$D104 -> New Coal | S104: 0 | T104: 0.7220000029 | U104: 1.444000006 | V104: 0 | W104: 0 | X104: 0 | Y104: 0 | Z104: 0 | AA104: 7.48210001 | AC104: =$B104 -> ETCL*N,ETCL*N-A | AE104: =$D104 -> New Coal | AF104: 0 | AG104: 0.7220000029 | AH104: 1.444000006 | AI104: 0 | AJ104: 0 | AK104: 0 | AL104: 0 | AM104: 0 | AN104: 0.9496999979 | AP104: =$B104 -> ETCL*N,ETCL*N-A | AR104: =$D104 -> New Coal | AS104: 0 | AT104: 0.7220000029 | AU104: 1.444000006 | AV104: 0 | AW104: 0 | AX104: 0 | AY104: 0 | AZ104: 0 | BA104: 0.9496999979
A105: OCGT diesel | B105: ETO*GT* | D105: OCGT diesel | E105: 0 | F105: 0.3350000083 | G105: 0 | H105: 0 | I105: 0 | J105: 0 | K105: 0 | L105: 0 | M105: 0 | P105: ETO*GT* | R105: OCGT diesel | S105: 0 | T105: 0.3350000083 | U105: 0 | V105: 0 | W105: 0 | X105: 0 | Y105: 0 | Z105: 0 | AA105: 0 | AC105: ETO*GT* | AE105: OCGT diesel | AF105: 0 | AG105: 0.3350000083 | AH105: 0 | AI105: 0 | AJ105: 0 | AK105: 0 | AL105: 0 | AM105: 0 | AN105: 0 | AP105: ETO*GT* | AR105: OCGT diesel | AS105: 0 | AT105: 0.3350000083 | AU105: 0 | AV105: 0 | AW105: 0 | AX105: 0 | AY105: 0 | AZ105: 0 | BA105: 0
A106: Inland Gas Plants | B106: ETGAS* | D106: Inland Gas Plants | E106: 0.2599999905 | F106: 0 | G106: 0 | H106: 0 | I106: 0 | J106: 0 | K106: 0.3467000127 | L106: 0.01930000074 | M106: 0.02400000021 | P106: ETGAS* | R106: Inland Gas Plants | S106: 0.2599999905 | T106: 0 | U106: 0 | V106: 0 | W106: 0 | X106: 0 | Y106: 0.3467000127 | Z106: 0.01930000074 | AA106: 0.02400000021 | AC106: ETGAS* | AE106: Inland Gas Plants | AF106: 0.2599999905 | AG106: 0 | AH106: 0 | AI106: 0 | AJ106: 0 | AK106: 0 | AL106: 0.2940999866 | AM106: 0.04329999909 | AN106: 0 | AP106: ETGAS* | AR106: Inland Gas Plants | AS106: 0.2599999905 | AT106: 0 | AU106: 0 | AV106: 0 | AW106: 0 | AX106: 0 | AY106: 0.2940999866 | AZ106: 0.04329999909 | BA106: 0
A107: Gas from N Moz | B107: ETGRM* | D107: Gas from N Moz | P107: ETGRM* | R107: Gas from N Moz | AC107: ETGRM* | AE107: Gas from N Moz | AP107: ETGRM* | AR107: Gas from N Moz
A108: Gas Domestic Shale | B108: ETGIH* | D108: Gas Domestic Shale | P108: ETGIH* | R108: Gas Domestic Shale | AC108: ETGIH* | AE108: Gas Domestic Shale | AF108: 0 | AG108: 0 | AH108: 0 | AI108: 0 | AJ108: 0.5411999822 | AK108: 0.1174999997 | AL108: 0.7874000072 | AM108: 13.38019991 | AN108: 15.72069991 | AP108: ETGIH* | AR108: Gas Domestic Shale | AS108: 0 | AT108: 0 | AU108: 0 | AV108: 0 | AW108: 0 | AX108: 0 | AY108: 0.658100009 | AZ108: 12.38850021 | BA108: 14.65260017
A109: Coastal Gas | B109: ETGIC* | D109: Coastal Gas | E109: 0 | F109: 0 | G109: 0 | H109: 0.3499000072 | I109: 1.046499968 | J109: 0.5404999852 | K109: 0.05059999973 | L109: 19.05190086 | M109: 18.97529936 | P109: ETGIC* | R109: Coastal Gas | S109: 0 | T109: 0 | U109: 0 | V109: 0 | W109: 1.472300053 | X109: 0.6654000282 | Y109: 0.03680000082 | Z109: 18.98270035 | AA109: 18.48599949 | AC109: ETGIC* | AE109: Coastal Gas | AP109: ETGIC* | AR109: Coastal Gas
A110: Nuclear | B110: ETNUC* | D110: Nuclear | E110: 0 | F110: 0 | G110: 0 | H110: 0 | I110: 1.817000031 | J110: 0.7646999955 | K110: 2.594399929 | L110: 3.200000048 | M110: 3.200000048 | P110: ETNUC* | R110: Nuclear | S110: 0 | T110: 0 | U110: 0 | V110: 1.600000024 | W110: 1.600000024 | X110: 0.5403000116 | Y110: 2.49819994 | Z110: 3.200000048 | AA110: 3.200000048 | AC110: ETNUC* | AE110: Nuclear | AP110: ETNUC* | AR110: Nuclear | AS110: 0 | AT110: 0 | AU110: 0 | AV110: 0 | AW110: 0 | AX110: 1.600000024 | AY110: 0 | AZ110: 0 | BA110: 0
A111: Solar Thermal | B111: ERSOLT* | D111: Solar Thermal | E111: 0 | F111: 0.05000000075 | G111: 0 | H111: 0 | I111: 0.7925000191 | J111: 2 | K111: 2 | L111: 2 | M111: 2 | P111: ERSOLT* | R111: Solar Thermal | S111: 0 | T111: 0.05000000075 | U111: 0 | V111: 0 | W111: 0 | X111: 2 | Y111: 2 | Z111: 2 | AA111: 2 | AC111: ERSOLT* | AE111: Solar Thermal | AF111: 0 | AG111: 0.05000000075 | AH111: 0 | AI111: 0 | AJ111: 0 | AK111: 2 | AL111: 2 | AM111: 2 | AN111: 2 | AP111: ERSOLT* | AR111: Solar Thermal | AS111: 0 | AT111: 0.05000000075 | AU111: 0 | AV111: 0 | AW111: 0 | AX111: 0.5081999898 | AY111: 2 | AZ111: 2 | BA111: 2
A112: Solar PV | B112: ERSOLP* | D112: Solar PV | E112: 0 | F112: 0.4009999931 | G112: 0 | H112: 0 | I112: 1 | J112: 1 | K112: 1 | L112: 1 | M112: 1 | P112: ERSOLP* | R112: Solar PV | S112: 0 | T112: 0.4009999931 | U112: 0 | V112: 0 | W112: 0.8654000163 | X112: 1 | Y112: 1 | Z112: 1 | AA112: 1 | AC112: ERSOLP* | AE112: Solar PV | AF112: 0 | AG112: 0.4009999931 | AH112: 0 | AI112: 0 | AJ112: 0 | AK112: 1 | AL112: 1 | AM112: 1 | AN112: 1 | AP112: ERSOLP* | AR112: Solar PV | AS112: 0 | AT112: 0.4009999931 | AU112: 0 | AV112: 0 | AW112: 0 | AX112: 1 | AY112: 1 | AZ112: 1 | BA112: 1
A113: Wind | B113: ERWND* | D113: Wind | E113: 0 | F113: 0.753000021 | G113: 0 | H113: 0.3709999919 | I113: 1.279999971 | J113: 0.753000021 | K113: 0 | L113: 1.280000001 | M113: 1.279999971 | P113: ERWND* | R113: Wind | S113: 0 | T113: 0.753000021 | U113: 0 | V113: 0 | W113: 1.279999971 | X113: 1.279999971 | Y113: 0.8583999872 | Z113: 1.279999971 | AA113: 1.279999971 | AC113: ERWND* | AE113: Wind | AF113: 0 | AG113: 0.753000021 | AH113: 0 | AI113: 0 | AJ113: 1.279999971 | AK113: 0 | AL113: 1.279999971 | AM113: 0 | AN113: 1.279999971 | AP113: ERWND* | AR113: Wind | AS113: 0 | AT113: 0.753000021 | AU113: 0 | AV113: 0 | AW113: 1.279999971 | AX113: 0 | AY113: 1.279999971 | AZ113: 1.279999971 | BA113: 1.279999971
A114: Hydro domestic | B114: ERHYD-E,ERHYD-N | D114: Hydro domestic | E114: 0 | F114: 0.06069999933 | G114: 0 | H114: 0 | I114: 0 | J114: 0 | K114: 0 | L114: 0 | M114: 0 | P114: ERHYD-E,ERHYD-N | R114: Hydro domestic | S114: 0 | T114: 0.06069999933 | U114: 0 | V114: 0 | W114: 0 | X114: 0 | Y114: 0 | Z114: 0 | AA114: 0 | AC114: ERHYD-E,ERHYD-N | AE114: Hydro domestic | AF114: 0 | AG114: 0.06069999933 | AH114: 0 | AI114: 0 | AJ114: 0 | AK114: 0 | AL114: 0 | AM114: 0 | AN114: 0 | AP114: ERHYD-E,ERHYD-N | AR114: Hydro domestic | AS114: 0 | AT114: 0.06069999933 | AU114: 0 | AV114: 0 | AW114: 0 | AX114: 0 | AY114: 0 | AZ114: 0 | BA114: 0
A115: Pumped Storage | B115: EP*T* | D115: Pumped Storage | E115: 0 | F115: 1.332000017 | G115: 0 | H115: 0 | I115: 0 | J115: 0 | K115: 0 | L115: 0 | M115: 0 | P115: EP*T* | R115: Pumped Storage | S115: 0 | T115: 1.332000017 | U115: 0 | V115: 0 | W115: 0 | X115: 0 | Y115: 0 | Z115: 0 | AA115: 0 | AC115: EP*T* | AE115: Pumped Storage | AF115: 0 | AG115: 1.332000017 | AH115: 0 | AI115: 0 | AJ115: 0 | AK115: 0 | AL115: 0 | AM115: 0 | AN115: 0 | AP115: EP*T* | AR115: Pumped Storage | AS115: 0 | AT115: 1.332000017 | AU115: 0 | AV115: 0 | AW115: 0 | AX115: 0 | AY115: 0 | AZ115: 0 | BA115: 0
A116: Biomass | B116: E*BI* | D116: Biomass | E116: 0 | F116: 0 | G116: 0 | H116: 0.4063000083 | I116: 0 | J116: 0 | K116: 0 | L116: 0.007499999832 | M116: 0.2206999958 | P116: E*BI* | R116: Biomass | S116: 0 | T116: 0 | U116: 0 | V116: 0 | W116: 0 | X116: 0 | Y116: 0 | Z116: 0.007499999832 | AA116: 0.1492000073 | AC116: E*BI* | AE116: Biomass | AF116: 0 | AG116: 0 | AH116: 0 | AI116: 0 | AJ116: 0 | AK116: 0 | AL116: 0 | AM116: 0 | AN116: 0 | AP116: E*BI* | AR116: Biomass | AS116: 0 | AT116: 0 | AU116: 0 | AV116: 0 | AW116: 0 | AX116: 0 | AY116: 0 | AZ116: 0 | BA116: 0
A117: Imported Electricity (Hydro) | B117: ERHYD*I | D117: Imported Electricity (Hydro) | E117: 0 | F117: 0 | G117: 0 | H117: 0.150000006 | I117: 0.150000006 | J117: 0 | K117: 0 | L117: 0 | M117: 0 | P117: ERHYD*I | R117: Imported Electricity (Hydro) | S117: 0 | T117: 0 | U117: 0 | V117: 0.1499999966 | W117: 0.150000006 | X117: 0 | Y117: 0 | Z117: 0 | AA117: 0 | AC117: ERHYD*I | AE117: Imported Electricity (Hydro) | AF117: 0 | AG117: 0 | AH117: 0.75 | AI117: 0.143900007 | AJ117: 0 | AK117: 0 | AL117: 0 | AM117: 0 | AN117: 0 | AP117: ERHYD*I | AR117: Imported Electricity (Hydro) | AS117: 0 | AT117: 0 | AU117: 0.75 | AV117: 0.124499999 | AW117: 0 | AX117: 0 | AY117: 0 | AZ117: 0 | BA117: 0
A118: Imported Electricity (Coal) | B118: ETCRB* | D118: Imported Electricity (Coal) | E118: 0 | F118: 0 | G118: 0 | H118: 0 | I118: 0 | J118: 0 | K118: 0 | L118: 0 | M118: 0.7338000238 | P118: ETCRB* | R118: Imported Electricity (Coal) | S118: 0 | T118: 0 | U118: 0 | V118: 0 | W118: 0.6144999862 | X118: 0 | Y118: 0 | Z118: 0 | AA118: 0.2010999955 | AC118: ETCRB* | AE118: Imported Electricity (Coal) | AF118: 0 | AG118: 0 | AH118: 0 | AI118: 0 | AJ118: 1.200000048 | AK118: 0 | AL118: 0 | AM118: 0 | AN118: 0.2741999924 | AP118: ETCRB* | AR118: Imported Electricity (Coal) | AS118: 0 | AT118: 0 | AU118: 0 | AV118: 0 | AW118: 1.200000048 | AX118: 0 | AY118: 0 | AZ118: 0 | BA118: 0.2460999936
A119: Imported Electricity (Gas) | B119: ETGRN* | D119: Imported Electricity (Gas) | E119: 0 | F119: 0 | G119: 0.03999999911 | H119: 0.1967000067 | I119: 0 | J119: 0 | K119: 0 | L119: 0 | M119: 0.4237000048 | P119: ETGRN* | R119: Imported Electricity (Gas) | S119: 0 | T119: 0 | U119: 0.03869999945 | V119: 0.07710000128 | W119: 0 | X119: 0 | Y119: 0 | Z119: 0 | AA119: 0.4101999998 | AC119: ETGRN* | AE119: Imported Electricity (Gas) | AF119: 0 | AG119: 0 | AH119: 0 | AI119: 0 | AJ119: 0.7110000253 | AK119: 0 | AL119: 0 | AM119: 0 | AN119: 0.05469999835 | AP119: ETGRN* | AR119: Imported Electricity (Gas) | AS119: 0 | AT119: 0 | AU119: 0 | AV119: 0 | AW119: 0.2842000127 | AX119: 0 | AY119: 0 | AZ119: 0 | BA119: 0.02190000005
B141: \T | P141: \T | AC141: \T | AP141: \T
B142: =$B$16 -> CGERUN10 | E142: =E145/3.6 -> 234.7662507 | P142: =$P$24 -> CGERUN11 | AC142: =$AC$24 -> CGERUN20 | AP142: =$AP$24 -> CGERUN21
B143: Flow:ELC* | P143: Flow:ELC* | AC143: Flow:ELC*,Flow:PWREP* | AP143: Flow:ELC*
A144: Production (PJ) | E144: =E$26 -> 2010 | F144: 2015 | G144: 2020 | H144: 2025 | I144: 2030 | J144: 2035 | K144: 2040 | L144: 2045 | M144: 2050 | S144: =S$26 -> 2010 | T144: =T$26 -> 2015 | U144: 2020 | V144: 2025 | W144: 2030 | X144: 2035 | Y144: 2040 | Z144: 2045 | AA144: 2050 | AF144: =AF$26 -> 2010 | AG144: =AG$26 -> 2015 | AH144: 2020 | AI144: 2025 | AJ144: 2030 | AK144: 2035 | AL144: 2040 | AM144: 2045 | AN144: 2050 | AS144: =AS$26 -> 2010 | AT144: =AT$26 -> 2015 | AU144: 2020 | AV144: 2025 | AW144: 2030 | AX144: 2035 | AY144: 2040 | AZ144: 2045 | BA144: 2050
A145: =A36 -> Existing Coal | B145: ETCL*E,ETCL*E-A | D145: =D36 -> Existing Coal | E145: 845.1585027 | F145: 781.3737977 | G145: 727.5035009 | H145: 772.2223005 | I145: 578.8308042 | J145: 441.4031009 | K145: 209.7174981 | L145: 98.08960009 | M145: 0 | P145: =P36 -> ETCL*E,ETCL*E-A | R145: =R36 -> Existing Coal | S145: 845.1585027 | T145: 781.4498053 | U145: 726.7874041 | V145: 758.1505966 | W145: 571.167507 | X145: 441.4031033 | Y145: 209.7174969 | Z145: 98.08960009 | AA145: 0 | AC145: =AC36 -> ETCL*E,ETCL*E-A | AE145: =AE36 -> Existing Coal | AF145: 845.1585027 | AG145: 782.8421941 | AH145: 688.4706993 | AI145: 710.7677107 | AJ145: 578.8308083 | AK145: 441.4028003 | AL145: 213.5493975 | AM145: 98.08960044 | AN145: 0 | AP145: =AP36 -> ETCL*E,ETCL*E-A | AR145: =AR36 -> Existing Coal | AS145: 845.1585027 | AT145: 782.9426005 | AU145: 688.1501951 | AV145: 704.6770048 | AW145: 578.8307025 | AX145: 441.4029986 | AY145: 213.549197 | AZ145: 98.08959997 | BA145: 0
A146: New Coal | B146: ETCL*N,ETCL*N-A | D146: New Coal | E146: 0 | F146: 19.35360026 | G146: 193.5363016 | H146: 232.2435985 | I146: 232.2435017 | J146: 232.2435999 | K146: 232.2434995 | L146: 205.1485996 | M146: 242.0172997 | P146: ETCL*N,ETCL*N-A | R146: New Coal | S146: 0 | T146: 19.35360026 | U146: 193.5362024 | V146: 232.2435007 | W146: 232.2433991 | X146: 232.2434988 | Y146: 232.2434983 | Z146: 205.1485996 | AA146: 220.0795033 | AC146: ETCL*N,ETCL*N-A | AE146: New Coal | AF146: 0 | AG146: 19.35360026 | AH146: 193.5362007 | AI146: 232.243598 | AJ146: 232.2436013 | AK146: 232.2433993 | AL146: 232.2435007 | AM146: 205.1485997 | AN146: 43.32160005 | AP146: ETCL*N,ETCL*N-A | AR146: New Coal | AS146: 0 | AT146: 19.35360026 | AU146: 193.5363008 | AV146: 232.243597 | AW146: 232.2435002 | AX146: 232.2434994 | AY146: 232.2434988 | AZ146: 205.1487987 | BA146: 43.32169992
A147: OCGT diesel | B147: ETO*GT* | D147: OCGT diesel | E147: 3.878999934 | F147: 7.068299867 | G147: 5.463700019 | H147: 5.369099975 | I147: 4.896100044 | J147: 4.895900011 | K147: 1.584699988 | L147: 0.8452000022 | M147: 0 | P147: ETO*GT* | R147: OCGT diesel | S147: 3.878899932 | T147: 7.068999961 | U147: 5.463599991 | V147: 5.369099975 | W147: 4.895999996 | X147: 4.896000028 | Y147: 1.584699988 | Z147: 0.8452000022 | AA147: 0 | AC147: ETO*GT* | AE147: OCGT diesel | AF147: 3.878999934 | AG147: 7.080299847 | AH147: 7.80399996 | AI147: 5.369100012 | AJ147: 4.895900115 | AK147: 4.896000028 | AL147: 1.584700048 | AM147: 0.8452000022 | AN147: 0 | AP147: ETO*GT* | AR147: OCGT diesel | AS147: 3.878899932 | AT147: 7.081099898 | AU147: 7.801399887 | AV147: 5.369000038 | AW147: 4.896099985 | AX147: 4.89609997 | AY147: 1.58480002 | AZ147: 0.8453000039 | BA147: 0
A148: Inland Gas Plants | B148: ETGAS* | D148: Inland Gas Plants | E148: 4.203999989 | F148: 6.472900122 | G148: 6.964200109 | H148: 7.654900104 | I148: 9.449800171 | J148: 9.449900061 | K148: 9.449900094 | L148: 9.450000167 | M148: 9.449800193 | P148: ETGAS* | R148: Inland Gas Plants | S148: 4.203999989 | T148: 6.472900122 | U148: 6.964200109 | V148: 6.964200109 | W148: 9.449800171 | X148: 9.449800119 | Y148: 9.449900061 | Z148: 9.450000167 | AA148: 9.449800193 | AC148: ETGAS* | AE148: Inland Gas Plants | AF148: 4.203999989 | AG148: 6.472900122 | AH148: 6.472900122 | AI148: 9.449800171 | AJ148: 9.449800171 | AK148: 9.449800141 | AL148: 9.449699834 | AM148: 9.449799791 | AN148: 9.449799806 | AP148: ETGAS* | AR148: Inland Gas Plants | AS148: 4.203999989 | AT148: 6.472900122 | AU148: 6.472900122 | AV148: 9.449800171 | AW148: 9.449800089 | AX148: 9.449800089 | AY148: 9.449799821 | AZ148: 9.449699834 | BA148: 9.449799806
A149: Gas from N Moz | B149: ETGRM* | D149: Gas from N Moz | P149: ETGRM* | R149: Gas from N Moz | AC149: ETGRM* | AE149: Gas from N Moz | AP149: ETGRM* | AR149: Gas from N Moz
A150: Gas Domestic Shale | B150: ETGIH* | D150: Gas Domestic Shale | P150: ETGIH* | R150: Gas Domestic Shale | AC150: ETGIH* | AE150: Gas Domestic Shale | AF150: 0 | AG150: 0 | AH150: 0 | AI150: 0 | AJ150: 0.8533000126 | AK150: 1.688199978 | AL150: 35.67950019 | AM150: 313.1789992 | AN150: 719.2387003 | AP150: ETGIH* | AR150: Gas Domestic Shale | AS150: 0 | AT150: 0 | AU150: 0 | AV150: 0 | AW150: 0 | AX150: 0.3017000034 | AY150: 5.849299908 | AZ150: 224.9998011 | BA150: 598.0816994
A151: Coastal Gas | B151: ETGIC* | D151: Coastal Gas | E151: 0 | F151: 0 | G151: 2.298500016 | H151: 3.716200009 | I151: 32.88130015 | J151: 33.12790027 | K151: 47.90400016 | L151: 396.5249006 | M151: 785.5328975 | P151: ETGIC* | R151: Coastal Gas | S151: 0 | T151: 0 | U151: 2.298800036 | V151: 2.298800036 | W151: 15.98599994 | X151: 30.60320015 | Y151: 46.46210019 | Z151: 381.5918002 | AA151: 760.7472901 | AC151: ETGIC* | AE151: Coastal Gas | AP151: ETGIC* | AR151: Coastal Gas
A152: Nuclear | B152: ETNUC* | D152: Nuclear | E152: 47.53439999 | F152: 47.53450012 | G152: 47.53439999 | H152: 47.53450012 | I152: 166.8025007 | J152: 245.9436989 | K152: 498.9660034 | L152: 542.2552948 | M152: 633.0789948 | P152: ETNUC* | R152: Nuclear | S152: 47.53439999 | T152: 47.53450012 | U152: 47.53439999 | V152: 92.94630051 | W152: 320.0056076 | X152: 345.1839972 | Y152: 578.6600866 | Z152: 621.9493866 | AA152: 712.7731018 | AC152: ETNUC* | AE152: Nuclear | AF152: 47.53439999 | AG152: 47.53450012 | AH152: 47.53450012 | AI152: 47.53439999 | AJ152: 47.53450012 | AK152: 47.53439999 | AL152: 47.53449917 | AM152: 0 | AN152: 0 | AP152: ETNUC* | AR152: Nuclear | AS152: 47.53439999 | AT152: 47.53450012 | AU152: 47.53450012 | AV152: 47.53439999 | AW152: 47.53450012 | AX152: 236.7504997 | AY152: 274.5937033 | AZ152: 227.0592003 | BA152: 227.0593033
A153: Solar Thermal | B153: ERSOLT* | D153: Solar Thermal | E153: 0 | F153: 0.6306000039 | G153: 2.151100005 | H153: 2.459900014 | I153: 19.9619 | J153: 240.7040008 | K153: 461.4461974 | L153: 504.6153996 | M153: 545.9281979 | P153: ERSOLT* | R153: Solar Thermal | S153: 0 | T153: 0.6306000039 | U153: 2.151100005 | V153: 2.437700014 | W153: 2.469200014 | X153: 191.9539009 | Y153: 412.6958021 | Z153: 455.8649046 | AA153: 498.5232038 | AC153: ERSOLT* | AE153: Solar Thermal | AF153: 0 | AG153: 0.6306000039 | AH153: 2.459900014 | AI153: 2.469200014 | AJ153: 2.469200014 | AK153: 222.253198 | AL153: 442.9949969 | AM153: 486.1643975 | AN153: 528.8224926 | AP153: ERSOLT* | AR153: Solar Thermal | AS153: 0 | AT153: 0.6306000039 | AU153: 2.459900014 | AV153: 2.469200014 | AW153: 2.469200014 | AX153: 26.38859996 | AY153: 247.1306013 | AZ153: 290.2999008 | BA153: 332.9581985
A154: Solar PV | B154: ERSOLP* | D154: Solar PV | E154: 0 | F154: 12.24360014 | G154: 11.8351002 | H154: 12.24360014 | I154: 40.15409984 | J154: 82.40290099 | K154: 112.4075999 | L154: 120.857399 | M154: 104.1347007 | P154: ERSOLP* | R154: Solar PV | S154: 0 | T154: 12.24360014 | U154: 11.83950021 | V154: 12.15660014 | W154: 19.55609958 | X154: 61.80449967 | Y154: 91.80980003 | Z154: 100.2593001 | AA154: 95.58439896 | AC154: ERSOLP* | AE154: Solar PV | AF154: 0 | AG154: 12.24360014 | AH154: 12.24360014 | AI154: 12.24360014 | AJ154: 12.24360014 | AK154: 54.49240033 | AL154: 84.49719983 | AM154: 92.94660112 | AN154: 91.64700076 | AP154: ERSOLP* | AR154: Solar PV | AS154: 0 | AT154: 12.24360014 | AU154: 12.24360014 | AV154: 12.24360014 | AW154: 12.24360014 | AX154: 37.59269986 | AY154: 67.59769988 | AZ154: 76.04750115 | BA154: 80.59730022
A155: Wind | B155: ERWND* | D155: Wind | E155: 0 | F155: 19.66259971 | G155: 16.59119979 | H155: 25.0439001 | I155: 96.24820054 | J155: 110.3759993 | K155: 110.3759991 | L155: 113.1142004 | M155: 44.57980064 | P155: ERWND* | R155: Wind | S155: 0 | T155: 19.66089973 | U155: 16.60869983 | V155: 17.83359984 | W155: 35.64050037 | X155: 84.76879859 | Y155: 110.3760998 | Z155: 122.4861004 | AA155: 74.56330043 | AC155: ERWND* | AE155: Wind | AF155: 0 | AG155: 19.5920997 | AH155: 21.34529981 | AI155: 21.51199982 | AJ155: 63.89649999 | AK155: 64.86910009 | AL155: 110.3759997 | AM155: 110.3760997 | AN155: 61.24550009 | AP155: ERWND* | AR155: Wind | AS155: 0 | AT155: 19.58889976 | AU155: 21.34529981 | AV155: 21.51199982 | AW155: 61.24779922 | AX155: 53.8636995 | AY155: 96.24809991 | AZ155: 110.3759999 | BA155: 70.6407001
A156: Hydro domestic | B156: ERHYD-E,ERHYD-N | D156: Hydro domestic | E156: 12.68019998 | F156: 24.47839983 | G156: 21.72569986 | H156: 24.4784998 | I156: 26.7425998 | J156: 26.74259983 | K156: 26.74259987 | L156: 26.74259986 | M156: 26.74259982 | P156: ERHYD-E,ERHYD-N | R156: Hydro domestic | S156: 12.68019998 | T156: 24.47639979 | U156: 21.72569986 | V156: 23.67009984 | W156: 26.74259974 | X156: 26.74259986 | Y156: 26.74269976 | Z156: 26.74269983 | AA156: 26.74259982 | AC156: ERHYD-E,ERHYD-N | AE156: Hydro domestic | AF156: 12.68019998 | AG156: 24.47579981 | AH156: 25.86639978 | AI156: 26.74259977 | AJ156: 26.74259974 | AK156: 26.74259971 | AL156: 26.74259989 | AM156: 26.74259987 | AN156: 26.74249975 | AP156: ERHYD-E,ERHYD-N | AR156: Hydro domestic | AS156: 12.68019998 | AT156: 24.47399981 | AU156: 25.87739982 | AV156: 26.74259977 | AW156: 26.7425998 | AX156: 26.7425998 | AY156: 26.7425998 | AZ156: 26.74259974 | BA156: 26.74259983
A157: Pumped Storage | B157: EP*T* | D157: Pumped Storage | E157: 12.20769995 | F157: 18.50859988 | G157: 18.50859991 | H157: 18.50849995 | I157: 6.300999941 | J157: 6.300999925 | K157: 6.30099991 | L157: 6.30099988 | M157: 6.30099988 | P157: EP*T* | R157: Pumped Storage | S157: 12.2076 | T157: 18.50859996 | U157: 18.50859982 | V157: 18.50859988 | W157: 18.50860005 | X157: 6.301000006 | Y157: 6.300999939 | Z157: 6.301099956 | AA157: 6.30099988 | AC157: EP*T* | AE157: Pumped Storage | AF157: 12.20769995 | AG157: 18.50859986 | AH157: 18.50849983 | AI157: 18.50849994 | AJ157: 6.300999941 | AK157: 6.301099882 | AL157: 6.300999939 | AM157: 6.300999939 | AN157: 6.301099852 | AP157: EP*T* | AR157: Pumped Storage | AS157: 12.2076 | AT157: 18.50859992 | AU157: 18.50849994 | AV157: 18.5086999 | AW157: 6.300999941 | AX157: 6.300899908 | AY157: 6.301099937 | AZ157: 6.300899858 | BA157: 6.300899893
A158: Biomass | B158: E*BI* | D158: Biomass | E158: 0 | F158: 0.1181999986 | G158: 0.1181999976 | H158: 6.525199994 | I158: 7.884200066 | J158: 7.884200111 | K158: 7.844500035 | L158: 7.88410002 | M158: 7.884000003 | P158: E*BI* | R158: Biomass | S158: 0 | T158: 0.1181999986 | U158: 0.1181999976 | V158: 0.118199999 | W158: 7.884200066 | X158: 7.884200126 | Y158: 7.844500005 | Z158: 7.884000003 | AA158: 7.884000003 | AC158: E*BI* | AE158: Biomass | AF158: 0 | AG158: 0.1181999986 | AH158: 0.1182999983 | AI158: 0.1181999976 | AJ158: 0.1181999976 | AK158: 0.1182999983 | AL158: 0.07880000025 | AM158: 0 | AN158: 0 | AP158: E*BI* | AR158: Biomass | AS158: 0 | AT158: 0.1181999986 | AU158: 0.1182999983 | AV158: 0.1181999976 | AW158: 0.1181999976 | AX158: 0.1180999996 | AY158: 0.07880000072 | AZ158: 0 | BA158: 0
A159: Imported Electricity (Hydro) | B159: ERHYD*I | D159: Imported Electricity (Hydro) | E159: 29.86550009 | F159: 31.50439996 | G159: 31.50440013 | H159: 45.48210012 | I159: 58.3757003 | J159: 58.37570032 | K159: 58.37540037 | L159: 58.37560043 | M159: 58.37550021 | P159: ERHYD*I | R159: Imported Electricity (Hydro) | S159: 29.86550009 | T159: 31.50439996 | U159: 31.50440013 | V159: 41.86040016 | W159: 58.3756003 | X159: 58.37550022 | Y159: 58.37560029 | Z159: 58.37550021 | AA159: 58.37550021 | AC159: ERHYD*I | AE159: Imported Electricity (Hydro) | AF159: 29.86550009 | AG159: 31.50439996 | AH159: 46.17060028 | AI159: 76.35710039 | AJ159: 164.5175008 | AK159: 148.7285005 | AL159: 165.997601 | AM159: 154.2602007 | AN159: 154.2602009 | AP159: ERHYD*I | AR159: Imported Electricity (Hydro) | AS159: 29.86550009 | AT159: 31.50440001 | AU159: 46.17570028 | AV159: 74.9671003 | AW159: 158.1572005 | AX159: 143.0492004 | AY159: 139.5786005 | AZ159: 155.4802003 | BA159: 154.2603008
A160: Imported Electricity (Coal) | B160: ETCRB* | D160: Imported Electricity (Coal) | E160: 0 | F160: 0 | G160: 0 | H160: 0 | I160: 58.97240067 | J160: 58.97250056 | K160: 58.97240043 | L160: 58.97230101 | M160: 58.97230101 | P160: ETCRB* | R160: Imported Electricity (Coal) | S160: 0 | T160: 0 | U160: 0 | V160: 0 | W160: 43.27859938 | X160: 58.97240064 | Y160: 58.97240067 | Z160: 58.97230101 | AA160: 58.97230101 | AC160: ETCRB* | AE160: Imported Electricity (Coal) | AF160: 0 | AG160: 0 | AH160: 0 | AI160: 0 | AJ160: 58.97230053 | AK160: 58.97230062 | AL160: 58.97240064 | AM160: 58.97250056 | AN160: 58.97239947 | AP160: ETCRB* | AR160: Imported Electricity (Coal) | AS160: 0 | AT160: 0 | AU160: 0 | AV160: 0 | AW160: 58.97230053 | AX160: 58.97250056 | AY160: 58.9725005 | AZ160: 58.97240031 | BA160: 58.97240055
A161: Imported Electricity (Gas) | B161: ETGRN* | D161: Imported Electricity (Gas) | E161: 0 | F161: 0 | G161: 0.5841999985 | H161: 11.80079979 | I161: 19.91089964 | J161: 19.91079974 | K161: 8.074800024 | L161: 19.91079986 | M161: 19.91079962 | P161: ETGRN* | R161: Imported Electricity (Gas) | S161: 0 | T161: 0 | U161: 0.5794999972 | V161: 6.462199949 | W161: 13.05999976 | X161: 19.91079974 | Y161: 2.242199957 | Z161: 19.91079962 | AA161: 19.91079962 | AC161: ETGRN* | AE161: Imported Electricity (Gas) | AF161: 0 | AG161: 0 | AH161: 0 | AI161: 0 | AJ161: 19.91079962 | AK161: 19.91089985 | AL161: 19.91089975 | AM161: 19.9108997 | AN161: 19.91079974 | AP161: ETGRN* | AR161: Imported Electricity (Gas) | AS161: 0 | AT161: 0 | AU161: 0 | AV161: 0 | AW161: 7.958099991 | AX161: 19.91089964 | AY161: 19.91079962 | AZ161: 19.9108997 | BA161: 19.91079962
AC162: \I | AE162: Total | AF162: =SUM(AF145:AF161) -> 955.5293026 | AG162: =SUM(AG145:AG161) -> 970.3567939 | AH162: 1070.5309 | AI162: 1163.315809 | AJ162: =SUM(AJ145:AJ161) -> 1228.979611 | AK162: =SUM(AK145:AK161) -> 1339.602999 | AL162: 1455.912795 | AM162: 1582.386498 | AN162: 1719.912093
AC163: ETRANS | AF163: 927.3174934 | AG163: 966.1472034 | AH163: 1067.987202 | AI163: 1163.316498 | AJ163: 1228.980804 | AK163: 1339.603518 | AL163: 1455.9133 | AM163: 1582.386988 | AN163: 1719.913185
A164: Total (PJ) | AC164: EP*P* | AF164: 12.20759982 | AG164: 18.50849986 | AH164: 18.50849998 | AI164: 18.50849998 | AJ164: 6.300899982 | AK164: 6.300999939 | AL164: 6.301000014 | AM164: 6.300999969 | AN164: 6.300999939 | BS164: =A167 -> Production (TWh)
B165: \E | P165: \E | AC165: \I | AP165: \E
E166: =E34 -> Best | S166: =S34 -> Best Forced | AF166: =AF34 -> Worst | AS166: =AS34 -> Worst Forced | BT166: =S166&"-"&$E166 -> Best Forced-Best | CE166: =AF166&"-"&$E166 -> Worst-Best | CP166: =AS166&"-"&$E166 -> Worst Forced-Best
A167: Production (TWh) | E167: =E$26 -> 2010 | F167: 2015 | G167: 2020 | H167: 2025 | I167: 2030 | J167: 2035 | K167: 2040 | L167: 2045 | M167: 2050 | S167: =S$26 -> 2010 | T167: =T$26 -> 2015 | U167: 2020 | V167: 2025 | W167: 2030 | X167: 2035 | Y167: 2040 | Z167: 2045 | AA167: 2050 | AC167: \E | AF167: =AF$26 -> 2010 | AG167: =AG$26 -> 2015 | AH167: 2020 | AI167: 2025 | AJ167: 2030 | AK167: 2035 | AL167: 2040 | AM167: 2045 | AN167: 2050 | AS167: =AS$26 -> 2010 | AT167: =AT$26 -> 2015 | AU167: 2020 | AV167: 2025 | AW167: 2030 | AX167: 2035 | AY167: 2040 | AZ167: 2045 | BA167: 2050 | BT167: =E167 -> 2010 | BU167: =F167 -> 2015 | BV167: =G167 -> 2020 | BW167: =H167 -> 2025 | BX167: =I167 -> 2030 | BY167: =L167 -> 2045 | BZ167: =M167 -> 2050 | CE167: =S167 -> 2010 | CF167: =T167 -> 2015 | CG167: =U167 -> 2020 | CH167: =V167 -> 2025 | CI167: =Y167 -> 2040 | CJ167: =Z167 -> 2045 | CK167: =AA167 -> 2050 | CP167: =AF167 -> 2010 | CQ167: =AG167 -> 2015 | CR167: =AH167 -> 2020 | CS167: =AI167 -> 2025 | CT167: =AL167 -> 2040 | CU167: =AM167 -> 2045 | CV167: =AN167 -> 2050
A168: =A36 -> Existing Coal | D168: =D36 -> Existing Coal | E168: =E145/3.6 -> 234.7662507 | F168: 217.0482771 | G168: 202.0843058 | H168: 214.5061946 | I168: 160.7863345 | J168: =J145/3.6 -> 122.6119725 | K168: 58.25486057 | L168: 27.24711114 | M168: 0 | N168: =M168/M$187 -> 0 | R168: =R36 -> Existing Coal | S168: =S145/3.6 -> 234.7662507 | T168: 217.0693903 | U168: 201.88539 | V168: 210.5973879 | W168: =W145/3.6 -> 158.6576408 | X168: 122.6119731 | Y168: 58.25486024 | Z168: 27.24711114 | AA168: 0 | AB168: =AA168/AA$187 -> 0 | AE168: =AE36 -> Existing Coal | AF168: =AF145/3.6 -> 234.7662507 | AG168: 217.456165 | AH168: 191.2418609 | AI168: 197.4354752 | AJ168: =AJ145/3.6 -> 160.7863357 | AK168: 122.611889 | AL168: 59.31927709 | AM168: 27.24711123 | AN168: 0 | AR168: =AR36 -> Existing Coal | AS168: =AS145/3.6 -> 234.7662507 | AT168: 217.4840557 | AU168: 191.152832 | AV168: 195.7436124 | AW168: 160.7863062 | AX168: 122.6119441 | AY168: =AY145/3.6 -> 59.31922139 | AZ168: 27.2471111 | BA168: 0 | BS168: =D168 -> Existing Coal | BT168: =S168-E168 -> 0 | BU168: =T168-F168 -> 0.0211132235 | BV168: =U168-G168 -> -0.1989157995 | BW168: =V168-H168 -> -3.908806642 | BX168: =Y168-I168 -> -102.5314743 | BY168: =Z168-L168 -> 0 | BZ168: =AA168-M168 -> 0 | CD168: =R168 -> Existing Coal | CE168: =AF168-E168 -> 0 | CF168: =AG168-F168 -> 0.4078878959 | CG168: =AH168-G168 -> -10.8424449 | CH168: =AI168-H168 -> -17.0707194 | CI168: =AL168-I168 -> -101.4670574 | CJ168: =AM168-L168 -> 9.934107226e-08 | CK168: =AN168-M168 -> 0 | CO168: =AE168 -> Existing Coal | CP168: =AS168-E168 -> 0 | CQ168: =AT168-F168 -> 0.4357785649 | CR168: =AU168-G168 -> -10.93147384 | CS168: =AV168-H168 -> -18.76258214 | CT168: =AW168-I168 -> -2.826460533e-05 | CU168: =AX168-L168 -> 95.36483293 | CV168: =BA168-M168 -> 0
A169: New Coal | D169: New Coal | E169: 0 | F169: 5.376000073 | G169: 53.76008378 | H169: 64.51211068 | I169: 64.5120838 | J169: 64.51211108 | K169: 64.5120832 | L169: 56.98572212 | M169: 67.22702768 | N169: 0.09517344314 | R169: New Coal | S169: 0 | T169: 5.376000073 | U169: 53.76005623 | V169: 64.51208353 | W169: 64.51205532 | X169: 64.512083 | Y169: 64.51208287 | Z169: 56.98572212 | AA169: 61.13319536 | AB169: 0.0863088421 | AE169: New Coal | AF169: 0 | AG169: 5.376000073 | AH169: 53.76005574 | AI169: 64.51211055 | AJ169: 64.51211148 | AK169: 64.51205535 | AL169: 64.51208353 | AM169: 56.98572215 | AN169: 12.03377779 | AR169: New Coal | AS169: 0 | AT169: 5.376000073 | AU169: 53.76008355 | AV169: 64.51211029 | AW169: 64.5120834 | AX169: 64.51208317 | AY169: 64.512083 | AZ169: 56.98577742 | BA169: 12.03380553 | BS169: =D169 -> New Coal | BT169: =S169-E169 -> 0 | BU169: 0 | BV169: -2.755059136e-05 | BW169: -2.715322707e-05 | BX169: -9.271833648e-07 | BY169: 0 | BZ169: -6.093832321 | CD169: =R169 -> New Coal | CE169: =AF169-E169 -> 0 | CF169: 0 | CG169: -2.804522713e-05 | CH169: -1.324547725e-07 | CI169: -2.649095308e-07 | CJ169: 3.311369312e-08 | CK169: -55.19324989 | CO169: =AE169 -> New Coal | CP169: =AS169-E169 -> 0 | CQ169: 0 | CR169: -2.297262398e-07 | CS169: -3.973643032e-07 | CT169: -3.973643032e-07 | CU169: 7.52636105 | CV169: -55.19322215
A170: OCGT diesel | D170: OCGT diesel | E170: 1.077499982 | F170: 1.96341663 | G170: 1.51769445 | H170: 1.49141666 | I170: 1.36002779 | J170: 1.359972225 | K170: 0.4401944412 | L170: 0.2347777784 | M170: 0 | N170: 0 | R170: OCGT diesel | S170: 1.077472203 | T170: 1.9636111 | U170: 1.517666664 | V170: 1.49141666 | W170: 1.359999999 | X170: 1.360000008 | Y170: 0.4401944412 | Z170: 0.2347777784 | AA170: 0 | AB170: 0 | AE170: OCGT diesel | AF170: 1.077499982 | AG170: 1.966749957 | AH170: 2.167777767 | AI170: 1.49141667 | AJ170: 1.359972254 | AK170: 1.360000008 | AL170: 0.4401944578 | AM170: 0.2347777784 | AN170: 0 | AR170: OCGT diesel | AS170: 1.077472203 | AT170: 1.966972194 | AU170: 2.167055524 | AV170: 1.491388899 | AW170: 1.360027774 | AX170: 1.360027769 | AY170: 0.4402222277 | AZ170: 0.2348055566 | BA170: 0 | BS170: OCGT diesel | BT170: -2.777824799e-05 | BU170: 0.0001944705016 | BV170: -2.778549161e-05 | BW170: 0 | BX170: -0.9198333489 | BY170: 0 | BZ170: 0 | CD170: OCGT diesel | CE170: 0 | CF170: 0.003333327671 | CG170: 0.6500833171 | CH170: 1.034802866e-08 | CI170: -0.9198333323 | CJ170: 0 | CK170: 0 | CO170: =AE170 -> OCGT diesel | CP170: -2.777824799e-05 | CQ170: 0.003555564003 | CR170: 0.6493610744 | CS170: -2.776013894e-05 | CT170: -1.655684589e-08 | CU170: 1.125249991 | CV170: 0
A171: Inland Gas Plants | D171: Inland Gas Plants | E171: 1.167777775 | F171: 1.798027812 | G171: 1.93450003 | H171: 2.12636114 | I171: 2.624944492 | J171: 2.624972239 | K171: 2.624972248 | L171: 2.625000046 | M171: 2.624944498 | N171: 0.003716139395 | R171: Inland Gas Plants | S171: 1.167777775 | T171: 1.798027812 | U171: 1.93450003 | V171: 1.93450003 | W171: 2.624944492 | X171: 2.624944477 | Y171: 2.624972239 | Z171: 2.625000046 | AA171: 2.624944498 | AB171: 0.003705939447 | AE171: Inland Gas Plants | AF171: 1.167777775 | AG171: 1.798027812 | AH171: 1.798027812 | AI171: 2.624944492 | AJ171: 2.624944492 | AK171: 2.624944484 | AL171: 2.624916621 | AM171: 2.624944386 | AN171: 2.624944391 | AR171: Inland Gas Plants | AS171: 1.167777775 | AT171: 1.798027812 | AU171: 1.798027812 | AV171: 2.624944492 | AW171: 2.624944469 | AX171: 2.624944469 | AY171: 2.624944395 | AZ171: 2.624916621 | BA171: 2.624944391 | BS171: Inland Gas Plants | BT171: 0 | BU171: 0 | BV171: 0 | BW171: -0.1918611096 | BX171: 2.774720391e-05 | BY171: 0 | BZ171: 0 | CD171: Inland Gas Plants | CE171: 0 | CF171: 0 | CG171: -0.1364722186 | CH171: 0.498583352 | CI171: -2.787138025e-05 | CJ171: -5.565997627e-05 | CK171: -1.076194978e-07 | CO171: Inland Gas Plants | CP171: 0 | CQ171: 0 | CR171: -0.1364722186 | CS171: 0.498583352 | CT171: -2.276566269e-08 | CU171: -5.557719204e-05 | CV171: -1.076194978e-07
A172: Gas from N Moz | D172: Gas from N Moz | E172: 0 | F172: 0 | G172: 0 | H172: 0 | I172: 0 | J172: 0 | K172: 0 | L172: 0 | M172: 0 | N172: 0 | R172: Gas from N Moz | S172: 0 | T172: 0 | U172: 0 | V172: 0 | W172: 0 | X172: 0 | Y172: 0 | Z172: 0 | AA172: 0 | AB172: 0 | AE172: Gas from N Moz | AF172: 0 | AG172: 0 | AH172: 0 | AI172: 0 | AJ172: 0 | AK172: 0 | AL172: 0 | AM172: 0 | AN172: 0 | AR172: Gas from N Moz | AS172: 0 | AT172: 0 | AU172: 0 | AV172: 0 | AW172: 0 | AX172: 0 | AY172: 0 | AZ172: 0 | BA172: 0 | BS172: Gas from N Moz | BT172: 0 | BU172: 0 | BV172: 0 | BW172: 0 | BX172: 0 | BY172: 0 | BZ172: 0 | CD172: Gas from N Moz | CE172: 0 | CF172: 0 | CG172: 0 | CH172: 0 | CI172: 0 | CJ172: 0 | CK172: 0 | CO172: Gas from N Moz | CP172: 0 | CQ172: 0 | CR172: 0 | CS172: 0 | CT172: 0 | CU172: 0 | CV172: 0
A173: Gas Domestic Shale | D173: Gas Domestic Shale | E173: 0 | F173: 0 | G173: 0 | H173: 0 | I173: 0 | J173: 0 | K173: 0 | L173: 0 | M173: 0 | N173: 0 | R173: Gas Domestic Shale | S173: 0 | T173: 0 | U173: 0 | V173: 0 | W173: 0 | X173: 0 | Y173: 0 | Z173: 0 | AA173: 0 | AB173: 0 | AE173: Gas Domestic Shale | AF173: 0 | AG173: 0 | AH173: 0 | AI173: 0 | AJ173: 0.2370277813 | AK173: 0.4689444384 | AL173: 9.910972276 | AM173: 86.99416646 | AN173: 199.7885279 | AR173: Gas Domestic Shale | AS173: 0 | AT173: 0 | AU173: 0 | AV173: 0 | AW173: 0 | AX173: 0.08380555651 | AY173: 1.62480553 | AZ173: 62.49994476 | BA173: 166.1338054 | BS173: Gas Domestic Shale | BT173: 0 | BU173: 0 | BV173: 0 | BW173: 0 | BX173: 0 | BY173: 0 | BZ173: 0 | CD173: Gas Domestic Shale | CE173: 0 | CF173: 0 | CG173: 0 | CH173: 0 | CI173: 9.910972276 | CJ173: 86.99416646 | CK173: 199.7885279 | CO173: Gas Domestic Shale | CP173: 0 | CQ173: 0 | CR173: 0 | CS173: 0 | CT173: 0 | CU173: 0.08380555651 | CV173: 166.1338054
A174: Coastal Gas | D174: Coastal Gas | E174: 0 | F174: 0 | G174: 0.6384722268 | H174: 1.03227778 | I174: 9.133694486 | J174: 9.20219452 | K174: 13.30666671 | L174: 110.1458057 | M174: 218.2035826 | N174: 0.3089112665 | R174: Coastal Gas | S174: 0 | T174: 0 | U174: 0.6385555656 | V174: 0.6385555656 | W174: 4.440555539 | X174: 8.500888931 | Y174: 12.90613894 | Z174: 105.9977223 | AA174: 211.3186917 | AB174: 0.2983431749 | AE174: Coastal Gas | AF174: 0 | AG174: 0 | AH174: 0 | AI174: 0 | AJ174: 0 | AK174: 0 | AL174: 0 | AM174: 0 | AN174: 0 | AR174: Coastal Gas | AS174: 0 | AT174: 0 | AU174: 0 | AV174: 0 | AW174: 0 | AX174: 0 | AY174: 0 | AZ174: 0 | BA174: 0 | BS174: Coastal Gas | BT174: 0 | BU174: 0 | BV174: 8.333888319e-05 | BW174: -0.3937222146 | BX174: 3.772444456 | BY174: -4.148083429 | BZ174: -6.884890927 | CD174: Coastal Gas | CE174: 0 | CF174: 0 | CG174: -0.6384722268 | CH174: -1.03227778 | CI174: -9.133694486 | CJ174: -110.1458057 | CK174: -218.2035826 | CO174: Coastal Gas | CP174: 0 | CQ174: 0 | CR174: -0.6384722268 | CS174: -1.03227778 | CT174: -9.133694486 | CU174: -110.1458057 | CV174: -218.2035826
A175: Nuclear | D175: Nuclear | E175: 13.204 | F175: 13.20402781 | G175: 13.204 | H175: 13.20402781 | I175: 46.33402798 | J175: 68.31769413 | K175: 138.6016676 | L175: 150.6264708 | M175: 175.8552763 | N175: 0.248958681 | R175: Nuclear | S175: 13.204 | T175: 13.20402781 | U175: 13.204 | V175: 25.81841681 | W175: 88.89044656 | X175: 95.88444365 | Y175: 160.738913 | Z175: 172.7637185 | AA175: 197.9925283 | AB175: 0.2795290801 | AE175: Nuclear | AF175: 13.204 | AG175: 13.20402781 | AH175: 13.20402781 | AI175: 13.204 | AJ175: 13.20402781 | AK175: 13.204 | AL175: 13.20402755 | AM175: 0 | AN175: 0 | AR175: Nuclear | AS175: 13.204 | AT175: 13.20402781 | AU175: 13.20402781 | AV175: 13.204 | AW175: 13.20402781 | AX175: 65.7640277 | AY175: 76.27602869 | AZ175: 63.07200008 | BA175: 63.07202869 | BS175: Nuclear | BT175: 0 | BU175: 0 | BV175: 0 | BW175: 12.614389 | BX175: 114.404885 | BY175: 22.13724772 | BZ175: 22.13725196 | CD175: Nuclear | CE175: 0 | CF175: 0 | CG175: 2.781550089e-05 | CH175: -2.781550089e-05 | CI175: -33.13000043 | CJ175: -150.6264708 | CK175: -175.8552763 | CO175: Nuclear | CP175: 0 | CQ175: 0 | CR175: 2.781550089e-05 | CS175: -2.781550089e-05 | CT175: -33.13000017 | CU175: -84.86244308 | CV175: -112.7832476
A176: Solar Thermal | D176: Solar Thermal | E176: 0 | F176: 0.1751666677 | G176: 0.5975277793 | H176: 0.6833055596 | I176: 5.544972221 | J176: 66.86222245 | K176: 128.1794993 | L176: 140.1709443 | M176: 151.6467216 | N176: 0.2146865797 | R176: Solar Thermal | S176: 0 | T176: 0.1751666677 | U176: 0.5975277793 | V176: 0.6771388928 | W176: 0.6858888929 | X176: 53.32052804 | Y176: 114.6377228 | Z176: 126.6291402 | AA176: 138.4786677 | AB176: 0.1955064413 | AE176: Solar Thermal | AF176: 0 | AG176: 0.1751666677 | AH176: 0.6833055596 | AI176: 0.6858888929 | AJ176: 0.6858888929 | AK176: 61.73699945 | AL176: 123.0541658 | AM176: 135.045666 | AN176: 146.8951368 | AR176: Solar Thermal | AS176: 0 | AT176: 0.1751666677 | AU176: 0.6833055596 | AV176: 0.6858888929 | AW176: 0.6858888929 | AX176: 7.330166656 | AY176: 68.64738925 | AZ176: 80.63886132 | BA176: 92.48838849 | BS176: Solar Thermal | BT176: 0 | BU176: 0 | BV176: 0 | BW176: -0.006166666766 | BX176: 109.0927506 | BY176: -13.54180415 | BZ176: -13.16805389 | CD176: Solar Thermal | CE176: 0 | CF176: 0 | CG176: 0.08577778027 | CH176: 0.002583333343 | CI176: 117.5091936 | CJ176: -5.125278367 | CK176: -4.751584795 | CO176: Solar Thermal | CP176: 0 | CQ176: 0 | CR176: 0.08577778027 | CS176: 0.002583333343 | CT176: -4.859083328 | CU176: -132.8407777 | CV176: -59.15833314
A177: Solar PV | D177: Solar PV | E177: 0 | F177: 3.401000039 | G177: 3.287527833 | H177: 3.401000039 | I177: 11.15391662 | J177: 22.88969472 | K177: 31.2243333 | L177: 33.57149972 | M177: 28.92630575 | N177: 0.04095103131 | R177: Solar PV | S177: 0 | T177: 3.401000039 | U177: 3.28875006 | V177: 3.376833373 | W177: 5.432249884 | X177: 17.16791658 | Y177: 25.50272223 | Z177: 27.84980557 | AA177: 26.55122193 | AB177: 0.03748544809 | AE177: Solar PV | AF177: 0 | AG177: 3.401000039 | AH177: 3.401000039 | AI177: 3.401000039 | AJ177: 3.401000039 | AK177: 15.13677787 | AL177: 23.4714444 | AM177: 25.81850031 | AN177: 25.45750021 | AR177: Solar PV | AS177: 0 | AT177: 3.401000039 | AU177: 3.401000039 | AV177: 3.401000039 | AW177: 3.401000039 | AX177: 10.44241663 | AY177: 18.77713886 | AZ177: 21.12430587 | BA177: 22.38813895 | BS177: Solar PV | BT177: 0 | BU177: 0 | BV177: 0.001222226355 | BW177: -0.02416666597 | BX177: 14.34880561 | BY177: -5.721694148 | BZ177: -2.375083814 | CD177: Solar PV | CE177: 0 | CF177: 0 | CG177: 0.1134722059 | CH177: 0 | CI177: 12.31752778 | CJ177: -7.752999407 | CK177: -3.468805535 | CO177: Solar PV | CP177: 0 | CQ177: 0 | CR177: 0.1134722059 | CS177: 0 | CT177: -7.752916582 | CU177: -23.12908309 | CV177: -6.538166797
A178: Wind | D178: Wind | E178: =E155/3.6 -> 0 | F178: 5.461833254 | G178: 4.608666607 | H178: 6.956638917 | I178: 26.73561126 | J178: 30.65999981 | K178: 30.65999975 | L178: 31.42061123 | M178: 12.38327796 | N178: 0.0175310324 | R178: Wind | S178: =S155/3.6 -> 0 | T178: 5.461361036 | U178: 4.61352773 | V178: 4.953777732 | W178: 9.900138991 | X178: 23.5468885 | Y178: 30.66002773 | Z178: 34.02391678 | AA178: 20.7120279 | AB178: 0.02924157873 | AE178: Wind | AF178: =AF155/3.6 -> 0 | AG178: 5.442249916 | AH178: 5.929249947 | AI178: 5.975555504 | AJ178: 17.74902778 | AK178: 18.01919447 | AL178: 30.65999991 | AM178: 30.6600277 | AN178: 17.01263891 | AR178: Wind | AS178: =AS155/3.6 -> 0 | AT178: 5.441361045 | AU178: 5.929249947 | AV178: 5.975555504 | AW178: 17.01327756 | AX178: 14.96213875 | AY178: 26.73558331 | AZ178: 30.65999998 | BA178: 19.62241669 | BS178: Wind | BT178: 0 | BU178: -0.0004722177982 | BV178: 0.004861123032 | BW178: -2.002861185 | BX178: 3.924416469 | BY178: 2.60330555 | BZ178: 8.328749941 | CD178: Wind | CE178: 0 | CF178: -0.01958333784 | CG178: 1.32058334 | CH178: -0.981083413 | CI178: 3.924388654 | CJ178: -0.7605835371 | CK178: 4.629360957 | CO178: Wind | CP178: 0 | CQ178: -0.02047220866 | CR178: 1.32058334 | CS178: -0.981083413 | CT178: -9.722333699 | CU178: -16.45847248 | CV178: 7.239138739
A179: Hydro domestic | D179: Hydro domestic | E179: 3.522277772 | F179: 6.799555508 | G179: 6.034916627 | H179: 6.799583279 | I179: 7.428499945 | J179: 7.428499953 | K179: 7.428499963 | L179: 7.428499961 | M179: 7.428499949 | N179: 0.01051654285 | R179: Hydro domestic | S179: 3.522277772 | T179: 6.798999943 | U179: 6.034916627 | V179: 6.575027733 | W179: 7.428499928 | X179: 7.428499961 | Y179: 7.42852771 | Z179: 7.428527731 | AA179: 7.428499949 | AB179: 0.01048767736 | AE179: Hydro domestic | AF179: 3.522277772 | AG179: 6.798833282 | AH179: 7.18511105 | AI179: 7.428499936 | AJ179: 7.428499928 | AK179: 7.42849992 | AL179: 7.428499969 | AM179: 7.428499965 | AN179: 7.428472154 | AR179: Hydro domestic | AS179: 3.522277772 | AT179: 6.798333281 | AU179: 7.188166616 | AV179: 7.428499936 | AW179: 7.428499945 | AX179: 7.428499945 | AY179: 7.428499945 | AZ179: 7.428499928 | BA179: 7.428499953 | BS179: Hydro domestic | BT179: 0 | BU179: -0.0005555649598 | BV179: 0 | BW179: -0.2245555456 | BX179: 2.776583036e-05 | BY179: 2.776996957e-05 | BZ179: 0 | CD179: Hydro domestic | CE179: 0 | CF179: -0.0007222261694 | CG179: 1.150194423 | CH179: 0.6289166574 | CI179: 2.483526806e-08 | CJ179: 4.13921164e-09 | CK179: -2.779480484e-05 | CO179: Hydro domestic | CP179: 0 | CQ179: -0.001222226355 | CR179: 1.153249989 | CS179: 0.6289166574 | CT179: 0 | CU179: -1.655684567e-08 | CV179: 4.139210752e-09
A180: Pumped Storage | D180: Pumped Storage | E180: 3.391027765 | F180: 5.141277743 | G180: 5.141277753 | H180: 5.141249986 | I180: 1.750277761 | J180: 1.750277757 | K180: 1.750277753 | L180: 1.750277744 | M180: 1.750277744 | N180: 0.002477871849 | R180: Pumped Storage | S180: 3.390999999 | T180: 5.141277767 | U180: 5.141277728 | V180: 5.141277745 | W180: 5.141277791 | X180: 1.75027778 | Y180: 1.750277761 | Z180: 1.750305543 | AA180: 1.750277744 | AB180: 0.002471070661 | AE180: Pumped Storage | AF180: 3.391027765 | AG180: 5.141277739 | AH180: 5.141249954 | AI180: 5.141249984 | AJ180: 1.750277761 | AK180: 1.750305523 | AL180: 1.750277761 | AM180: 1.750277761 | AN180: 1.750305514 | AR180: Pumped Storage | AS180: 3.390999999 | AT180: 5.141277755 | AU180: 5.141249983 | AV180: 5.141305527 | AW180: 1.750277761 | AX180: 1.750249974 | AY180: 1.750305538 | AZ180: 1.75024996 | BA180: 1.75024997 | BS180: Pumped Storage | BT180: -2.776583036e-05 | BU180: 2.373579022e-08 | BV180: -2.483526895e-08 | BW180: 2.775936284e-05 | BX180: -5.17401455e-10 | BY180: 2.779894405e-05 | BZ180: 0 | CD180: Pumped Storage | CE180: 0 | CF180: -4.591938385e-09 | CG180: -2.779894405e-05 | CH180: -1.616879963e-09 | CI180: -5.17401455e-10 | CJ180: 1.655684589e-08 | CK180: 2.776996957e-05 | CO180: Pumped Storage | CP180: -2.776583036e-05 | CQ180: 1.188406351e-08 | CR180: -2.776996957e-05 | CS180: 5.554097394e-05 | CT180: 0 | CU180: -2.776996957e-05 | CV180: -2.777410878e-05
A181: Biomass | D181: Biomass | E181: 0 | F181: 0.03283333295 | G181: 0.03283333266 | H181: 1.812555554 | I181: 2.190055574 | J181: 2.190055586 | K181: 2.179027788 | L181: 2.190027783 | M181: 2.190000001 | N181: 0.003100387564 | R181: Biomass | S181: 0 | T181: 0.03283333295 | U181: 0.03283333266 | V181: 0.03283333305 | W181: 2.190055574 | X181: 2.190055591 | Y181: 2.179027779 | Z181: 2.190000001 | AA181: 2.190000001 | AB181: 0.003091877713 | AE181: Biomass | AF181: 0 | AG181: 0.03283333295 | AH181: 0.03286111065 | AI181: 0.03283333266 | AJ181: 0.03283333266 | AK181: 0.03286111065 | AL181: 0.02188888896 | AM181: 0 | AN181: 0 | AR181: Biomass | AS181: 0 | AT181: 0.03283333295 | AU181: 0.03286111065 | AV181: 0.03283333266 | AW181: 0.03283333266 | AX181: 0.03280555545 | AY181: 0.02188888909 | AZ181: 0 | BA181: 0 | BS181: Biomass | BT181: 0 | BU181: 0 | BV181: 0 | BW181: -1.779722221 | BX181: -0.01102779475 | BY181: -2.77823872e-05 | BZ181: 0 | CD181: Biomass | CE181: 0 | CF181: 0 | CG181: 2.777798929e-05 | CH181: -1.779722221 | CI181: -2.168166685 | CJ181: -2.190027783 | CK181: -2.190000001 | CO181: Biomass | CP181: 0 | CQ181: 0 | CR181: 2.777798929e-05 | CS181: -1.779722221 | CT181: -2.157222241 | CU181: -2.157222228 | CV181: -2.190000001
A182: Imported Electricity (Hydro) | D182: Imported Electricity (Hydro) | E182: 8.295972248 | F182: 8.75122221 | G182: 8.751222259 | H182: 12.6339167 | I182: 16.21547231 | J182: 16.21547231 | K182: 16.21538899 | L182: 16.21544456 | M182: 16.21541672 | N182: 0.02295619924 | R182: Imported Electricity (Hydro) | S182: 8.295972248 | T182: 8.75122221 | U182: 8.751222259 | V182: 11.62788893 | W182: 16.21544453 | X182: 16.21541673 | Y182: 16.21544452 | Z182: 16.21541672 | AA182: 16.21541672 | AB182: 0.02289318975 | AE182: Imported Electricity (Hydro) | AF182: 8.295972248 | AG182: 8.75122221 | AH182: 12.82516674 | AI182: 21.21030566 | AJ182: 45.69930577 | AK182: 41.31347237 | AL182: 46.11044472 | AM182: 42.85005574 | AN182: 42.8500558 | AR182: Imported Electricity (Hydro) | AS182: 8.295972248 | AT182: 8.751222226 | AU182: 12.82658341 | AV182: 20.82419453 | AW182: 43.93255568 | AX182: 39.735889 | AY182: 38.77183346 | AZ182: 43.18894453 | BA182: 42.85008355 | BS182: Imported Electricity (Hydro) | BT182: 0 | BU182: 0 | BV182: 0 | BW182: -1.006027766 | BX182: -2.77813524e-05 | BY182: -2.784059486e-05 | BZ182: 0 | CD182: Imported Electricity (Hydro) | CE182: 0 | CF182: 0 | CG182: 4.073944485 | CH182: 8.576388965 | CI182: 29.89497242 | CJ182: 26.63461117 | CK182: 26.63463907 | CO182: Imported Electricity (Hydro) | CP182: 0 | CQ182: 1.655684656e-08 | CR182: 4.075361153 | CS182: 8.190277827 | CT182: 27.71708338 | CU182: 23.52044443 | CV182: 26.63466683
A183: Imported Electricity (Coal) | D183: Imported Electricity (Coal) | E183: 0 | F183: 0 | G183: 0 | H183: 0 | I183: 16.38122241 | J183: 16.38125016 | K183: 16.38122234 | L183: 16.38119472 | M183: 16.38119472 | N183: 0.0231908915 | R183: Imported Electricity (Coal) | S183: 0 | T183: 0 | U183: 0 | V183: 0 | W183: 12.02183316 | X183: 16.3812224 | Y183: 16.38122241 | Z183: 16.38119472 | AA183: 16.38119472 | AB183: 0.02312723784 | AE183: Imported Electricity (Coal) | AF183: 0 | AG183: 0 | AH183: 0 | AI183: 0 | AJ183: 16.38119459 | AK183: 16.38119462 | AL183: 16.3812224 | AM183: 16.38125016 | AN183: 16.38122208 | AR183: Imported Electricity (Coal) | AS183: 0 | AT183: 0 | AU183: 0 | AV183: 0 | AW183: 16.38119459 | AX183: 16.38125016 | AY183: 16.38125014 | AZ183: 16.38122231 | BA183: 16.38122237 | BS183: Imported Electricity (Coal) | BT183: 0 | BU183: 0 | BV183: 0 | BW183: 0 | BX183: 0 | BY183: 0 | BZ183: 0 | CD183: Imported Electricity (Coal) | CE183: 0 | CF183: 0 | CG183: 0 | CH183: 0 | CI183: -8.27842328e-09 | CJ183: 5.543231964e-05 | CK183: 2.735190921e-05 | CO183: Imported Electricity (Coal) | CP183: 0 | CQ183: 0 | CR183: 0 | CS183: 0 | CT183: -2.78155009e-05 | CU183: 5.543231964e-05 | CV183: 2.764993244e-05
A184: Imported Electricity (Gas) | D184: Imported Electricity (Gas) | E184: 0 | F184: 0 | G184: 0.1622777774 | H184: 3.277999941 | I184: 5.530805455 | J184: 5.530777706 | K184: 2.243000007 | L184: 5.530777739 | M184: 5.530777673 | N184: 0.007829933474 | R184: Imported Electricity (Gas) | S184: 0 | T184: 0 | U184: 0.1609722214 | V184: 1.795055541 | W184: 3.627777712 | X184: 5.530777706 | Y184: 0.6228333215 | Z184: 5.530777673 | AA184: 5.530777673 | AB184: 0.007808442108 | AE184: Imported Electricity (Gas) | AF184: 0 | AG184: 0 | AH184: 0 | AI184: 0 | AJ184: 5.530777673 | AK184: 5.530805513 | AL184: 5.530805486 | AM184: 5.530805472 | AN184: 5.530777706 | AR184: Imported Electricity (Gas) | AS184: 0 | AT184: 0 | AU184: 0 | AV184: 0 | AW184: 2.210583331 | AX184: 5.530805455 | AY184: 5.530777673 | AZ184: 5.530805472 | BA184: 5.530777671 | BS184: Imported Electricity (Gas) | BT184: 0 | BU184: 0 | BV184: -0.001305555925 | BW184: -1.4829444 | BX184: -4.907972134 | BY184: -6.622738269e-08 | BZ184: 0 | CD184: Imported Electricity (Gas) | CE184: 0 | CF184: 0 | CG184: -0.1622777774 | CH184: -3.277999941 | CI184: 3.104408552e-08 | CJ184: 2.773271667e-05 | CK184: 3.311369134e-08 | CO184: Imported Electricity (Gas) | CP184: 0 | CQ184: 0 | CR184: -0.1622777774 | CS184: -3.277999941 | CT184: -3.320222124 | CU184: 2.771615982e-05 | CV184: -2.06960582e-09
A187: Total (TWh) | E187: =SUM(E168:E184) -> 265.4248063 | F187: 269.1526382 | G187: 301.7553063 | H187: 337.5786386 | I187: 377.6819466 | J187: =SUM(J168:J184) -> 438.5371671 | K187: =SUM(K168:K184) -> 514.001694 | L187: 602.5241654 | M187: 706.3633033 | S187: =SUM(S168:S184) -> 265.4247507 | T187: 269.1729181 | U187: 301.5611962 | V187: 339.1721938 | W187: =SUM(W168:W184) -> 383.1288092 | X187: =SUM(X168:X184) -> 439.0259165 | Y187: 514.854968 | Z187: 603.8531368 | AA187: 708.3074442 | AF187: =SUM(AF168:AF184) -> 265.4248063 | AG187: 269.5435539 | AH187: 297.3696945 | AI187: 323.1432803 | AJ187: =SUM(AJ168:AJ184) -> 341.3832252 | AK187: =SUM(AK168:AK184) -> 372.1119441 | AL187: 404.4202209 | AM187: 439.5518051 | AN187: 477.7533592 | AS187: =SUM(AS168:AS184) -> 265.4247507 | AT187: 269.5702779 | AU187: 297.2844433 | AV187: 321.0653339 | AW187: 335.3235008 | AX187: 360.5510548 | AY187: =SUM(AY168:AY184) -> 388.8419723 | AZ187: =SUM(AZ168:AZ184) -> 419.3674449 | BA187: 452.3043617
C188: =D188-H188 -> 0.002869542833 | D188: =F188/F189-1 -> 0.02288747952 | E188: =E187*3.6 -> 955.5293026 | F188: =F187*3.6 -> 968.9494975 | G188: =G187*3.6 -> 1086.319103 | H188: =G188/G189-1 -> 0.02001793668
A189: Shares | E189: 910.5948 | F189: 947.2689 | G189: 1065
A190: =A168 -> Existing Coal | D190: =D168 -> Existing Coal | E190: =E168/E$187 -> 0.884492501 | F190: 0.806413337 | G190: 0.6696959477 | H190: 0.6354258535 | I190: 0.4257188779 | J190: =J168/J$187 -> 0.2795931147 | K190: 0.1133359311 | L190: 0.0452216072 | M190: 0 | R190: =R168 -> Existing Coal | S190: =S168/S$187 -> 0.8844926861 | T190: 0.8064310178 | U190: 0.6694674001 | V190: 0.6209158409 | W190: =W168/W$187 -> 0.4141104428 | X190: 0.2792818568 | Y190: 0.1131480978 | Z190: 0.04512208263 | AA190: 0 | AE190: =AE168 -> Existing Coal | AF190: =AF168/AF$187 -> 0.884492501 | AG190: 0.8067570599 | AH190: 0.6431114686 | AI190: 0.6109843133 | AJ190: =AJ168/AJ$187 -> 0.470984875 | AK190: 0.3295026965 | AL190: 0.1466773273 | AM190: 0.06198839573 | AN190: 0 | AR190: =AR168 -> Existing Coal | AS190: =AS168/AS$187 -> 0.8844926861 | AT190: 0.8067805448 | AU190: 0.6429964173 | AV190: 0.6096690978 | AW190: 0.4794960862 | AX190: 0.3400681885 | AY190: =AY168/AY$187 -> 0.1525535452 | AZ190: 0.0649719272 | BA190: 0
A191: New Coal | D191: New Coal | E191: 0 | F191: 0.01997379669 | G191: 0.1781578738 | H191: 0.1911024671 | I191: 0.1708106103 | J191: 0.1471075109 | K191: 0.1255094759 | L191: 0.09457831801 | M191: 0.09517344314 | R191: New Coal | S191: 0 | T191: 0.01997229183 | U191: 0.1782724598 | V191: 0.1902045177 | W191: 0.168382157 | X191: 0.1469436782 | Y191: 0.1253014672 | Z191: 0.09437016825 | AA191: 0.0863088421 | AE191: New Coal | AF191: 0 | AG191: 0.01994482894 | AH191: 0.180785254 | AI191: 0.199639338 | AJ191: 0.1889727049 | AK191: 0.1733673331 | AL191: 0.1595174529 | AM191: 0.1296450646 | AN191: 0.02518826411 | AR191: New Coal | AS191: 0 | AT191: 0.01994285169 | AU191: 0.1808371906 | AV191: 0.2009314101 | AW191: 0.1923875995 | AX191: 0.178926347 | AY191: 0.165908229 | AZ191: 0.1358850767 | BA191: 0.02660554828
A192: OCGT diesel | D192: OCGT diesel | E192: 0.004059530067 | F192: 0.007294807299 | G192: 0.005029553476 | H192: 0.00441798292 | I192: 0.003600987027 | J192: 0.003101156133 | K192: 0.0008564065963 | L192: 0.0003896570327 | M192: 0 | R192: OCGT diesel | S192: 0.00405942626 | T192: 0.00729498017 | U192: 0.005032698779 | V192: 0.004397225618 | W192: 0.003549720006 | X192: 0.003097767026 | Y192: 0.0008549872656 | Z192: 0.0003887994681 | AA192: 0 | AE192: OCGT diesel | AF192: 0.004059530067 | AG192: 0.007296594295 | AH192: 0.007289840919 | AI192: 0.004615341742 | AJ192: 0.003983711424 | AK192: 0.003654814174 | AL192: 0.001088458082 | AM192: 0.000534129938 | AN192: 0 | AR192: OCGT diesel | AS192: 0.00405942626 | AT192: 0.007296695351 | AU192: 0.007289501932 | AV192: 0.004645125905 | AW192: 0.004055867752 | AX192: 0.003772080961 | AY192: 0.001132136598 | AZ192: 0.0005599041115 | BA192: 0
A193: Inland Gas Plants | D193: Inland Gas Plants | E193: 0.004399655748 | F193: 0.006680327653 | G193: 0.006410823572 | H193: 0.006298861647 | I193: 0.006950145527 | J193: 0.005985746331 | K193: 0.005106933069 | L193: 0.00435667181 | M193: 0.003716139395 | R193: Inland Gas Plants | S193: 0.004399656669 | T193: 0.006679824346 | U193: 0.006414950114 | V193: 0.005703592646 | W193: 0.006851336754 | X193: 0.005979019413 | Y193: 0.005098469283 | Z193: 0.004347083565 | AA193: 0.003705939447 | AE193: Inland Gas Plants | AF193: 0.004399655748 | AG193: 0.006670639257 | AH193: 0.006046439316 | AI193: 0.008123159763 | AJ193: 0.007689143162 | AK193: 0.007054179597 | AL193: 0.0064905672 | AM193: 0.005971865787 | AN193: 0.005494350463 | AR193: Inland Gas Plants | AS193: 0.004399656669 | AT193: 0.006669977957 | AU193: 0.006048173229 | AV193: 0.008175733145 | AW193: 0.007828095742 | AX193: 0.007280368297 | AY193: 0.006750671434 | AZ193: 0.006259228398 | BA193: 0.005803491218
A194: Gas from N Moz | D194: Gas from N Moz | E194: 0 | F194: 0 | G194: 0 | H194: 0 | I194: 0 | J194: 0 | K194: 0 | L194: 0 | M194: 0 | R194: Gas from N Moz | S194: 0 | T194: 0 | U194: 0 | V194: 0 | W194: 0 | X194: 0 | Y194: 0 | Z194: 0 | AA194: 0 | AE194: Gas from N Moz | AF194: 0 | AG194: 0 | AH194: 0 | AI194: 0 | AJ194: 0 | AK194: 0 | AL194: 0 | AM194: 0 | AN194: 0 | AR194: Gas from N Moz | AS194: 0 | AT194: 0 | AU194: 0 | AV194: 0 | AW194: 0 | AX194: 0 | AY194: 0 | AZ194: 0 | BA194: 0
A195: Gas Domestic Shale | D195: Gas Domestic Shale | E195: 0 | F195: 0 | G195: 0 | H195: 0 | I195: 0 | J195: 0 | K195: 0 | L195: 0 | M195: 0 | R195: Gas Domestic Shale | S195: 0 | T195: 0 | U195: 0 | V195: 0 | W195: 0 | X195: 0 | Y195: 0 | Z195: 0 | AA195: 0 | AE195: Gas Domestic Shale | AF195: 0 | AG195: 0 | AH195: 0 | AI195: 0 | AJ195: 0.0006943158415 | AK195: 0.001260224096 | AL195: 0.02450661902 | AM195: 0.1979156164 | AN195: 0.4181834078 | AR195: Gas Domestic Shale | AS195: 0 | AT195: 0 | AU195: 0 | AV195: 0 | AW195: 0 | AX195: 0.0002324374187 | AY195: 0.004178575477 | AZ195: 0.1490338497 | BA195: 0.3673053357
A196: Coastal Gas | D196: Coastal Gas | E196: 0 | F196: 0 | G196: 0.00211586081 | H196: 0.003057888332 | I196: 0.02418356124 | J196: 0.02098384176 | K196: 0.02588837132 | L196: 0.1828072832 | M196: 0.3089112665 | R196: Coastal Gas | S196: 0 | T196: 0 | U196: 0.002117499113 | V196: 0.001882688432 | W196: 0.0115902418 | X196: 0.01936306859 | Y196: 0.02506752337 | Z196: 0.1755355993 | AA196: 0.2983431749 | AE196: Coastal Gas | AF196: 0 | AG196: 0 | AH196: 0 | AI196: 0 | AJ196: 0 | AK196: 0 | AL196: 0 | AM196: 0 | AN196: 0 | AR196: Coastal Gas | AS196: 0 | AT196: 0 | AU196: 0 | AV196: 0 | AW196: 0 | AX196: 0 | AY196: 0 | AZ196: 0 | BA196: 0
A197: Nuclear | D197: Nuclear | E197: 0.04974666905 | F197: 0.04905776848 | G197: 0.04375730839 | H197: 0.03911393169 | I197: 0.1226800179 | J197: 0.155785414 | K197: 0.2696521612 | L197: 0.2499924143 | M197: 0.248958681 | R197: Nuclear | S197: 0.04974667946 | T197: 0.04905407239 | U197: 0.04378547426 | V197: 0.07612185573 | W197: 0.2320119094 | X197: 0.2184026957 | Y197: 0.3122023151 | Z197: 0.2861022126 | AA197: 0.2795290801 | AE197: Nuclear | AF197: 0.04974666905 | AG197: 0.04898662061 | AH197: 0.04440273524 | AI197: 0.04086113128 | AJ197: 0.03867802175 | AK197: 0.03548394564 | AL197: 0.03264927634 | AM197: 0 | AN197: 0 | AR197: Nuclear | AS197: 0.04974667946 | AT197: 0.04898176428 | AU197: 0.04441546844 | AV197: 0.04112558599 | AW197: 0.03937698306 | AX197: 0.1823986557 | AY197: 0.196162025 | AZ197: 0.1503979406 | BA197: 0.1394459882
A198: Solar Thermal | D198: Solar Thermal | E198: 0 | F198: 0.0006508079167 | G198: 0.001980173229 | H198: 0.002024137435 | I198: 0.01468159193 | J198: 0.1524664897 | K198: 0.2493756359 | L198: 0.2326395394 | M198: 0.2146865797 | R198: Solar Thermal | S198: 0 | T198: 0.0006507588837 | U198: 0.001981447835 | V198: 0.001996445773 | W198: 0.001790230535 | X198: 0.1214518916 | Y198: 0.2226602246 | Z198: 0.2097018836 | AA198: 0.1955064413 | AE198: Solar Thermal | AF198: 0 | AG198: 0.0006498640581 | AH198: 0.002297831865 | AI198: 0.002122553477 | AJ198: 0.002009146444 | AK198: 0.1659097496 | AL198: 0.3042730295 | AM198: 0.3072349252 | AN198: 0.3074706519 | AR198: Solar Thermal | AS198: 0 | AT198: 0.0006497996333 | AU198: 0.002298490805 | AV198: 0.002136290719 | AW198: 0.002045454289 | AX198: 0.02033045406 | AY198: 0.1765431567 | AZ198: 0.192286889 | BA198: 0.2044826368
A199: Solar PV | D199: Solar PV | E199: 0 | F199: 0.01263595283 | G199: 0.0108946811 | H199: 0.01007468972 | I199: 0.02953256496 | J199: 0.05219556388 | K199: 0.06074752995 | L199: 0.05571809671 | M199: 0.04095103131 | R199: Solar PV | S199: 0 | T199: 0.01263500081 | U199: 0.01090574683 | V199: 0.009956103226 | W199: 0.01417865155 | X199: 0.03910456292 | Y199: 0.04953379848 | Z199: 0.04612016378 | AA199: 0.03748544809 | AE199: Solar PV | AF199: 0 | AG199: 0.01261762706 | AH199: 0.01143694231 | AI199: 0.01052474319 | AJ199: 0.00996241112 | AK199: 0.04067802206 | AL199: 0.05803726715 | AM199: 0.05873824203 | AN199: 0.05328586334 | AR199: Solar PV | AS199: 0 | AT199: 0.0126163762 | AU199: 0.01144022203 | AV199: 0.01059285971 | AW199: 0.01014244463 | AX199: 0.02896237991 | AY199: 0.04828989717 | AZ199: 0.05037183055 | BA199: 0.0494979506
A200: Wind | D200: Wind | E200: 0 | F200: 0.02029269819 | G200: 0.0152728602 | H200: 0.02060746185 | I200: 0.07078869271 | J200: 0.06991425611 | K200: 0.05964960837 | L200: 0.0521483005 | M200: 0.0175310324 | R200: Wind | S200: 0 | T200: 0.02028941497 | U200: 0.01529881095 | V200: 0.01460549486 | W200: 0.02584023637 | X200: 0.0536343929 | Y200: 0.05955080486 | Z200: 0.05634468832 | AA200: 0.02924157873 | AE200: Wind | AF200: 0 | AG200: 0.02019061424 | AH200: 0.01993898524 | AI200: 0.01849196895 | AJ200: 0.05199150533 | AK200: 0.04842412278 | AL200: 0.07581223275 | AM200: 0.0697529332 | AN200: 0.03560966885 | AR200: Wind | AS200: 0 | AT200: 0.02018531526 | AU200: 0.01994470306 | AV200: 0.01861164964 | AW200: 0.05073690785 | AX200: 0.04149797525 | AY200: 0.06875693781 | AZ200: 0.07311010989 | BA200: 0.04338321351
A201: Hydro domestic | D201: Hydro domestic | E201: 0.01327034131 | F201: 0.02526282318 | G201: 0.01999937201 | H201: 0.02014222021 | I201: 0.01966866569 | J201: 0.01693927108 | K201: 0.01445228693 | L201: 0.01232896602 | M201: 0.01051654285 | R201: Hydro domestic | S201: 0.01327034409 | T201: 0.02525885587 | U201: 0.02001224528 | V201: 0.01938551524 | W201: 0.01938904032 | X201: 0.01692041331 | Y201: 0.01442838891 | Z201: 0.01230187819 | AA201: 0.01048767736 | AE201: Hydro domestic | AF201: 0.01327034131 | AG201: 0.02522350538 | AH201: 0.02416221688 | AI201: 0.02298825441 | AJ201: 0.02176000277 | AK201: 0.01996307842 | AL201: 0.01836827039 | AM201: 0.0169001694 | AN201: 0.01554875965 | AR201: Hydro domestic | AS201: 0.01327034409 | AT201: 0.02521915003 | AU201: 0.02417942404 | AV201: 0.02313703521 | AW201: 0.0221532339 | AX201: 0.02060318461 | AY201: 0.01910416178 | AZ201: 0.01771358273 | BA201: 0.01642367526
A202: Pumped Storage | D202: Pumped Storage | E202: 0.01277585096 | F202: 0.01910171781 | G202: 0.01703790338 | H202: 0.0152297847 | I202: 0.004634263769 | J202: 0.003991173127 | K202: 0.003405198413 | L202: 0.00290490879 | M202: 0.002477871849 | R202: Pumped Storage | S202: 0.01277574902 | T202: 0.01910027875 | U202: 0.01704887032 | V202: 0.01515831144 | W202: 0.01341918871 | X202: 0.003986729972 | Y202: 0.003399554962 | Z202: 0.002898561648 | AA202: 0.002471070661 | AE202: Pumped Storage | AF202: 0.01277585096 | AG202: 0.01907401481 | AH202: 0.0172890851 | AI202: 0.01591012501 | AJ202: 0.005127017475 | AK202: 0.00470370691 | AL202: 0.00432786906 | AM202: 0.003981960126 | AN202: 0.003663617389 | AR202: Pumped Storage | AS202: 0.01277574902 | AT202: 0.01907212396 | AU202: 0.01729404312 | AV202: 0.0160132689 | AW202: 0.005219669236 | AX202: 0.004854374855 | AY202: 0.004501328722 | AZ202: 0.004173547522 | BA202: 0.003869628769
A203: Biomass | D203: Biomass | E203: 0 | F203: 0.0001219877805 | G203: 0.0001088078055 | H203: 0.005369283914 | I203: 0.005798676886 | J203: 0.004994002221 | K203: 0.004239339701 | L203: 0.003634755101 | M203: 0.003100387564 | R203: Biomass | S203: 0 | T203: 0.0001219785897 | U203: 0.0001088778433 | V203: 9.680431842e-05 | W203: 0.005716238303 | X203: 0.004988442614 | Y203: 0.004232313787 | Z203: 0.003626709654 | AA203: 0.003091877713 | AE203: Biomass | AF203: 0 | AG203: 0.0001218108632 | AH203: 0.0001105059166 | AI203: 0.000101606113 | AJ203: 9.617734626e-05 | AK203: 8.830974435e-05 | AL203: 5.412412097e-05 | AM203: 0 | AN203: 0 | AR203: Biomass | AS203: 0 | AT203: 0.0001217987873 | AU203: 0.0001105376059 | AV203: 0.0001022637115 | AW203: 9.791539388e-05 | AX203: 9.098726798e-05 | AY203: 5.629250608e-05 | AZ203: 0 | BA203: 0
AE205: RE share | AF205: =SUM(AF203,AF198:AF201) -> 0.01327034131 | AG205: =SUM(AG203,AG198:AG201) -> 0.0588034216 | AH205: 0.0579464822 | AI205: 0.05422912614 | AJ205: =SUM(AJ203,AJ198:AJ201) -> 0.08581924302 | AK205: =SUM(AK203,AK198:AK201) -> 0.2750632826 | AL205: 0.4565449239 | AM205: 0.4526262699 | AN205: 0.4119149438
D207: =D168 -> Existing Coal
A215: Peak demand and Load factor
B220: Load factor | C220: annual | E220: =E144 -> 2010 | F220: 2015 | G220: 2020 | H220: 2025 | I220: 2030 | J220: =J144 -> 2035 | K220: =K144 -> 2040 | L220: 2045 | M220: 2050 | P220: Load factor | Q220: annual | S220: =S144 -> 2010 | T220: 2015 | U220: 2020 | V220: 2025 | W220: =W144 -> 2030 | X220: =X144 -> 2035 | Y220: 2040 | Z220: 2045 | AA220: 2050 | AC220: Load factor | AD220: annual | AF220: =AF144 -> 2010 | AG220: 2015 | AH220: 2020 | AI220: 2025 | AJ220: =AJ144 -> 2030 | AK220: =AK144 -> 2035 | AL220: 2040 | AM220: 2045 | AN220: 2050 | AP220: Load factor | AQ220: annual | AS220: =AS144 -> 2010 | AT220: 2015 | AU220: 2020 | AV220: 2025 | AW220: 2030 | AX220: 2035 | AY220: =AY144 -> 2040 | AZ220: =AZ144 -> 2045 | BA220: 2050
D221: =+D145 -> Existing Coal | E221: =IFERROR(E145/(E36*8760*3.6/1000),0) -> 0.7444389001 | F221: 0.6691711849 | G221: 0.6313351083 | H221: 0.764025215 | I221: 0.8100001803 | J221: =IFERROR(J145/(J36*8760*3.6/1000),0) -> 0.8100000127 | K221: 0.7954662923 | L221: 0.8100002051 | M221: 0 | R221: =+R145 -> Existing Coal | S221: =IFERROR(S145/(S36*8760*3.6/1000),0) -> 0.7444389001 | T221: 0.6692362781 | U221: 0.630713672 | V221: 0.7501028813 | W221: =IFERROR(W145/(W36*8760*3.6/1000),0) -> 0.7992763692 | X221: 0.8100000171 | Y221: 0.7954662878 | Z221: 0.8100002051 | AA221: 0 | AE221: =+AE145 -> Existing Coal | AF221: =IFERROR(AF145/(AF36*8760*3.6/1000),0) -> 0.7444389001 | AG221: 0.6704287246 | AH221: 0.5974620369 | AI221: 0.7032229613 | AJ221: =IFERROR(AJ145/(AJ36*8760*3.6/1000),0) -> 0.810000186 | AK221: 0.8099994611 | AL221: 0.8100008299 | AM221: 0.810000208 | AN221: 0 | AR221: =+AR145 -> Existing Coal | AS221: =IFERROR(AS145/(AS36*8760*3.6/1000),0) -> 0.7444389001 | AT221: 0.670514713 | AU221: 0.5971839 | AV221: 0.6971969079 | AW221: 0.8100000379 | AX221: 0.8099998251 | AY221: =IFERROR(AY145/(AY36*8760*3.6/1000),0) -> 0.8100000693 | AZ221: 0.8100002041 | BA221: 0
D222: =+D146 -> New Coal | E222: 0 | F222: 0.8499981109 | G222: 0.849999452 | H222: 0.8499996044 | I222: 0.8499992502 | J222: 0.8499996097 | K222: 0.8499992423 | L222: 0.8499999076 | M222: 0.8564895789 | R222: =+R146 -> New Coal | S222: 0 | T222: 0.8499981109 | U222: 0.8499990164 | V222: 0.8499992467 | W222: 0.8499988749 | X222: 0.8499992397 | Y222: 0.849999238 | Z222: 0.8499999076 | AA222: 0.8564367995 | AE222: =+AE146 -> New Coal | AF222: 0 | AG222: 0.8499981109 | AH222: 0.8499990086 | AI222: 0.8499996027 | AJ222: 0.8499996149 | AK222: 0.8499988754 | AL222: 0.8499992467 | AM222: 0.8499999081 | AN222: 0.8500209934 | AR222: =+AR146 -> New Coal | AS222: 0 | AT222: 0.8499981109 | AU222: 0.8499994484 | AV222: 0.8499995992 | AW222: 0.8499992449 | AX222: 0.8499992419 | AY222: 0.8499992397 | AZ222: 0.8500007324 | BA222: 0.8500229529
D223: =+D147 -> OCGT diesel | E223: 0.05000092646 | F223: 0.08019116806 | G223: 0.05000080502 | H223: 0.05000089245 | I223: 0.05000139096 | J223: 0.04999934813 | K223: 0.0500005047 | L223: 0.05000208132 | M223: 0 | R223: =+R147 -> OCGT diesel | S223: 0.04999963742 | T223: 0.08019911076 | U223: 0.04999988962 | V223: 0.05000089245 | W223: 0.05000036922 | X223: 0.05000036954 | Y223: 0.0500005047 | Z223: 0.05000208132 | AA223: 0 | AE223: =+AE147 -> OCGT diesel | AF223: 0.05000092646 | AG223: 0.08032731005 | AH223: 0.07141795469 | AI223: 0.0500008928 | AJ223: 0.04999934919 | AK223: 0.05000036954 | AL223: 0.05000050658 | AM223: 0.05000208132 | AN223: 0 | AR223: =+AR147 -> OCGT diesel | AS223: 0.04999963742 | AT223: 0.08033638677 | AU223: 0.07139416023 | AV223: 0.04999996177 | AW223: 0.05000139035 | AX223: 0.0500013902 | AY223: 0.0500036609 | AZ223: 0.05000799742 | BA223: 0
D224: =+D148 -> Inland Gas Plants | E224: 0.5127229617 | F224: 0.5262931383 | G224: 0.5662393459 | H224: 0.6223982022 | I224: 0.7683364326 | J224: 0.7683445543 | K224: 0.7683445571 | L224: 0.8187364543 | M224: 0.7683364344 | R224: =+R148 -> Inland Gas Plants | S224: 0.5127229617 | T224: 0.5262931383 | U224: 0.5662393459 | V224: 0.5662393459 | W224: 0.7683364326 | X224: 0.7683364283 | Y224: 0.7683445543 | Z224: 0.8187364543 | AA224: 0.7683364344 | AE224: =+AE148 -> Inland Gas Plants | AF224: 0.5127229617 | AG224: 0.5262931383 | AH224: 0.5262931383 | AI224: 0.7683364326 | AJ224: 0.7683364326 | AK224: 0.7683364301 | AL224: 0.8878459578 | AM224: 0.8878553492 | AN224: 0.8878553506 | AR224: =+AR148 -> Inland Gas Plants | AS224: 0.5127229617 | AT224: 0.5262931383 | AU224: 0.5262931383 | AV224: 0.7683364326 | AW224: 0.7683364259 | AX224: 0.7683364259 | AY224: 0.887855352 | AZ224: 0.8878459578 | BA224: 0.8878553506
D225: =+D149 -> Gas from N Moz | E225: 0 | F225: 0 | G225: 0 | H225: 0 | I225: 0 | J225: 0 | K225: 0 | L225: 0 | M225: 0 | R225: =+R149 -> Gas from N Moz | S225: 0 | T225: 0 | U225: 0 | V225: 0 | W225: 0 | X225: 0 | Y225: 0 | Z225: 0 | AA225: 0 | AE225: =+AE149 -> Gas from N Moz | AF225: 0 | AG225: 0 | AH225: 0 | AI225: 0 | AJ225: 0 | AK225: 0 | AL225: 0 | AM225: 0 | AN225: 0 | AR225: =+AR149 -> Gas from N Moz | AS225: 0 | AT225: 0 | AU225: 0 | AV225: 0 | AW225: 0 | AX225: 0 | AY225: 0 | AZ225: 0 | BA225: 0
D226: =+D151 -> Coastal Gas | E226: =IFERROR(E151/(E42*8760*3.6/1000),0) -> 0 | F226: 0 | G226: 0.1509630413 | H226: 0.1415324641 | I226: 0.1204550799 | J226: =IFERROR(J151/(J42*8760*3.6/1000),0) -> 0.09407582131 | K226: 0.09582671266 | L226: 0.3602403802 | M226: 0.4853396099 | R226: =+R151 -> Coastal Gas | S226: =IFERROR(S151/(S42*8760*3.6/1000),0) -> 0 | T226: 0 | U226: 0.1509827463 | V226: 0.1509827463 | W226: =IFERROR(W151/(W42*8760*3.6/1000),0) -> 0.08845718483 | X226: 0.09361848525 | Y226: 0.09570261913 | Z226: 0.351983201 | AA226: 0.470025882 | AE226: =+AE151 -> Coastal Gas | AF226: =IFERROR(AF151/(AF42*8760*3.6/1000),0) -> 0 | AG226: 0 | AH226: 0 | AI226: 0 | AJ226: =IFERROR(AJ151/(AJ42*8760*3.6/1000),0) -> 0 | AK226: 0 | AL226: 0 | AM226: 0 | AN226: 0 | AR226: =+AR151 -> Coastal Gas | AS226: =IFERROR(AS151/(AS42*8760*3.6/1000),0) -> 0 | AT226: 0 | AU226: 0 | AV226: 0 | AW226: 0 | AX226: 0 | AY226: =IFERROR(AY151/(AY42*8760*3.6/1000),0) -> 0 | AZ226: 0 | BA226: 0
D227: Nuclear | E227: 0.8103795291 | F227: 0.8103812362 | G227: 0.8103795291 | H227: 0.8103812362 | I227: 0.8725005186 | J227: 0.8811632457 | K227: 0.8906186801 | L227: 0.9000016638 | M227: 0.9000014996 | R227: Nuclear | S227: 0.8103795291 | T227: 0.8103812362 | U227: 0.8103795291 | V227: 0.85182307 | W227: 0.8854547033 | X227: 0.8865007205 | Y227: 0.8918977751 | Z227: 0.9000002434 | AA227: 0.9000002978 | AE227: Nuclear | AF227: 0.8103795291 | AG227: 0.8103812362 | AH227: 0.8103812362 | AI227: 0.8103795291 | AJ227: 0.8103812362 | AK227: 0.8103795291 | AL227: 0.8103812199 | AM227: 0 | AN227: 0 | AR227: Nuclear | AS227: 0.8103795291 | AT227: 0.8103812362 | AU227: 0.8103812362 | AV227: 0.8103795291 | AW227: 0.8103812362 | AX227: 0.761390374 | AY227: 0.7598000794 | AZ227: 0.7499999711 | BA227: 0.7500003114
D228: Solar Thermal | E228: 0 | F228: 0.399923893 | G228: 0.3410546635 | H228: 0.390014583 | I228: 0.6377709646 | J228: 0.6943528871 | K228: 0.6970281409 | L228: 0.6983633246 | M228: 0.6999684271 | R228: Solar Thermal | S228: 0 | T228: 0.399923893 | U228: 0.3410546635 | V228: 0.3864947961 | W228: 0.3914890883 | X228: 0.6929438207 | Y228: 0.6966832565 | Z228: 0.6981926949 | AA228: 0.6999675589 | AE228: Solar Thermal | AF228: 0 | AG228: 0.399923893 | AH228: 0.390014583 | AI228: 0.3914890883 | AJ228: 0.3914890883 | AK228: 0.6938938763 | AL228: 0.6969071702 | AM228: 0.6983037145 | AN228: 0.6999679046 | AR228: Solar Thermal | AS228: 0 | AT228: 0.399923893 | AU228: 0.390014583 | AV228: 0.3914890883 | AW228: 0.3914890883 | AX228: 0.6518985546 | AY228: 0.6944999758 | AZ228: 0.697184816 | BA228: 0.6999678581
D229: Solar PV | E229: 0 | F229: 0.2679378974 | G229: 0.2589983197 | H229: 0.2679378974 | I229: 0.2679401013 | J229: 0.2679401208 | K229: 0.2679391802 | L229: 0.2679393334 | M229: 0.2679397599 | R229: Solar PV | S229: 0 | T229: 0.2679378974 | U229: 0.2590946092 | V229: 0.2660339969 | W229: 0.2679397948 | X229: 0.2679382828 | Y229: 0.2679394755 | Z229: 0.267938836 | AA229: 0.2679397546 | AE229: Solar PV | AF229: 0 | AG229: 0.2679378974 | AH229: 0.2679378974 | AI229: 0.2679378974 | AJ229: 0.2679378974 | AK229: 0.2679396357 | AL229: 0.267938863 | AM229: 0.2679379443 | AN229: 0.2679378338 | AR229: Solar PV | AS229: 0 | AT229: 0.2679378974 | AU229: 0.2679378974 | AV229: 0.2679378974 | AW229: 0.2679378974 | AX229: 0.2679381264 | AY229: 0.2679386252 | AZ229: 0.267938938 | BA229: 0.2679376914
D230: Wind | E230: 0 | F230: 0.3199060782 | G230: 0.2699350917 | H230: 0.3423003817 | I230: 0.350001184 | J230: 0.3499999979 | K230: 0.3499999971 | L230: 0.3485944528 | M230: 0.3464575679 | R230: Wind | S230: 0 | T230: 0.3198784199 | U230: 0.2702198135 | V230: 0.2901486613 | W230: 0.3500008736 | X230: 0.3500001341 | Y230: 0.3500003165 | Z230: 0.3443270191 | AA230: 0.340778131 | AE230: Wind | AF230: 0 | AG230: 0.3187590588 | AH230: 0.3472832306 | AI230: 0.3499954022 | AJ230: 0.3499990864 | AK230: 0.3500001146 | AL230: 0.349999999 | AM230: 0.3500003162 | AN230: 0.3500003732 | AR230: Wind | AS230: 0 | AT230: 0.3187069966 | AU230: 0.3472832306 | AV230: 0.3499954022 | AW230: 0.3500009096 | AX230: 0.3500013661 | AY230: 0.3500008181 | AZ230: 0.3499999998 | BA230: 0.3500002926
D231: Hydro domestic | E231: 0.6001290951 | F231: 0.663423039 | G231: 0.588818302 | H231: 0.6634257485 | I231: 0.7247882604 | J231: 0.7247882612 | K231: 0.7247882622 | L231: 0.724788262 | M231: 0.7247882608 | R231: Hydro domestic | S231: 0.6001290951 | T231: 0.6633688333 | U231: 0.588818302 | V231: 0.6415161807 | W231: 0.7247882588 | X231: 0.724788262 | Y231: 0.7247909695 | Z231: 0.7247909715 | AA231: 0.7247882608 | AE231: Hydro domestic | AF231: 0.6001290951 | AG231: 0.6633525724 | AH231: 0.7010411493 | AI231: 0.7247882596 | AJ231: 0.7247882588 | AK231: 0.724788258 | AL231: 0.7247882628 | AM231: 0.7247882624 | AN231: 0.7247855489 | AR231: Hydro domestic | AS231: 0.6001290951 | AT231: 0.663303788 | AU231: 0.7013392766 | AV231: 0.7247882596 | AW231: 0.7247882604 | AX231: 0.7247882604 | AY231: 0.7247882604 | AZ231: 0.7247882588 | BA231: 0.7247882612
D232: Pumped Storage | E232: 0.2450022884 | F232: 0.2015466483 | G232: 0.2015466487 | H232: 0.2015455602 | I232: 0.06861380265 | J232: 0.06861380246 | K232: 0.0686138023 | L232: 0.1500025472 | M232: 0.1500025472 | R232: Pumped Storage | S232: 0.2450002823 | T232: 0.2015466492 | U232: 0.2015466477 | V232: 0.2015466484 | W232: 0.2015466502 | X232: 0.06861380336 | Y232: 0.06861380263 | Z232: 0.1500049297 | AA232: 0.1500025472 | AE232: Pumped Storage | AF232: 0.2450022884 | AG232: 0.2015466481 | AH232: 0.2015455589 | AI232: 0.2015455601 | AJ232: 0.06861380265 | AK232: 0.06861489093 | AL232: 0.06861380263 | AM232: 0.1500025486 | AN232: 0.1500049272 | AR232: Pumped Storage | AS232: 0.2450002823 | AT232: 0.2015466488 | AU232: 0.20154556 | AV232: 0.2015477375 | AW232: 0.06861380265 | AX232: 0.06861271335 | AY232: 0.06861489154 | AZ232: 0.1500001661 | BA232: 0.1500001669
D233: Biomass | E233: 0 | F233: 0.499746327 | G233: 0.4997463226 | H233: 0.5000307731 | I233: 0.5000126881 | J233: 0.500012691 | K233: 0.4999949008 | L233: 0.5000063432 | M233: 0.5000000002 | R233: Biomass | S233: 0 | T233: 0.499746327 | U233: 0.4997463226 | V233: 0.4997463285 | W233: 0.5000126881 | X233: 0.5000126919 | Y233: 0.4999948989 | Z233: 0.5000000002 | AA233: 0.5000000002 | AE233: Biomass | AF233: 0 | AG233: 0.499746327 | AH233: 0.5001691231 | AI233: 0.4997463226 | AJ233: 0.4997463226 | AK233: 0.5001691231 | AL233: 0.4997463344 | AM233: 0 | AN233: 0 | AR233: Biomass | AS233: 0 | AT233: 0.499746327 | AU233: 0.5001691231 | AV233: 0.4997463226 | AW233: 0.4997463226 | AX233: 0.499323534 | AY233: 0.4997463374 | AZ233: 0 | BA233: 0
B251: \E | P251: \E | AC251: \E | AP251: \E

Sheet ElcPrice_TIMES v2
A1: RSA - Electricity Production | B1: =IF($E$16,"\C","") -> \C | S1: =IF($E$17,"\C","") -> \C | AG1: =IF($E$18,"\C","") -> \C | AU1: =IF($E$19,"\C","") -> \C | BH1: =IF($E$19,"\C","") -> \C
AB2: Upstream Infrastructure
Z3: Fuel | AB3: =[3]ITEMS_UPS!B8 -> Existing Refineries
R4: =[3]ITEMS_UPS!D9 -> Refinery Crude Oil Coastal Existing | Z4: =IF(MID(AC4,2,3)<>"GAS","O*",MID(AC4,5,3)) -> O* | AB4: =[3]ITEMS_UPS!B9 -> T | AC4: =[3]ITEMS_UPS!C9 -> UREFOCRCO-E
R5: =[3]ITEMS_UPS!D10 -> Refinery Crude Oil Inland Existing | Z5: =IF(MID(AC5,2,3)<>"GAS","O*",MID(AC5,5,3)) -> O* | AB5: =[3]ITEMS_UPS!B10 -> T | AC5: =[3]ITEMS_UPS!C10 -> UREFOCRIN-E
R6: =[3]ITEMS_UPS!D11 -> Refinery GTL Existing | Z6: O* | AB6: =[3]ITEMS_UPS!B11 -> T | AC6: =[3]ITEMS_UPS!C11 -> UGTLGICCO-E
R7: =[3]ITEMS_UPS!D12 -> Refinery CTL Existing | Z7: O* | AB7: =[3]ITEMS_UPS!B12 -> T | AC7: =[3]ITEMS_UPS!C12 -> UCTLCLEIN-E
Z8: O* | AB8: =[3]ITEMS_UPS!B13 -> New Refineries
R9: =[3]ITEMS_UPS!D14 -> Refinery CTL New | Z9: O* | AB9: =[3]ITEMS_UPS!B14 -> T | AC9: =[3]ITEMS_UPS!C14 -> UCTLCLEIN-N
R10: =[3]ITEMS_UPS!D15 -> Refinery GTL New - Inland | Z10: O* | AB10: =[3]ITEMS_UPS!B15 -> T | AC10: =[3]ITEMS_UPS!C15 -> UGTLGASIN-N
Z11: O* | AB11: =[3]ITEMS_UPS!B23 -> T
R12: =[3]ITEMS_UPS!D24 -> Pipeline Gas Indigenous Ibhubezi | Z12: GIB | AB12: =[3]ITEMS_UPS!B24 -> T | AC12: =[3]ITEMS_UPS!C24 -> UGASGIB-N
E13: in 2015 c/kWh | G13: =G16*(1.06^5) -> 41.62727789 | H13: =H16*(1.06^5) -> 47.52171263 | I13: 59.32473372 | J13: 64.59912091 | K13: 77.7564425 | L13: 82.55907933 | M13: 88.483426 | N13: 93.55824501 | O13: 100.6714105 | R13: =[3]ITEMS_UPS!D25 -> Pipeline Gas Northern Mozambique | Z13: GRM | AB13: =[3]ITEMS_UPS!B25 -> T | AC13: =[3]ITEMS_UPS!C25 -> UGASGRM-N
R14: =[3]ITEMS_UPS!D26 -> Pipeline Gas Southern Mozambique | Z14: GRS | AB14: =[3]ITEMS_UPS!B26 -> T | AC14: =[3]ITEMS_UPS!C26 -> UGASGRS-N
A15: Scenario to refresh | E15: refresh? | G15: 2010 | H15: =G15+5 -> 2015 | I15: =H15+5 -> 2020 | J15: 2025 | K15: 2030 | L15: 2035 | M15: 2040 | N15: 2045 | O15: 2050 | R15: =[3]ITEMS_UPS!D27 -> Pipeline Gas Indigenous Shale | Z15: GIH | AB15: =[3]ITEMS_UPS!B27 -> T | AC15: =[3]ITEMS_UPS!C27 -> UGASGIH-N
A16: 1 | B16: =Power!B16 -> CGERUN10 | D16: =Power!C16 -> Best | E16: 1 | F16: =D16 -> Best | G16: =E136 -> 31.10632362 | H16: =F136 -> 35.51098815 | I16: =G136 -> 44.33089213 | J16: 48.27222106 | K16: 58.10413715 | L16: 61.69294677 | M16: 66.11996324 | N16: 69.91216322 | O16: 75.22753426 | R16: =[3]ITEMS_UPS!D28 -> LNG Terminal | Z16: O* | AB16: =[3]ITEMS_UPS!B28 -> T | AC16: =[3]ITEMS_UPS!C28 -> ULGTGRL-N
A17: 2 | B17: =Power!B17 -> CGERUN11 | D17: =Power!C17 -> Best Forced | E17: 1 | F17: =D17 -> Best Forced | G17: =V136 -> 31.10632362 | H17: =W136 -> 35.5040933 | I17: 44.31810014 | J17: 49.57837288 | K17: 58.61474191 | L17: 62.39207246 | M17: 66.53907523 | N17: 70.26085448 | O17: 75.11557612
A18: 3 | B18: =Power!B18 -> CGERUN20 | D18: =Power!C18 -> Worst | E18: 1 | F18: Worst | G18: =AJ136 -> 31.10632362 | H18: =AK136 -> 35.40635285 | I18: 44.03901152 | J18: 47.78414735 | K18: 52.8017561 | L18: 53.75795193 | M18: 54.96488724 | N18: 55.74828979 | O18: 57.3029212 | Z18: UNIQUE List
A19: 4 | B19: =Power!B19 -> CGERUN21 | D19: =Power!C19 -> Worst Forced | E19: 1 | F19: Worst Forced | G19: =AX136 -> 31.10632362 | H19: =AY136 -> 35.40314059 | I19: 44.04685155 | J19: 47.90929301 | K19: 55.61619394 | L19: 68.69750868 | M19: 68.49825106 | N19: 68.09640221 | O19: 68.62153403 | Z19: =Z11 -> O* | AC19: Oil Products
Z20: =Z12 -> GIB | AC20: Ibhubezi
Z21: =Z13 -> GRM | AC21: Northern Mozambique
Z22: =Z14 -> GRS | AC22: Shale
A23: Fuel Costs | R23: Fuel Costs | Z23: =Z15 -> GIH | AC23: LNG | AF23: Fuel Costs | AT23: Fuel Costs
A24: Production | R24: Production | AF24: Production | AT24: Production
A26: Power Sector Fuel Marginals (short run) | B26: \T | R26: Power Sector Fuel Marginals (short run) | S26: \T | AF26: Power Sector Fuel Marginals (short run) | AG26: \T | AT26: Power Sector Fuel Marginals (short run) | AU26: \T
B27: =B16 -> CGERUN10 | S27: =B17 -> CGERUN11 | AG27: =B18 -> CGERUN20 | AU27: =B19 -> CGERUN21
B28: EQ_COMBAL.M | S28: EQ_COMBAL.M | AG28: EQ_COMBAL.M | AU28: EQ_COMBAL.M
E29: 2010 | F29: =E29+5 -> 2015 | G29: =F29+5 -> 2020 | H29: 2025 | I29: 2030 | J29: 2035 | K29: 2040 | L29: 2045 | M29: 2050 | V29: 2010 | W29: =V29+5 -> 2015 | X29: =W29+5 -> 2020 | Y29: 2025 | Z29: 2030 | AA29: 2035 | AB29: 2040 | AC29: 2045 | AD29: 2050 | AJ29: 2010 | AK29: =AJ29+5 -> 2015 | AL29: =AK29+5 -> 2020 | AM29: 2025 | AN29: 2030 | AO29: 2035 | AP29: 2040 | AQ29: 2045 | AR29: 2050 | AX29: 2010 | AY29: =AX29+5 -> 2015 | AZ29: =AY29+5 -> 2020 | BA29: 2025 | BB29: 2030 | BC29: 2035 | BD29: 2040 | BE29: 2045 | BF29: 2050
B30: PWRBIG | E30: 0 | F30: 0 | G30: 0 | H30: 0 | I30: 0 | J30: 0 | K30: 0 | L30: 0 | M30: 0 | S30: PWRBIG | V30: 0 | W30: 0 | X30: 0 | Y30: 0 | Z30: 0 | AA30: 0 | AB30: 0 | AC30: 0 | AD30: 0 | AG30: PWRBIG | AJ30: 0 | AK30: 0 | AL30: 0 | AM30: 0 | AN30: 0 | AO30: 0 | AP30: 0 | AQ30: 0 | AR30: 0 | AU30: PWRBIG | AX30: 0 | AY30: 0 | AZ30: 0 | BA30: 0 | BB30: 0 | BC30: 0 | BD30: 0 | BE30: 0 | BF30: 0
B31: PWRBIB | S31: PWRBIB | AG31: PWRBIB | AU31: PWRBIB
B32: PWRBIO | E32: 0 | F32: 0 | G32: 0 | H32: 0 | I32: 0 | J32: 0 | K32: 0 | L32: 0 | M32: 0 | S32: PWRBIO | V32: 0 | W32: 0 | X32: 0 | Y32: 0 | Z32: 0 | AA32: 0 | AB32: 0 | AC32: 0 | AD32: 0 | AG32: PWRBIO | AJ32: 0 | AK32: 0 | AL32: 0 | AM32: 0 | AN32: 0 | AO32: 0 | AP32: 0 | AQ32: 0 | AR32: 0 | AU32: PWRBIO | AX32: 0 | AY32: 0 | AZ32: 0 | BA32: 0 | BB32: 0 | BC32: 0 | BD32: 0 | BE32: 0 | BF32: 0
B33: PWRBIW | S33: PWRBIW | AG33: PWRBIW | AU33: PWRBIW
B34: PWRCLD | E34: 0 | F34: 0 | G34: 0 | H34: 0 | I34: 17.49090004 | J34: 35.03730011 | K34: 35.10929871 | L34: 32.83280182 | M34: 34.9980011 | S34: PWRCLD | V34: 0 | W34: 0 | X34: 0 | Y34: 0 | Z34: 31.93359947 | AA34: 35.03730011 | AB34: 35.10929871 | AC34: 32.83280182 | AD34: 34.9980011 | AG34: PWRCLD | AJ34: 0 | AK34: 0 | AL34: 0 | AM34: 0 | AN34: 6.043600082 | AO34: 35.03730011 | AP34: 15.16170025 | AQ34: 15.36989975 | AR34: 15.3739996 | AU34: PWRCLD | AX34: 0 | AY34: 0 | AZ34: 0 | BA34: 0 | BB34: 0 | BC34: 0 | BD34: 11.48419952 | BE34: 15.36470032 | BF34: 15.3739996
B35: PWRCLE | E35: 20.67000008 | F35: 20.67000008 | G35: 28.37999916 | H35: 28.37999916 | I35: 28.37999916 | J35: 28.37999916 | K35: 28.37999916 | L35: 28.37999916 | M35: 28.37999916 | S35: PWRCLE | V35: 20.67000008 | W35: 20.67000008 | X35: 28.37999916 | Y35: 28.37999916 | Z35: 28.37999916 | AA35: 28.37999916 | AB35: 28.37999916 | AC35: 28.37999916 | AD35: 28.37999916 | AG35: PWRCLE | AJ35: 20.67000008 | AK35: 20.67000008 | AL35: 28.37999916 | AM35: 28.37999916 | AN35: 28.37999916 | AO35: 28.37999916 | AP35: 28.37999916 | AQ35: 28.37999916 | AR35: 24.41189957 | AU35: PWRCLE | AX35: 20.67000008 | AY35: 20.67000008 | AZ35: 28.37999916 | BA35: 28.37999916 | BB35: 28.37999916 | BC35: 28.37999916 | BD35: 28.37999916 | BE35: 28.37999916 | BF35: 24.41189957
B36: PWRCRB | E36: 0 | F36: 0 | G36: 17.73859978 | H36: 18.06500053 | I36: 18.39139938 | J36: 18.51230049 | K36: 18.65609932 | L36: 18.75040054 | M36: 18.86669922 | S36: PWRCRB | V36: 0 | W36: 0 | X36: 17.73859978 | Y36: 18.06500053 | Z36: 18.39139938 | AA36: 18.51230049 | AB36: 18.65609932 | AC36: 18.75040054 | AD36: 18.86669922 | AG36: PWRCRB | AJ36: 0 | AK36: 0 | AL36: 17.73859978 | AM36: 18.06500053 | AN36: 18.39139938 | AO36: 18.51230049 | AP36: 18.65609932 | AQ36: 18.75040054 | AR36: 18.86669922 | AU36: PWRCRB | AX36: 0 | AY36: 0 | AZ36: 17.73859978 | BA36: 18.06500053 | BB36: 18.39139938 | BC36: 18.51230049 | BD36: 18.65609932 | BE36: 18.75040054 | BF36: 18.86669922
B37: PWRGAS | E37: 1.578400016 | F37: 0.6164000034 | G37: 0.005200000014 | H37: 1.578400016 | I37: 81.98069763 | J37: 82.71269989 | K37: 42.36729813 | L37: 86.14820099 | M37: 87.59770203 | S37: PWRGAS | V37: 1.578400016 | W37: 0.6164000034 | X37: 0.005200000014 | Y37: 1.512500048 | Z37: 11.53409958 | AA37: 82.65399933 | AB37: 66.31860352 | AC37: 86.14820099 | AD37: 87.59770203 | AG37: PWRGAS | AJ37: 1.578400016 | AK37: 0.6164000034 | AL37: 1.512500048 | AM37: 24.05200005 | AN37: 59.86800003 | AO37: 59.86800003 | AP37: 63.87409973 | AQ37: 60.6792984 | AR37: 66.9260025 | AU37: PWRGAS | AX37: 1.578400016 | AY37: 0.6164000034 | AZ37: 1.512500048 | BA37: 24.05200005 | BB37: 59.86800003 | BC37: 59.86800003 | BD37: 58.7254982 | BE37: 64.26180267 | BF37: 64.26689911
B38: PWRGRS | S38: PWRGRS | AG38: PWRGRS | AU38: PWRGRS
B39: PWRGRN | E39: 0 | F39: 0 | G39: 54.60680008 | H39: 54.60680008 | I39: 54.60680008 | J39: 54.60680008 | K39: 54.60680008 | L39: 54.60680008 | M39: 54.60680008 | S39: PWRGRN | V39: 0 | W39: 0 | X39: 54.60680008 | Y39: 54.60680008 | Z39: 54.60680008 | AA39: 54.60680008 | AB39: 54.60680008 | AC39: 54.60680008 | AD39: 54.60680008 | AG39: PWRGRN | AJ39: 0 | AK39: 0 | AL39: 14.64729977 | AM39: 53.63690186 | AN39: 54.60680008 | AO39: 54.60680008 | AP39: 54.60680008 | AQ39: 54.60680008 | AR39: 54.60680008 | AU39: PWRGRN | AX39: 0 | AY39: 0 | AZ39: 14.64729977 | BA39: 54.60680008 | BB39: 43.71530151 | BC39: 47.37789917 | BD39: 54.60680008 | BE39: 54.60680008 | BF39: 54.60680008
B40: PWRGRM | E40: 0 | F40: 0 | G40: 190.5706024 | H40: 94.00240326 | I40: 54.4919014 | J40: 77.95429993 | K40: 39.92990112 | L40: 81.19219971 | M40: 62.32830048 | S40: PWRGRM | V40: 0 | W40: 0 | X40: 190.5706024 | Y40: 211.4967957 | Z40: 54.4919014 | AA40: 56.57120132 | AB40: 62.50329971 | AC40: 81.19219971 | AD40: 62.32830048 | AG40: PWRGRM | AJ40: 0 | AK40: 0 | AL40: 256.7185059 | AM40: 23.13089943 | AN40: 40.11209869 | AO40: 56.4239006 | AP40: 61.30369949 | AQ40: 63.07120132 | AR40: 39.18590164 | AU40: PWRGRM | AX40: 0 | AY40: 0 | AZ40: 256.7185059 | BA40: 23.13089943 | BB40: 28.47089958 | BC40: 50.5746994 | BD40: 56.4239006 | BE40: 62.98049927 | BF40: 39.18590164
B41: PWRGIH | E41: 36.6637001 | F41: 82.35449982 | G41: 110.3398972 | H41: 84.6576004 | I41: 87.60959625 | J41: 88.39179993 | K41: 90.8082962 | L41: 314.9122925 | M41: 128.8103943 | S41: PWRGIH | V41: 40.11059952 | W41: 106.9852982 | X41: 85.86810303 | Y41: 64.3565979 | Z41: 87.60959625 | AA41: 88.32920074 | AB41: 70.87210083 | AC41: 319.002594 | AD41: 128.8103943 | AG41: PWRGIH | AJ41: 42.1269989 | AK41: 100.1735001 | AL41: 231.9718933 | AM41: 63.97869873 | AN41: 70.13760376 | AO41: 68.66470337 | AP41: 68.62830353 | AQ41: 68.67410278 | AR41: 68.67960358 | AU41: PWRGIH | AX41: 37.16479874 | AY41: 100.1735001 | AZ41: 231.9718933 | BA41: 63.97869873 | BB41: 63.97969818 | BC41: 63.97869873 | BD41: 68.62830353 | BE41: 68.67410278 | BF41: 68.67960358
B42: PWRGIC | E42: 99999 | F42: 99999 | G42: 83.12359619 | H42: 84.6576004 | I42: 87.60959625 | J42: 88.39179993 | K42: 90.8082962 | L42: 92.06330109 | M42: 93.61229706 | S42: PWRGIC | V42: 99999 | W42: 99999 | X42: 72.72280121 | Y42: 84.62280273 | Z42: 87.60959625 | AA42: 88.89289856 | AB42: 90.8082962 | AC42: 92.06330109 | AD42: 93.61229706 | AG42: PWRGIC | AJ42: 99999 | AK42: 99999 | AL42: 68.4312973 | AM42: 56.00159836 | AN42: 71.99069977 | AO42: 63.97869873 | AP42: 71.99069977 | AQ42: 87.03420258 | AR42: 85.27480316 | AU42: PWRGIC | AX42: 99999 | AY42: 99999 | AZ42: 68.4312973 | BA42: 63.97869873 | BB42: 71.99069977 | BC42: 63.97869873 | BD42: 71.99069977 | BE42: 107.9488983 | BF42: 71.52120209
B43: PWRHYD | E43: 0 | F43: 9.999999747e-05 | G43: 0 | H43: 0 | I43: 0 | J43: 0 | K43: 0 | L43: 0 | M43: 0 | S43: PWRHYD | V43: 0 | W43: 9.999999747e-05 | X43: 0 | Y43: 0 | Z43: 0 | AA43: 0 | AB43: 0 | AC43: 0 | AD43: 0 | AG43: PWRHYD | AJ43: 0 | AK43: 0 | AL43: 0 | AM43: 0 | AN43: 0 | AO43: 0 | AP43: 0 | AQ43: 0 | AR43: 0 | AU43: PWRHYD | AX43: 0 | AY43: 0 | AZ43: 0 | BA43: 0 | BB43: 0 | BC43: 0 | BD43: 0 | BE43: 0 | BF43: 0
B44: PWRNUC | E44: 6.5 | F44: 6.5 | G44: 6.5 | H44: 6.5 | I44: 6.5 | J44: 6.5 | K44: 6.5 | L44: 6.5 | M44: 6.5 | S44: PWRNUC | V44: 6.5 | W44: 6.5 | X44: 6.5 | Y44: 6.5 | Z44: 6.5 | AA44: 6.5 | AB44: 6.5 | AC44: 6.5 | AD44: 6.5 | AG44: PWRNUC | AJ44: 6.5 | AK44: 6.5 | AL44: 6.5 | AM44: 6.5 | AN44: 6.5 | AO44: 6.5 | AP44: 6.5 | AQ44: 6.5 | AR44: 6.5 | AU44: PWRNUC | AX44: 6.5 | AY44: 6.5 | AZ44: 6.5 | BA44: 6.5 | BB44: 6.5 | BC44: 6.5 | BD44: 6.5 | BE44: 6.5 | BF44: 6.5
B45: PWRODS | E45: 129.2393036 | F45: 129.2393036 | G45: 155.6665955 | H45: 158.6074982 | I45: 161.5484009 | J45: 164.875 | K45: 168.832901 | L45: 171.4261017 | M45: 165.8954926 | S45: PWRODS | V45: 129.2393036 | W45: 129.2393036 | X45: 155.6665955 | Y45: 158.6074982 | Z45: 161.5484009 | AA45: 164.875 | AB45: 168.832901 | AC45: 171.4261017 | AD45: 165.8954926 | AG45: PWRODS | AJ45: 129.2393036 | AK45: 129.2393036 | AL45: 155.6665955 | AM45: 158.6074982 | AN45: 161.5484009 | AO45: 164.875 | AP45: 168.832901 | AQ45: 171.4261017 | AR45: 165.8954926 | AU45: PWRODS | AX45: 129.2393036 | AY45: 129.2393036 | AZ45: 155.6665955 | BA45: 158.6074982 | BB45: 161.5484009 | BC45: 164.875 | BD45: 168.832901 | BE45: 171.4261017 | BF45: 165.8954926
B46: PWRSOL | E46: 0 | F46: 0 | G46: 0 | H46: 0 | I46: 0 | J46: 0 | K46: 0 | L46: 0 | M46: 0 | S46: PWRSOL | V46: 0 | W46: 0 | X46: 0 | Y46: 0 | Z46: 0 | AA46: 0 | AB46: 0 | AC46: 0 | AD46: 0 | AG46: PWRSOL | AJ46: 0 | AK46: 0 | AL46: 0 | AM46: 0 | AN46: 0 | AO46: 0 | AP46: 0 | AQ46: 0 | AR46: 0 | AU46: PWRSOL | AX46: 0 | AY46: 0 | AZ46: 0 | BA46: 0 | BB46: 0 | BC46: 0 | BD46: 0 | BE46: 0 | BF46: 0
B47: PWRWND | E47: 0 | F47: 9.999999747e-05 | G47: 0 | H47: 0 | I47: 0 | J47: 0 | K47: 0 | L47: 0 | M47: 0 | S47: PWRWND | V47: 0 | W47: 9.999999747e-05 | X47: 0 | Y47: 0 | Z47: 0 | AA47: 0 | AB47: 0 | AC47: 0 | AD47: 0 | AG47: PWRWND | AJ47: 0 | AK47: 0 | AL47: 0 | AM47: 0 | AN47: 0 | AO47: 0 | AP47: 0 | AQ47: 0 | AR47: 0 | AU47: PWRWND | AX47: 0 | AY47: 0 | AZ47: 0 | BA47: 0 | BB47: 0 | BC47: 0 | BD47: 0 | BE47: 0 | BF47: 0
B52: \T | S52: \T | AG52: \T | AU52: \T
B53: =B27 -> CGERUN10 | S53: =S27 -> CGERUN11 | AG53: =AG27 -> CGERUN20 | AU53: =AU27 -> CGERUN21
B54: VAR_ACT.L | S54: VAR_ACT.L | AG54: VAR_ACT.L | AU54: VAR_ACT.L
E55: =E$29 -> 2010 | F55: 2015 | G55: 2020 | H55: 2025 | I55: 2030 | J55: 2035 | K55: 2040 | L55: 2045 | M55: 2050 | V55: =V$29 -> 2010 | W55: 2015 | X55: 2020 | Y55: 2025 | Z55: 2030 | AA55: 2035 | AB55: 2040 | AC55: 2045 | AD55: 2050 | AJ55: =AJ$29 -> 2010 | AK55: 2015 | AL55: 2020 | AM55: 2025 | AN55: 2030 | AO55: 2035 | AP55: 2040 | AQ55: 2045 | AR55: 2050 | AX55: =AX$29 -> 2010 | AY55: 2015 | AZ55: 2020 | BA55: 2025 | BB55: 2030 | BC55: 2035 | BD55: 2040 | BE55: 2045 | BF55: 2050
B56: ="X"&B30 -> XPWRBIG | D56: =D30 -> 0 | E56: 0 | F56: 0.1182999983 | G56: 0.1182999983 | H56: 7.883999825 | I56: 7.883999825 | J56: 7.883999825 | K56: 7.883999825 | L56: 7.883999825 | M56: 7.883999825 | S56: ="X"&S30 -> XPWRBIG | U56: =U30 -> 0 | V56: 0 | W56: 0.1182999983 | X56: 0.1182999983 | Y56: 0.1182999983 | Z56: 7.883999825 | AA56: 7.883999825 | AB56: 7.883999825 | AC56: 7.883999825 | AD56: 7.883999825 | AG56: ="X"&AG30 -> XPWRBIG | AI56: =AI30 -> 0 | AJ56: 0 | AK56: 0.1182999983 | AL56: 0.1182999983 | AM56: 0.1182999983 | AN56: 0.1182999983 | AO56: 0.1182999983 | AP56: 0.07880000025 | AQ56: 0 | AR56: 0 | AU56: ="X"&AU30 -> XPWRBIG | AW56: =AW30 -> 0 | AX56: 0 | AY56: 0.1182999983 | AZ56: 0.1182999983 | BA56: 0.1182999983 | BB56: 0.1182999983 | BC56: 0.1182999983 | BD56: 0.07880000025 | BE56: 0 | BF56: 0
B57: XPWRBIB | D57: 0 | S57: XPWRBIB | U57: 0 | AG57: XPWRBIB | AI57: 0 | AU57: XPWRBIB | AW57: 0
B58: XPWRBIO | D58: 0 | E58: 0 | F58: 0 | G58: 0 | H58: 0 | I58: 0 | J58: 0 | K58: 0 | L58: 0 | M58: 0 | S58: XPWRBIO | U58: 0 | V58: 0 | W58: 0 | X58: 0 | Y58: 0 | Z58: 0 | AA58: 0 | AB58: 0 | AC58: 0 | AD58: 0 | AG58: XPWRBIO | AI58: 0 | AJ58: 0 | AK58: 0 | AL58: 0 | AM58: 0 | AN58: 0 | AO58: 0 | AP58: 0 | AQ58: 0 | AR58: 0 | AU58: XPWRBIO | AW58: 0 | AX58: 0 | AY58: 0 | AZ58: 0 | BA58: 0 | BB58: 0 | BC58: 0 | BD58: 0 | BE58: 0 | BF58: 0
B59: XPWRBIW | D59: 0 | S59: XPWRBIW | U59: 0 | AG59: XPWRBIW | AI59: 0 | AU59: XPWRBIW | AW59: 0
B60: XPWRCLD | D60: 0 | S60: XPWRCLD | U60: 0 | AG60: XPWRCLD | AI60: 0 | AJ60: 0 | AK60: 0 | AL60: 0 | AM60: 0 | AN60: 0 | AO60: 0 | AP60: 0 | AQ60: 0 | AR60: 71.28610229 | AU60: XPWRCLD | AW60: 0 | AX60: 0 | AY60: 0 | AZ60: 0 | BA60: 0 | BB60: 0 | BC60: 0 | BD60: 0 | BE60: 0 | BF60: 71.28610229
B61: XPWRCLE | D61: 0 | E61: 0 | F61: 0 | G61: 613.015686 | H61: 1530.660278 | I61: 1737.008789 | J61: 1334.442749 | K61: 854.1431885 | L61: 538.696228 | M61: 876.6530151 | S61: XPWRCLE | U61: 0 | V61: 0 | W61: 0 | X61: 611.2061768 | Y61: 1474.502319 | Z61: 1706.330444 | AA61: 1334.442749 | AB61: 854.1431885 | AC61: 538.696228 | AD61: 648.5057983 | AG61: XPWRCLE | AI61: 0 | AJ61: 0 | AK61: 0 | AL61: 489.8493042 | AM61: 1334.73291 | AN61: 1737.008789 | AO61: 1334.442749 | AP61: 854.1431885 | AQ61: 538.696228 | AR61: 12.1196003 | AU61: XPWRCLE | AW61: 0 | AX61: 0 | AY61: 0 | AZ61: 485.6687012 | BA61: 1308.167114 | BB61: 1737.008789 | BC61: 1334.442749 | BD61: 854.1431885 | BE61: 538.696228 | BF61: 12.1196003
B62: XPWRCRB | D62: 0 | E62: 0 | F62: 0 | G62: 0 | H62: 12.19299984 | I62: 163.5245056 | J62: 163.5245056 | K62: 163.5245056 | L62: 163.5245056 | M62: 163.5245056 | S62: XPWRCRB | U62: 0 | V62: 0 | W62: 0 | X62: 0 | Y62: 0 | Z62: 151.9588013 | AA62: 163.5245056 | AB62: 163.5245056 | AC62: 163.5245056 | AD62: 163.5245056 | AG62: XPWRCRB | AI62: 0 | AJ62: 0 | AK62: 0 | AL62: 0 | AM62: 0 | AN62: 163.5245056 | AO62: 163.5245056 | AP62: 163.5245056 | AQ62: 163.5245056 | AR62: 163.5245056 | AU62: XPWRCRB | AW62: 0 | AX62: 0 | AY62: 0 | AZ62: 0 | BA62: 0 | BB62: 76.58740234 | BC62: 145.1103973 | BD62: 163.5245056 | BE62: 163.5245056 | BF62: 163.5245056
B63: XPWRGAS | D63: 0 | E63: 9.342200279 | F63: 14.38440037 | G63: 15.4762001 | H63: 17.01110077 | I63: 21 | J63: 21 | K63: 21 | L63: 21 | M63: 21 | S63: XPWRGAS | U63: 0 | V63: 9.342200279 | W63: 14.38440037 | X63: 15.4762001 | Y63: 15.4762001 | Z63: 21 | AA63: 21 | AB63: 21 | AC63: 21 | AD63: 21 | AG63: XPWRGAS | AI63: 0 | AJ63: 9.342200279 | AK63: 14.38440037 | AL63: 14.38440037 | AM63: 21 | AN63: 21 | AO63: 21 | AP63: 21 | AQ63: 21 | AR63: 21 | AU63: XPWRGAS | AW63: 0 | AX63: 9.342200279 | AY63: 14.38440037 | AZ63: 14.38440037 | BA63: 21 | BB63: 21 | BC63: 21 | BD63: 21 | BE63: 21 | BF63: 21
B64: XPWRGRS | D64: 0 | S64: XPWRGRS | U64: 0 | AG64: XPWRGRS | AI64: 0 | AU64: XPWRGRS | AW64: 0
B65: XPWRGRN | D65: 0 | E65: 0 | F65: 0 | G65: 1.292099953 | H65: 25.86170006 | I65: 43.54130173 | J65: 43.54130173 | K65: 27.98089981 | L65: 43.54130173 | M65: 43.54130173 | S65: XPWRGRN | U65: 0 | V65: 0 | W65: 0 | X65: 1.279199958 | Y65: 18.46629906 | Z65: 28.55970001 | AA65: 43.54130173 | AB65: 43.54130173 | AC65: 43.54130173 | AD65: 43.54130173 | AG65: XPWRGRN | AI65: 0 | AJ65: 0 | AK65: 0 | AL65: 0 | AM65: 0 | AN65: 43.54130173 | AO65: 43.54130173 | AP65: 43.54130173 | AQ65: 43.54130173 | AR65: 43.54130173 | AU65: XPWRGRN | AW65: 0 | AX65: 0 | AY65: 0 | AZ65: 0 | BA65: 0 | BB65: 0 | BC65: 0 | BD65: 43.54130173 | BE65: 43.54130173 | BF65: 43.54130173
B66: XPWRGRM | D66: 0 | S66: XPWRGRM | U66: 0 | AG66: XPWRGRM | AI66: 0 | AU66: XPWRGRM | AW66: 0
B67: XPWRGIH | D67: 0 | S67: XPWRGIH | U67: 0 | AG67: XPWRGIH | AI67: 0 | AJ67: 0 | AK67: 0 | AL67: 0 | AM67: 0 | AN67: 2.827199936 | AO67: 5.593200207 | AP67: 85.57700348 | AQ67: 669.7523804 | AR67: 1516.531738 | AU67: XPWRGIH | AW67: 0 | AX67: 0 | AY67: 0 | AZ67: 0 | BA67: 0 | BB67: 0 | BC67: 0 | BD67: 17.50250053 | BE67: 452.6362 | BF67: 1210.007812
B68: XPWRGIC | D68: 0 | E68: 0 | F68: 0 | G68: 4.799300194 | H68: 8.020199776 | I68: 86.77320099 | J68: 96.61669922 | K68: 133.4002075 | L68: 885.1099243 | M68: 1616.414551 | S68: XPWRGIC | U68: 0 | V68: 0 | W68: 0 | X68: 4.803999901 | Y68: 4.872300148 | Z68: 35.14139938 | AA68: 62.95729828 | AB68: 107.3205032 | AC68: 849.0739136 | AD68: 1566.129517 | AG68: XPWRGIC | AI68: 0 | AU68: XPWRGIC | AW68: 0
B69: XPWRHYD | D69: 0 | E69: 12.68029976 | F69: 24.48200035 | G69: 24.48200035 | H69: 24.48200035 | I69: 26.74270058 | J69: 26.74270058 | K69: 26.74270058 | L69: 26.74270058 | M69: 26.74270058 | S69: XPWRHYD | U69: 0 | V69: 12.68029976 | W69: 24.54590034 | X69: 24.54590034 | Y69: 24.54590034 | Z69: 26.74270058 | AA69: 26.74270058 | AB69: 26.74270058 | AC69: 26.74270058 | AD69: 26.74270058 | AG69: XPWRHYD | AI69: 0 | AJ69: 12.68029976 | AK69: 24.47590065 | AL69: 25.86650085 | AM69: 26.74270058 | AN69: 26.74270058 | AO69: 26.74270058 | AP69: 26.74270058 | AQ69: 26.74270058 | AR69: 26.74270058 | AU69: XPWRHYD | AW69: 0 | AX69: 12.68029976 | AY69: 24.47400093 | AZ69: 25.91489983 | BA69: 26.74270058 | BB69: 26.74270058 | BC69: 26.74270058 | BD69: 26.74270058 | BE69: 26.74270058 | BF69: 26.74270058
B70: XPWRNUC | D70: 0 | E70: 148.5382996 | F70: 148.5382996 | G70: 148.5382996 | H70: 148.5382996 | I70: 167.6295929 | J70: 306.8941956 | K70: 852.5986938 | L70: 975.5222778 | M70: 1246.984253 | S70: XPWRNUC | U70: 0 | V70: 148.5382996 | W70: 148.5382996 | X70: 148.5382996 | Y70: 284.2691956 | Z70: 962.9238892 | AA70: 1010.106873 | AB70: 1505.729492 | AC70: 1628.653076 | AD70: 1900.11499 | AG70: XPWRNUC | AI70: 0 | AJ70: 148.5382996 | AK70: 148.5382996 | AL70: 148.5382996 | AM70: 148.5382996 | AN70: 148.5382996 | AO70: 148.5382996 | AP70: 148.5382996 | AQ70: 0 | AR70: 0 | AU70: XPWRNUC | AW70: 0 | AX70: 148.5382996 | AY70: 148.5382996 | AZ70: 148.5382996 | BA70: 148.5382996 | BB70: 261.6473999 | BC70: 827.1929932 | BD70: 827.1929932 | BE70: 678.6547241 | BF70: 678.6547241
B71: XPWRODS | D71: 0 | E71: 12.01980019 | F71: 22.0121994 | G71: 17.26959991 | H71: 16.97640038 | I71: 15.51060009 | J71: 15.51060009 | K71: 5.249700069 | L71: 2.799799919 | M71: 0 | S71: XPWRODS | U71: 0 | V71: 12.01980019 | W71: 22.01810074 | X71: 17.26959991 | Y71: 16.97640038 | Z71: 15.51060009 | AA71: 15.51060009 | AB71: 5.249700069 | AC71: 2.799799919 | AD71: 0 | AG71: XPWRODS | AI71: 0 | AJ71: 12.01980019 | AK71: 22.05290031 | AL71: 24.52169991 | AM71: 16.97640038 | AN71: 15.51060009 | AO71: 15.51060009 | AP71: 5.249700069 | AQ71: 2.799799919 | AR71: 0 | AU71: XPWRODS | AW71: 0 | AX71: 12.01980019 | AY71: 22.0557003 | AZ71: 24.48620033 | BA71: 16.97640038 | BB71: 15.51060009 | BC71: 15.51060009 | BD71: 5.249700069 | BE71: 2.799799919 | BF71: 0
B72: XPWRSOL | D72: 0 | E72: 0 | F72: 12.8743 | G72: 14.2677002 | H72: 14.70330048 | I72: 179.7106934 | J72: 442.7013855 | K72: 693.4484253 | L72: 745.0678101 | M72: 747.413208 | S72: XPWRSOL | U72: 0 | V72: 0 | W72: 12.8743 | X72: 14.26620007 | Y72: 14.59420013 | Z72: 23.95779991 | AA72: 276.6376038 | AB72: 527.3847046 | AC72: 579.0040894 | AD72: 616.0341187 | AG72: XPWRSOL | AI72: 0 | AJ72: 0 | AK72: 12.8743 | AL72: 14.70330048 | AM72: 14.71249962 | AN72: 14.71249962 | AO72: 276.744812 | AP72: 527.4918213 | AQ72: 579.1112061 | AR72: 620.4694824 | AU72: XPWRSOL | AW72: 0 | AX72: 0 | AY72: 12.8743 | AZ72: 14.70330048 | BA72: 14.71249962 | BB72: 14.71249962 | BC72: 65.81230164 | BD72: 316.5593872 | BE72: 368.1788025 | BF72: 413.1836853
B73: XPWRWND | D73: 0 | E73: 0 | F73: 19.66729927 | G73: 19.66729927 | H73: 30.34989929 | I73: 101.571701 | J73: 144.9394989 | K73: 205.4886017 | L73: 205.4886017 | M73: 205.4886017 | S73: XPWRWND | U73: 0 | V73: 0 | W73: 19.5916996 | X73: 19.5916996 | Y73: 19.5916996 | Z73: 21.51230049 | AA73: 70.64060211 | AB73: 136.8661957 | AC73: 148.9761047 | AD73: 148.9761047 | AG73: XPWRWND | AI73: 0 | AJ73: 0 | AK73: 19.59230042 | AL73: 21.34560013 | AM73: 21.51230049 | AN73: 63.89670181 | AO73: 86.38310242 | AP73: 110.3759995 | AQ73: 110.3759995 | AR73: 110.3759995 | AU73: XPWRWND | AW73: 0 | AX73: 0 | AY73: 19.58880043 | AZ73: 21.34560013 | BA73: 21.51230049 | BB73: 47.11949921 | BC73: 47.11949921 | BD73: 96.24790192 | BE73: 110.3759995 | BF73: 110.3759995
A75: Total Power Sector Fuel Costs | R75: Total Power Sector Fuel Costs | AF75: Total Power Sector Fuel Costs | AT75: Total Power Sector Fuel Costs
B76: =B56 -> XPWRBIG | D76: =D56 -> 0 | E76: =E56*E30 -> 0 | F76: =F56*F30 -> 0 | G76: 0 | H76: 0 | I76: 0 | J76: 0 | K76: 0 | L76: 0 | M76: 0 | S76: =S56 -> XPWRBIG | U76: =U56 -> 0 | V76: =V56*V30 -> 0 | W76: =W56*W30 -> 0 | X76: 0 | Y76: 0 | Z76: 0 | AA76: 0 | AB76: 0 | AC76: 0 | AD76: 0 | AG76: =AG56 -> XPWRBIG | AI76: =AI56 -> 0 | AJ76: =AJ56*AJ30 -> 0 | AK76: =AK56*AK30 -> 0 | AL76: 0 | AM76: 0 | AN76: 0 | AO76: 0 | AP76: 0 | AQ76: 0 | AR76: 0 | AU76: =AU56 -> XPWRBIG | AW76: =AW56 -> 0 | AX76: =AX56*AX30 -> 0 | AY76: =AY56*AY30 -> 0 | AZ76: 0 | BA76: 0 | BB76: 0 | BC76: 0 | BD76: 0 | BE76: 0 | BF76: 0
B77: XPWRBIB | D77: 0 | E77: =E57*E31 -> 0 | F77: 0 | G77: 0 | H77: 0 | I77: 0 | J77: 0 | K77: 0 | L77: 0 | M77: 0 | S77: XPWRBIB | U77: 0 | V77: =V57*V31 -> 0 | W77: 0 | X77: 0 | Y77: 0 | Z77: 0 | AA77: 0 | AB77: 0 | AC77: 0 | AD77: 0 | AG77: XPWRBIB | AI77: 0 | AJ77: =AJ57*AJ31 -> 0 | AK77: 0 | AL77: 0 | AM77: 0 | AN77: 0 | AO77: 0 | AP77: 0 | AQ77: 0 | AR77: 0 | AU77: XPWRBIB | AW77: 0 | AX77: =AX57*AX31 -> 0 | AY77: 0 | AZ77: 0 | BA77: 0 | BB77: 0 | BC77: 0 | BD77: 0 | BE77: 0 | BF77: 0
B78: XPWRBIO | D78: 0 | E78: 0 | F78: 0 | G78: 0 | H78: 0 | I78: 0 | J78: 0 | K78: 0 | L78: 0 | M78: 0 | S78: XPWRBIO | U78: 0 | V78: =V58*V32 -> 0 | W78: 0 | X78: 0 | Y78: 0 | Z78: 0 | AA78: 0 | AB78: 0 | AC78: 0 | AD78: 0 | AG78: XPWRBIO | AI78: 0 | AJ78: =AJ58*AJ32 -> 0 | AK78: 0 | AL78: 0 | AM78: 0 | AN78: 0 | AO78: 0 | AP78: 0 | AQ78: 0 | AR78: 0 | AU78: XPWRBIO | AW78: 0 | AX78: =AX58*AX32 -> 0 | AY78: 0 | AZ78: 0 | BA78: 0 | BB78: 0 | BC78: 0 | BD78: 0 | BE78: 0 | BF78: 0
B79: XPWRBIW | D79: 0 | E79: 0 | F79: 0 | G79: 0 | H79: 0 | I79: 0 | J79: 0 | K79: 0 | L79: 0 | M79: 0 | S79: XPWRBIW | U79: 0 | V79: 0 | W79: 0 | X79: 0 | Y79: 0 | Z79: 0 | AA79: 0 | AB79: 0 | AC79: 0 | AD79: 0 | AG79: XPWRBIW | AI79: 0 | AJ79: 0 | AK79: 0 | AL79: 0 | AM79: 0 | AN79: 0 | AO79: 0 | AP79: 0 | AQ79: 0 | AR79: 0 | AU79: XPWRBIW | AW79: 0 | AX79: 0 | AY79: 0 | AZ79: 0 | BA79: 0 | BB79: 0 | BC79: 0 | BD79: 0 | BE79: 0 | BF79: 0
B80: XPWRCLD | D80: 0 | E80: 0 | F80: 0 | G80: 0 | H80: 0 | I80: 0 | J80: 0 | K80: 0 | L80: 0 | M80: 0 | S80: XPWRCLD | U80: 0 | V80: 0 | W80: 0 | X80: 0 | Y80: 0 | Z80: 0 | AA80: 0 | AB80: 0 | AC80: 0 | AD80: 0 | AG80: XPWRCLD | AI80: 0 | AJ80: 0 | AK80: 0 | AL80: 0 | AM80: 0 | AN80: 0 | AO80: 0 | AP80: 0 | AQ80: 0 | AR80: 1095.952508 | AU80: XPWRCLD | AW80: 0 | AX80: 0 | AY80: 0 | AZ80: 0 | BA80: 0 | BB80: 0 | BC80: 0 | BD80: 0 | BE80: 0 | BF80: 1095.952508
B81: XPWRCLE | D81: 0 | E81: 0 | F81: 0 | G81: 17397.38466 | H81: 43440.13741 | I81: 49296.30798 | J81: 37871.4841 | K81: 24240.58297 | L81: 15288.1985 | M81: 24879.41183 | S81: XPWRCLE | U81: 0 | V81: 0 | W81: 0 | X81: 17346.03078 | Y81: 41846.37459 | Z81: 48425.65658 | AA81: 37871.4841 | AB81: 24240.58297 | AC81: 15288.1985 | AD81: 18404.59401 | AG81: XPWRCLE | AI81: 0 | AJ81: 0 | AK81: 0 | AL81: 13901.92284 | AM81: 37879.71887 | AN81: 49296.30798 | AO81: 37871.4841 | AP81: 24240.58297 | AQ81: 15288.1985 | AR81: 295.8624652 | AU81: XPWRCLE | AW81: 0 | AX81: 0 | AY81: 0 | AZ81: 13783.27733 | BA81: 37125.7816 | BB81: 49296.30798 | BC81: 37871.4841 | BD81: 24240.58297 | BE81: 15288.1985 | BF81: 295.8624652
B82: XPWRCRB | D82: 0 | E82: 0 | F82: 0 | G82: 0 | H82: 220.2665486 | I82: 3007.444492 | J82: 3027.214786 | K82: 3050.729418 | L82: 3066.149979 | M82: 3085.167662 | S82: XPWRCRB | U82: 0 | V82: 0 | W82: 0 | X82: 0 | Y82: 0 | Z82: 2794.735004 | AA82: 3027.214786 | AB82: 3050.729418 | AC82: 3066.149979 | AD82: 3085.167662 | AG82: XPWRCRB | AI82: 0 | AJ82: 0 | AK82: 0 | AL82: 0 | AM82: 0 | AN82: 3007.444492 | AO82: 3027.214786 | AP82: 3050.729418 | AQ82: 3066.149979 | AR82: 3085.167662 | AU82: XPWRCRB | AW82: 0 | AX82: 0 | AY82: 0 | AZ82: 0 | BA82: 0 | BB82: 1408.549504 | BC82: 2686.32728 | BD82: 3050.729418 | BE82: 3066.149979 | BF82: 3085.167662
B83: XPWRGAS | D83: 0 | E83: 14.74572907 | F83: 8.866544436 | G83: 0.08047624076 | H83: 26.85032172 | I83: 1721.59465 | J83: 1736.966698 | K83: 889.7132607 | L83: 1809.112221 | M83: 1839.551743 | S83: XPWRGAS | U83: 0 | V83: 14.74572907 | W83: 8.866544436 | X83: 0.08047624076 | Y83: 23.40775339 | Z83: 242.2160912 | AA83: 1735.733986 | AB83: 1392.690674 | AC83: 1809.112221 | AD83: 1839.551743 | AG83: XPWRGAS | AI83: 0 | AJ83: 14.74572907 | AK83: 8.866544436 | AL83: 21.75640624 | AM83: 505.092001 | AN83: 1257.228001 | AO83: 1257.228001 | AP83: 1341.356094 | AQ83: 1274.265266 | AR83: 1405.446053 | AU83: XPWRGAS | AW83: 0 | AX83: 14.74572907 | AY83: 8.866544436 | AZ83: 21.75640624 | BA83: 505.092001 | BB83: 1257.228001 | BC83: 1257.228001 | BD83: 1233.235462 | BE83: 1349.497856 | BF83: 1349.604881
B84: XPWRGRS | D84: 0 | E84: 0 | F84: 0 | G84: 0 | H84: 0 | I84: 0 | J84: 0 | K84: 0 | L84: 0 | M84: 0 | S84: XPWRGRS | U84: 0 | V84: 0 | W84: 0 | X84: 0 | Y84: 0 | Z84: 0 | AA84: 0 | AB84: 0 | AC84: 0 | AD84: 0 | AG84: XPWRGRS | AI84: 0 | AJ84: 0 | AK84: 0 | AL84: 0 | AM84: 0 | AN84: 0 | AO84: 0 | AP84: 0 | AQ84: 0 | AR84: 0 | AU84: XPWRGRS | AW84: 0 | AX84: 0 | AY84: 0 | AZ84: 0 | BA84: 0 | BB84: 0 | BC84: 0 | BD84: 0 | BE84: 0 | BF84: 0
B85: XPWRGRN | D85: 0 | E85: 0 | F85: 0 | G85: 70.5574438 | H85: 1412.224685 | I85: 2377.651159 | J85: 2377.651159 | K85: 1527.947402 | L85: 2377.651159 | M85: 2377.651159 | S85: XPWRGRN | U85: 0 | V85: 0 | W85: 0 | X85: 69.85301636 | Y85: 1008.385501 | Z85: 1559.553829 | AA85: 2377.651159 | AB85: 2377.651159 | AC85: 2377.651159 | AD85: 2377.651159 | AG85: XPWRGRN | AI85: 0 | AJ85: 0 | AK85: 0 | AL85: 0 | AM85: 0 | AN85: 2377.651159 | AO85: 2377.651159 | AP85: 2377.651159 | AQ85: 2377.651159 | AR85: 2377.651159 | AU85: XPWRGRN | AW85: 0 | AX85: 0 | AY85: 0 | AZ85: 0 | BA85: 0 | BB85: 0 | BC85: 0 | BD85: 2377.651159 | BE85: 2377.651159 | BF85: 2377.651159
B86: XPWRGRM | D86: 0 | E86: 0 | F86: 0 | G86: 0 | H86: 0 | I86: 0 | J86: 0 | K86: 0 | L86: 0 | M86: 0 | S86: XPWRGRM | U86: 0 | V86: 0 | W86: 0 | X86: 0 | Y86: 0 | Z86: 0 | AA86: 0 | AB86: 0 | AC86: 0 | AD86: 0 | AG86: XPWRGRM | AI86: 0 | AJ86: 0 | AK86: 0 | AL86: 0 | AM86: 0 | AN86: 0 | AO86: 0 | AP86: 0 | AQ86: 0 | AR86: 0 | AU86: XPWRGRM | AW86: 0 | AX86: 0 | AY86: 0 | AZ86: 0 | BA86: 0 | BB86: 0 | BC86: 0 | BD86: 0 | BE86: 0 | BF86: 0
B87: XPWRGIH | D87: 0 | E87: 0 | F87: 0 | G87: 0 | H87: 0 | I87: 0 | J87: 0 | K87: 0 | L87: 0 | M87: 0 | S87: XPWRGIH | U87: 0 | V87: 0 | W87: 0 | X87: 0 | Y87: 0 | Z87: 0 | AA87: 0 | AB87: 0 | AC87: 0 | AD87: 0 | AG87: XPWRGIH | AI87: 0 | AJ87: 0 | AK87: 0 | AL87: 0 | AM87: 0 | AN87: 198.2930289 | AO87: 384.0554331 | AP87: 5873.00457 | AQ87: 45994.64381 | AR87: 104154.7986 | AU87: XPWRGIH | AW87: 0 | AX87: 0 | AY87: 0 | AZ87: 0 | BA87: 0 | BB87: 0 | BC87: 0 | BD87: 1201.166919 | BE87: 31084.38492 | BF87: 83102.85689
B88: XPWRGIC | D88: 0 | E88: 0 | F88: 0 | G88: 398.9350913 | H88: 678.9708678 | I88: 7602.165104 | J88: 8540.123947 | K88: 12113.84556 | L88: 81486.14146 | M88: 151316.2791 | S88: XPWRGIC | U88: 0 | V88: 0 | W88: 0 | X88: 349.3603298 | Y88: 412.3076943 | Z88: 3078.723812 | AA88: 5596.456729 | AB88: 9745.592046 | AC88: 78168.54735 | AD88: 146608.9815 | AG88: XPWRGIC | AI88: 0 | AJ88: 0 | AK88: 0 | AL88: 0 | AM88: 0 | AN88: 0 | AO88: 0 | AP88: 0 | AQ88: 0 | AR88: 0 | AU88: XPWRGIC | AW88: 0 | AX88: 0 | AY88: 0 | AZ88: 0 | BA88: 0 | BB88: 0 | BC88: 0 | BD88: 0 | BE88: 0 | BF88: 0
B89: XPWRHYD | D89: 0 | E89: 0 | F89: 0.002448199973 | G89: 0 | H89: 0 | I89: 0 | J89: 0 | K89: 0 | L89: 0 | M89: 0 | S89: XPWRHYD | U89: 0 | V89: 0 | W89: 0.002454589972 | X89: 0 | Y89: 0 | Z89: 0 | AA89: 0 | AB89: 0 | AC89: 0 | AD89: 0 | AG89: XPWRHYD | AI89: 0 | AJ89: 0 | AK89: 0 | AL89: 0 | AM89: 0 | AN89: 0 | AO89: 0 | AP89: 0 | AQ89: 0 | AR89: 0 | AU89: XPWRHYD | AW89: 0 | AX89: 0 | AY89: 0 | AZ89: 0 | BA89: 0 | BB89: 0 | BC89: 0 | BD89: 0 | BE89: 0 | BF89: 0
B90: XPWRNUC | D90: 0 | E90: 965.4989471 | F90: 965.4989471 | G90: 965.4989471 | H90: 965.4989471 | I90: 1089.592354 | J90: 1994.812271 | K90: 5541.89151 | L90: 6340.894806 | M90: 8105.397644 | S90: XPWRNUC | U90: 0 | V90: 965.4989471 | W90: 965.4989471 | X90: 965.4989471 | Y90: 1847.749771 | Z90: 6259.00528 | AA90: 6565.694672 | AB90: 9787.241699 | AC90: 10586.245 | AD90: 12350.74744 | AG90: XPWRNUC | AI90: 0 | AJ90: 965.4989471 | AK90: 965.4989471 | AL90: 965.4989471 | AM90: 965.4989471 | AN90: 965.4989471 | AO90: 965.4989471 | AP90: 965.4989471 | AQ90: 0 | AR90: 0 | AU90: XPWRNUC | AW90: 0 | AX90: 965.4989471 | AY90: 965.4989471 | AZ90: 965.4989471 | BA90: 965.4989471 | BB90: 1700.708099 | BC90: 5376.754456 | BD90: 5376.754456 | BE90: 4411.255707 | BF90: 4411.255707
B91: XPWRODS | D91: 0 | E91: 1553.430605 | F91: 2844.841321 | G91: 2688.299824 | H91: 2692.584391 | I91: 2505.712641 | J91: 2557.31019 | K91: 886.3220921 | L91: 479.9587856 | M91: 0 | S91: XPWRODS | U91: 0 | V91: 1553.430605 | W91: 2845.604006 | X91: 2688.299824 | Y91: 2692.584391 | Z91: 2505.712641 | AA91: 2557.31019 | AB91: 886.3220921 | AC91: 479.9587856 | AD91: 0 | AG91: XPWRODS | AI91: 0 | AJ91: 1553.430605 | AK91: 2850.101479 | AL91: 3817.209539 | AM91: 2692.584391 | AN91: 2505.712641 | AO91: 2557.31019 | AP91: 886.3220921 | AQ91: 479.9587856 | AR91: 0 | AU91: XPWRODS | AW91: 0 | AX91: 1553.430605 | AY91: 2850.463347 | AZ91: 3811.683442 | BA91: 2692.584391 | BB91: 2505.712641 | BC91: 2557.31019 | BD91: 886.3220921 | BE91: 479.9587856 | BF91: 0
B92: XPWRSOL | D92: 0 | E92: =E72*E46 -> 0 | F92: 0 | G92: 0 | H92: 0 | I92: 0 | J92: 0 | K92: 0 | L92: 0 | M92: 0 | S92: XPWRSOL | U92: 0 | V92: 0 | W92: 0 | X92: 0 | Y92: 0 | Z92: 0 | AA92: 0 | AB92: 0 | AC92: 0 | AD92: 0 | AG92: XPWRSOL | AI92: 0 | AJ92: 0 | AK92: 0 | AL92: 0 | AM92: 0 | AN92: 0 | AO92: 0 | AP92: 0 | AQ92: 0 | AR92: 0 | AU92: XPWRSOL | AW92: 0 | AX92: 0 | AY92: 0 | AZ92: 0 | BA92: 0 | BB92: 0 | BC92: 0 | BD92: 0 | BE92: 0 | BF92: 0
B93: XPWRWND | D93: 0 | E93: 0 | F93: 0.001966729877 | G93: 0 | H93: 0 | I93: 0 | J93: 0 | K93: 0 | L93: 0 | M93: 0 | S93: XPWRWND | U93: 0 | V93: 0 | W93: 0.001959169911 | X93: 0 | Y93: 0 | Z93: 0 | AA93: 0 | AB93: 0 | AC93: 0 | AD93: 0 | AG93: XPWRWND | AI93: 0 | AJ93: 0 | AK93: 0 | AL93: 0 | AM93: 0 | AN93: 0 | AO93: 0 | AP93: 0 | AQ93: 0 | AR93: 0 | AU93: XPWRWND | AW93: 0 | AX93: 0 | AY93: 0 | AZ93: 0 | BA93: 0 | BB93: 0 | BC93: 0 | BD93: 0 | BE93: 0 | BF93: 0
A98: Total Fuel | E98: =SUM(E76:E96) -> 2533.675282 | F98: =SUM(F76:F96) -> 3819.211228 | G98: 21520.75644 | H98: 49436.53318 | I98: 67600.46838 | J98: 58105.56315 | K98: 48251.03221 | L98: 110848.1069 | M98: 191603.4591 | R98: Total Fuel | V98: =SUM(V76:V96) -> 2533.675282 | W98: =SUM(W76:W96) -> 3819.973911 | X98: 21419.12338 | Y98: 47830.8097 | Z98: 64865.60323 | AA98: 59731.54562 | AB98: 51480.81006 | AC98: 111775.863 | AD98: 184666.6936 | AF98: Total Fuel | AJ98: =SUM(AJ76:AJ96) -> 2533.675282 | AK98: =SUM(AK76:AK96) -> 3824.46697 | AL98: 18706.38773 | AM98: 42042.89421 | AN98: 59608.13624 | AO98: 48440.44261 | AP98: 38735.14525 | AQ98: 68480.8675 | AR98: 112414.8784 | AT98: Total Fuel | AX98: =SUM(AX76:AX96) -> 2533.675282 | AY98: =SUM(AY76:AY96) -> 3824.828839 | AZ98: 18582.21613 | BA98: 41288.95694 | BB98: 56168.50622 | BC98: 49749.10402 | BD98: 38366.44248 | BE98: 58057.0969 | BF98: 95718.35127
A99: Maintenance and Investment Cost | R99: Maintenance and Investment Cost | AF99: Maintenance and Investment Cost | AT99: Maintenance and Investment Cost
B100: \T | S100: \T | AG100: \T | AU100: \T
B101: =B53 -> CGERUN10 | S101: =S53 -> CGERUN11 | AG101: =AG53 -> CGERUN20 | AU101: =AU53 -> CGERUN21
B102: COST_ACT,COST_FOM,COST_INV | S102: COST_ACT,COST_FOM,COST_INV | AG102: COST_ACT,COST_FOM,COST_INV | AU102: COST_ACT,COST_FOM,COST_INV
E103: =E$29 -> 2010 | F103: 2015 | G103: 2020 | H103: 2025 | I103: 2030 | J103: 2035 | K103: 2040 | L103: 2045 | M103: 2050 | V103: =V$29 -> 2010 | W103: 2015 | X103: 2020 | Y103: 2025 | Z103: 2030 | AA103: 2035 | AB103: 2040 | AC103: 2045 | AD103: 2050 | AJ103: =AJ$29 -> 2010 | AK103: 2015 | AL103: 2020 | AM103: 2025 | AN103: 2030 | AO103: 2035 | AP103: 2040 | AQ103: 2045 | AR103: 2050 | AX103: =AX$29 -> 2010 | AY103: 2015 | AZ103: 2020 | BA103: 2025 | BB103: 2030 | BC103: 2035 | BD103: 2040 | BE103: 2045 | BF103: 2050
B104: E* | C104: ETRANS | D104: Power | E104: 77592.54152 | F104: 91334.72147 | G104: 111985.6898 | H104: 115072.1255 | I104: 155019.5775 | J104: 216010.2017 | K104: 295727.809 | L104: 315046.9554 | M104: 345082.6436 | S104: E* | T104: ETRANS | U104: Power | V104: 77592.54152 | W104: 91336.89267 | X104: 111978.9853 | Y104: 119972.5653 | Z104: 159524.4909 | AA104: 213803.6557 | AB104: 290687.3987 | AC104: 312069.4459 | AD104: 346950.8172 | AG104: E* | AH104: ETRANS | AI104: Power | AJ104: 77592.54152 | AK104: 91197.05744 | AL104: 111941.2975 | AM104: 112368.5929 | AN104: 120648.5514 | AO104: 151599.6171 | AP104: 183552.6896 | AQ104: 176558.5429 | AR104: 161346.2153 | AU104: E* | AV104: ETRANS | AW104: Power | AX104: 77592.54152 | AY104: 91198.07643 | AZ104: 111928.2629 | BA104: 112055.0085 | BB104: 129140.4189 | BC104: 195371.6233 | BD104: 225516.2185 | BE104: 225188.9807 | BF104: 212474.9853
A106: Water and Environmental Levy Costs | R106: Water and Environmental Levy Costs | AF106: Water and Environmental Levy Costs | AT106: Water and Environmental Levy Costs
E107: 89121.45075 | J107: 101090.7511 | V107: 89121.45075 | AA107: 101090.7511 | AJ107: 89121.45075 | AO107: 101090.7511 | AX107: 89121.45075 | BC107: 101090.7511
A108: Water Consumption | B108: =B101 -> CGERUN10 | R108: Water Consumption | S108: =S101 -> CGERUN11 | AF108: Water Consumption | AG108: =AG101 -> CGERUN20 | AT108: Water Consumption | AU108: =AU101 -> CGERUN21
B109: Flow:PWRWAT | E109: =VLOOKUP(B108,$B$16:$D$19,2,FALSE) -> 0 | S109: Flow:PWRWAT | V109: =VLOOKUP(S108,$B$16:$D$19,2,FALSE) -> 0 | AG109: Flow:PWRWAT | AJ109: =VLOOKUP(AG108,$B$16:$D$19,2,FALSE) -> 0 | AU109: Flow:PWRWAT | AX109: =VLOOKUP(AU108,$B$16:$D$19,2,FALSE) -> 0
E110: =E$29 -> 2010 | F110: 2015 | G110: 2020 | H110: 2025 | I110: 2030 | J110: 2035 | K110: 2040 | L110: 2045 | M110: 2050 | V110: =V$29 -> 2010 | W110: 2015 | X110: 2020 | Y110: 2025 | Z110: 2030 | AA110: 2035 | AB110: 2040 | AC110: 2045 | AD110: 2050 | AJ110: =AJ$29 -> 2010 | AK110: 2015 | AL110: 2020 | AM110: 2025 | AN110: 2030 | AO110: 2035 | AP110: 2040 | AQ110: 2045 | AR110: 2050 | AX110: =AX$29 -> 2010 | AY110: 2015 | AZ110: 2020 | BA110: 2025 | BB110: 2030 | BC110: 2035 | BD110: 2040 | BE110: 2045 | BF110: 2050
A111: Water (litres) | B111: E* | C111: ETRANS | D111: Power | E111: 317105.8239 | J111: 321991.4374 | R111: Water (litres) | S111: E* | T111: ETRANS | U111: Power | V111: 317105.8239 | AA111: 321991.4374 | AF111: Water (litres) | AG111: E* | AH111: ETRANS | AI111: Power | AJ111: 317105.8239 | AO111: 321991.4374 | AT111: Water (litres) | AU111: E* | AV111: ETRANS | AW111: Power | AX111: 317105.8239 | BC111: 321991.4374
A113: Water Price: | B113: R/l | E113: 0 | F113: =E113*2 -> 0 | G113: =F113 -> 0 | H113: =G113 -> 0 | I113: 0 | J113: 0 | K113: 0 | L113: 0 | M113: 0 | R113: Water Price: | S113: R/l | V113: 0 | W113: =V113*2 -> 0 | X113: =W113 -> 0 | Y113: =X113 -> 0 | Z113: 0 | AA113: 0 | AB113: 0 | AC113: 0 | AD113: 0 | AF113: Water Price: | AG113: R/l | AJ113: 0 | AK113: =AJ113*2 -> 0 | AL113: =AK113 -> 0 | AM113: =AL113 -> 0 | AN113: 0 | AO113: 0 | AP113: 0 | AQ113: 0 | AR113: 0 | AT113: Water Price: | AU113: R/l | AX113: 0 | AY113: =AX113*2 -> 0 | AZ113: =AY113 -> 0 | BA113: =AZ113 -> 0 | BB113: 0 | BC113: 0 | BD113: 0 | BE113: 0 | BF113: 0
A114: Water Costs | E114: =E113*E111 -> 0 | F114: =F113*F111 -> 0 | G114: 0 | H114: 0 | I114: 0 | J114: 0 | K114: 0 | L114: 0 | M114: 0 | R114: Water Costs | V114: =V113*V111 -> 0 | W114: =W113*W111 -> 0 | X114: 0 | Y114: 0 | Z114: 0 | AA114: 0 | AB114: 0 | AC114: 0 | AD114: 0 | AF114: Water Costs | AJ114: =AJ113*AJ111 -> 0 | AK114: =AK113*AK111 -> 0 | AL114: 0 | AM114: 0 | AN114: 0 | AO114: 0 | AP114: 0 | AQ114: 0 | AR114: 0 | AT114: Water Costs | AX114: =AX113*AX111 -> 0 | AY114: =AY113*AY111 -> 0 | AZ114: 0 | BA114: 0 | BB114: 0 | BC114: 0 | BD114: 0 | BE114: 0 | BF114: 0
E115: 225354.4454 | J115: 238061.9635 | V115: 225354.4454 | AA115: 238061.9635 | AJ115: 225354.4454 | AO115: 238061.9635 | AX115: 225354.4454 | BC115: 238061.9635
B116: \T | S116: \T | AG116: \T | AU116: \T
B117: =B108 -> CGERUN10 | S117: =S108 -> CGERUN11 | AG117: =AG108 -> CGERUN20 | AU117: =AU108 -> CGERUN21
B118: Flow:PWRENV | E118: =VLOOKUP(B117,$B$16:$D$19,2,FALSE) -> 0 | S118: Flow:PWRENV | V118: =VLOOKUP(S117,$B$16:$D$19,2,FALSE) -> 0 | AG118: Flow:PWRENV | AJ118: =VLOOKUP(AG117,$B$16:$D$19,2,FALSE) -> 0 | AU118: Flow:PWRENV | AX118: =VLOOKUP(AU117,$B$16:$D$19,2,FALSE) -> 0
E119: =E$29 -> 2010 | F119: 2015 | G119: 2020 | H119: 2025 | I119: 2030 | J119: 2035 | K119: 2040 | L119: 2045 | M119: 2050 | V119: =V$29 -> 2010 | W119: 2015 | X119: 2020 | Y119: 2025 | Z119: 2030 | AA119: 2035 | AB119: 2040 | AC119: 2045 | AD119: 2050 | AJ119: =AJ$29 -> 2010 | AK119: 2015 | AL119: 2020 | AM119: 2025 | AN119: 2030 | AO119: 2035 | AP119: 2040 | AQ119: 2045 | AR119: 2050 | AX119: =AX$29 -> 2010 | AY119: 2015 | AZ119: 2020 | BA119: 2025 | BB119: 2030 | BC119: 2035 | BD119: 2040 | BE119: 2045 | BF119: 2050
A120: kWh out for plants that Pay Env.Levy | B120: E* | C120: ETRANS | D120: Power | E120: 250215.5172 | F120: 239345.7216 | G120: 273897.9359 | H120: 297471.3599 | I120: 255509.4528 | J120: 231592.8513 | K120: 223009.9753 | L120: 295646.1906 | M120: 427656.8907 | R120: kWh out for plants that Pay Env.Levy | S120: E* | T120: ETRANS | U120: Power | V120: 250215.5172 | W120: 239411.4528 | X120: 273728.1622 | Y120: 305004.7581 | Z120: 320395.7721 | AA120: 292450.875 | AB120: 280226.0677 | AC120: 351532.2975 | AD120: 458259.0457 | AF120: kWh out for plants that Pay Env.Levy | AG120: E* | AH120: ETRANS | AI120: Power | AJ120: 250215.5174 | AK120: 239800.9739 | AL120: 262172.2709 | AM120: 279268.3565 | AN120: 242724.5235 | AO120: 204782.1219 | AP120: 150008.5239 | AQ120: 174080.8412 | AR120: 214437.5913 | AT120: kWh out for plants that Pay Env.Levy | AU120: E* | AV120: ETRANS | AW120: Power | AX120: 250215.5172 | AY120: 239831.8207 | AZ120: 261775.416 | BA120: 276766.7383 | BB120: 252999.4585 | BC120: 267385.1323 | BD120: 204640.1763 | BE120: 208346.8405 | BF120: 236670.6653
A122: Environemental Levy | B122: c/kWh | E122: 0 | F122: =E122 -> 0 | G122: =F122 -> 0 | H122: 0 | I122: 0 | J122: 0 | K122: 0 | L122: 0 | M122: 0 | R122: Environemental Levy | S122: c/kWh | V122: 0 | W122: =V122 -> 0 | X122: =W122 -> 0 | Y122: 0 | Z122: 0 | AA122: 0 | AB122: 0 | AC122: 0 | AD122: 0 | AF122: Environemental Levy | AG122: c/kWh | AJ122: 0 | AK122: =AJ122 -> 0 | AL122: =AK122 -> 0 | AM122: 0 | AN122: 0 | AO122: 0 | AP122: 0 | AQ122: 0 | AR122: 0 | AT122: Environemental Levy | AU122: c/kWh | AX122: 0 | AY122: =AX122 -> 0 | AZ122: =AY122 -> 0 | BA122: 0 | BB122: 0 | BC122: 0 | BD122: 0 | BE122: 0 | BF122: 0
A123: Environmental levy costs | B123: mR | E123: =E122*E120/100 -> 0 | F123: =F122*F120/100 -> 0 | G123: 0 | H123: 0 | I123: 0 | J123: 0 | K123: 0 | L123: 0 | M123: 0 | R123: Environmental levy costs | S123: mR | V123: =V122*V120/100 -> 0 | W123: =W122*W120/100 -> 0 | X123: 0 | Y123: 0 | Z123: 0 | AA123: 0 | AB123: 0 | AC123: 0 | AD123: 0 | AF123: Environmental levy costs | AG123: mR | AJ123: =AJ122*AJ120/100 -> 0 | AK123: =AK122*AK120/100 -> 0 | AL123: 0 | AM123: 0 | AN123: 0 | AO123: 0 | AP123: 0 | AQ123: 0 | AR123: 0 | AT123: Environmental levy costs | AU123: mR | AX123: =AX122*AX120/100 -> 0 | AY123: =AY122*AY120/100 -> 0 | AZ123: 0 | BA123: 0 | BB123: 0 | BC123: 0 | BD123: 0 | BE123: 0 | BF123: 0
A125: Total Costs | B125: million R | E125: =E104+E98+E114+E123 -> 80126.2168 | F125: =F104+F98+F114+F123 -> 95153.9327 | G125: =G104+G98+G114+G123 -> 133506.4462 | H125: 164508.6587 | I125: 222620.0459 | J125: 274115.7648 | K125: 343978.8413 | L125: 425895.0623 | M125: 536686.1028 | R125: Total Costs | S125: million R | V125: =V104+V98+V114+V123 -> 80126.2168 | W125: =W104+W98+W114+W123 -> 95156.86658 | X125: =X104+X98+X114+X123 -> 133398.1086 | Y125: 167803.375 | Z125: 224390.0942 | AA125: 273535.2013 | AB125: 342168.2088 | AC125: 423845.3089 | AD125: 531617.5107 | AF125: Total Costs | AG125: million R | AJ125: =AJ104+AJ98+AJ114+AJ123 -> 80126.2168 | AK125: =AK104+AK98+AK114+AK123 -> 95021.52441 | AL125: =AL104+AL98+AL114+AL123 -> 130647.6853 | AM125: 154411.4871 | AN125: 180256.6876 | AO125: 200040.0597 | AP125: 222287.8349 | AQ125: 245039.4104 | AR125: 273761.0937 | AT125: Total Costs | AU125: million R | AX125: =AX104+AX98+AX114+AX123 -> 80126.2168 | AY125: =AY104+AY98+AY114+AY123 -> 95022.90527 | AZ125: =AZ104+AZ98+AZ114+AZ123 -> 130510.4791 | BA125: 153343.9654 | BB125: 185308.9251 | BC125: 245120.7274 | BD125: 263882.661 | BE125: 283246.0776 | BF125: 308193.3366
A128: Production | B128: \T | R128: Production | S128: \T | AF128: Production | AG128: \T | AT128: Production | AU128: \T
B129: =B117 -> CGERUN10 | S129: =S117 -> CGERUN11 | AG129: =AG117 -> CGERUN20 | AU129: =AU117 -> CGERUN21
B130: FlowI:* | E130: =VLOOKUP(B129,$B$16:$D$19,2,FALSE) -> 0 | S130: FlowI:* | V130: =VLOOKUP(S129,$B$16:$D$19,2,FALSE) -> 0 | AG130: FlowI:* | AJ130: =VLOOKUP(AG129,$B$16:$D$19,2,FALSE) -> 0 | AU130: FlowI:* | AX130: =VLOOKUP(AU129,$B$16:$D$19,2,FALSE) -> 0
E131: =E$29 -> 2010 | F131: 2015 | G131: 2020 | H131: 2025 | I131: 2030 | J131: 2035 | K131: 2040 | L131: 2045 | M131: 2050 | V131: =V$29 -> 2010 | W131: 2015 | X131: 2020 | Y131: 2025 | Z131: 2030 | AA131: 2035 | AB131: 2040 | AC131: 2045 | AD131: 2050 | AJ131: =AJ$29 -> 2010 | AK131: 2015 | AL131: 2020 | AM131: 2025 | AN131: 2030 | AO131: 2035 | AP131: 2040 | AQ131: 2045 | AR131: 2050 | AX131: =AX$29 -> 2010 | AY131: 2015 | AZ131: 2020 | BA131: 2025 | BB131: 2030 | BC131: 2035 | BD131: 2040 | BE131: 2045 | BF131: 2050
B132: ETRANS | D132: Power | E132: 927.3174934 | F132: 964.6427078 | G132: 1084.172195 | H132: 1226.8571 | I132: 1379.303101 | J132: 1599.561708 | K132: 1872.844097 | L132: 2193.069351 | M132: 2568.301605 | S132: ETRANS | U132: Power | V132: 927.3174934 | W132: 964.8597889 | X132: 1083.605095 | Y132: 1218.459007 | Z132: 1378.158997 | AA132: 1578.288212 | AB132: 1851.251385 | AC132: 2171.683113 | AD132: 2547.837795 | AG132: ETRANS | AI132: Power | AJ132: 927.3174934 | AK132: 966.1472034 | AL132: 1067.988701 | AM132: 1163.317511 | AN132: 1228.981995 | AO132: 1339.605005 | AP132: 1455.904388 | AQ132: 1582.36581 | AR132: 1719.877306 | AU132: ETRANS | AW132: Power | AX132: 927.3174934 | AY132: 966.2489071 | AZ132: 1066.677204 | BA132: 1152.257195 | BB132: 1199.492599 | BC132: 1284.522009 | BD132: 1386.863993 | BE132: 1497.415203 | BF132: 1616.83359
A134: Production (Going into Transmission Line - TWh) | E134: =E132/3.6 -> 257.5881926 | F134: =F132/3.6 -> 267.9563077 | G134: 301.1589432 | H134: 340.7936388 | I134: 383.1397502 | J134: 444.3226968 | K134: 520.2344714 | L134: 609.1859309 | M134: 713.4171126 | R134: Production (Going into Transmission Line - TWh) | V134: =V132/3.6 -> 257.5881926 | W134: =W132/3.6 -> 268.016608 | X134: 301.0014153 | Y134: 338.4608354 | Z134: 382.8219435 | AA134: 438.4133922 | AB134: 514.2364958 | AC134: 603.2453092 | AD134: 707.7327209 | AF134: Production (Going into Transmission Line - TWh) | AJ134: =AJ132/3.6 -> 257.5881926 | AK134: =AK132/3.6 -> 268.3742232 | AL134: 296.663528 | AM134: 323.1437529 | AN134: 341.3838874 | AO134: 372.1125015 | AP134: 404.4178857 | AQ134: 439.5460584 | AR134: 477.7436961 | AT134: Production (Going into Transmission Line - TWh) | AX134: =AX132/3.6 -> 257.5881926 | AY134: =AY132/3.6 -> 268.4024742 | AZ134: 296.2992234 | BA134: 320.0714429 | BB134: 333.1923887 | BC134: 356.8116691 | BD134: 385.239998 | BE134: 415.9486675 | BF134: 449.1204415
E135: =E131 -> 2010 | F135: =F131 -> 2015 | G135: 2020 | H135: 2025 | I135: 2030 | J135: 2035 | K135: 2040 | L135: 2045 | M135: 2050 | V135: =V131 -> 2010 | W135: =W131 -> 2015 | X135: 2020 | Y135: 2025 | Z135: 2030 | AA135: 2035 | AB135: 2040 | AC135: 2045 | AD135: 2050 | AJ135: =AJ131 -> 2010 | AK135: =AK131 -> 2015 | AL135: 2020 | AM135: 2025 | AN135: 2030 | AO135: 2035 | AP135: 2040 | AQ135: 2045 | AR135: 2050 | AX135: =AX131 -> 2010 | AY135: =AY131 -> 2015 | AZ135: 2020 | BA135: 2025 | BB135: 2030 | BC135: 2035 | BD135: 2040 | BE135: 2045 | BF135: 2050
A136: Generation Price ELC | B136: c/kWh | C136: =D16 -> Best | D136: =A136 -> Generation Price ELC | E136: =E125/E134/1000*100 -> 31.10632362 | F136: =F125/F134/1000*100 -> 35.51098815 | G136: 44.33089213 | H136: 48.27222106 | I136: 58.10413715 | J136: 61.69294677 | K136: 66.11996324 | L136: 69.91216322 | M136: 75.22753426 | R136: Generation Price | S136: c/kWh | T136: =D17 -> Best Forced | U136: =R136 -> Generation Price | V136: =V125/V134/1000*100 -> 31.10632362 | W136: =W125/W134/1000*100 -> 35.5040933 | X136: 44.31810014 | Y136: 49.57837288 | Z136: 58.61474191 | AA136: 62.39207246 | AB136: 66.53907523 | AC136: 70.26085448 | AD136: 75.11557612 | AE136: =D18 -> Worst | AF136: Generation Price | AG136: c/kWh | AI136: =AF136 -> Generation Price | AJ136: =AJ125/AJ134/1000*100 -> 31.10632362 | AK136: =AK125/AK134/1000*100 -> 35.40635285 | AL136: 44.03901152 | AM136: 47.78414735 | AN136: 52.8017561 | AO136: 53.75795193 | AP136: 54.96488724 | AQ136: 55.74828979 | AR136: 57.3029212 | AS136: =D19 -> Worst Forced | AT136: Generation Price | AU136: c/kWh | AW136: =AT136 -> Generation Price | AX136: =AX125/AX134/1000*100 -> 31.10632362 | AY136: =AY125/AY134/1000*100 -> 35.40314059 | AZ136: 44.04685155 | BA136: 47.90929301 | BB136: 55.61619394 | BC136: 68.69750868 | BD136: 68.49825106 | BE136: 68.09640221 | BF136: 68.62153403
A140: Electricity out of transmissions | B140: \T | S140: \T | AG140: \T | AU140: \T
B141: =B129 -> CGERUN10 | S141: =S129 -> CGERUN11 | AG141: =AG129 -> CGERUN20 | AU141: =AU129 -> CGERUN21
B142: Flow:* | S142: Flow:* | AG142: Flow:* | AU142: Flow:*
E143: =E131 -> 2010 | F143: 2015 | G143: 2020 | H143: 2025 | I143: 2030 | J143: 2035 | K143: 2040 | L143: 2045 | M143: 2050 | V143: =V131 -> 2010 | W143: 2015 | X143: 2020 | Y143: 2025 | Z143: 2030 | AA143: 2035 | AB143: 2040 | AC143: 2045 | AD143: 2050 | AJ143: =AJ131 -> 2010 | AK143: 2015 | AL143: 2020 | AM143: 2025 | AN143: 2030 | AO143: 2035 | AP143: 2040 | AQ143: 2045 | AR143: 2050 | AX143: =AX131 -> 2010 | AY143: 2015 | AZ143: 2020 | BA143: 2025 | BB143: 2030 | BC143: 2035 | BD143: 2040 | BE143: 2045 | BF143: 2050
B144: ETRANS | E144: 927.3174934 | F144: 964.6427078 | G144: 1084.172195 | H144: 1226.8571 | I144: 1379.303101 | J144: 1599.561708 | K144: 1872.844097 | L144: 2193.069351 | M144: 2568.301605 | S144: ETRANS | V144: 927.3174934 | W144: 964.8597889 | X144: 1083.605095 | Y144: 1218.459007 | Z144: 1378.158997 | AA144: 1578.288212 | AB144: 1851.251385 | AC144: 2171.683113 | AD144: 2547.837795 | AG144: ETRANS | AJ144: 927.3174934 | AK144: 966.1472034 | AL144: 1067.988701 | AM144: 1163.317511 | AN144: 1228.981995 | AO144: 1339.605005 | AP144: 1455.904388 | AQ144: 1582.36581 | AR144: 1719.877306 | AU144: ETRANS | AX144: 927.3174934 | AY144: 966.2489071 | AZ144: 1066.677204 | BA144: 1152.257195 | BB144: 1199.492599 | BC144: 1284.522009 | BD144: 1386.863993 | BE144: 1497.415203 | BF144: 1616.83359
A147: Transmissions costs | B147: \T | S147: \T | AG147: \T | AU147: \T
B148: =B141 -> CGERUN10 | S148: =S141 -> CGERUN11 | AG148: =AG141 -> CGERUN20 | AU148: =AU141 -> CGERUN21
B149: COST_ACT,COST_FOM,COST_INV | S149: COST_ACT,COST_FOM,COST_INV | AG149: COST_ACT,COST_FOM,COST_INV | AU149: COST_ACT,COST_FOM,COST_INV
E150: =E143 -> 2010 | F150: =F143 -> 2015 | G150: 2020 | H150: 2025 | I150: 2030 | J150: 2035 | K150: 2040 | L150: 2045 | M150: 2050 | V150: =V143 -> 2010 | W150: =W143 -> 2015 | X150: 2020 | Y150: 2025 | Z150: 2030 | AA150: =AA143 -> 2035 | AB150: 2040 | AC150: 2045 | AD150: 2050 | AJ150: =AJ143 -> 2010 | AK150: =AK143 -> 2015 | AL150: 2020 | AM150: 2025 | AN150: 2030 | AO150: =AO143 -> 2035 | AP150: =AP143 -> 2040 | AQ150: 2045 | AR150: 2050 | AX150: =AX143 -> 2010 | AY150: =AY143 -> 2015 | AZ150: 2020 | BA150: 2025 | BB150: 2030 | BC150: =BC143 -> 2035 | BD150: =BD143 -> 2040 | BE150: 2045 | BF150: 2050
B151: ETRANS | E151: 0.02740000002 | F151: 0.02830000035 | G151: 0.03189999983 | H151: 0.03620000184 | I151: 0.04129999876 | J151: 0.04789999872 | K151: 0.0560999997 | L151: 0.06589999795 | M151: 0.07729999721 | S151: ETRANS | V151: 0.02740000002 | W151: 0.02830000035 | X151: 0.03189999983 | Y151: 0.03590000048 | Z151: 0.04069999978 | AA151: 0.04729999974 | AB151: 0.05550000072 | AC151: 0.065200001 | AD151: 0.07670000196 | AG151: ETRANS | AJ151: 0.02740000002 | AK151: 0.02830000035 | AL151: 0.03139999881 | AM151: 0.03429999948 | AN151: 0.03680000082 | AO151: 0.0401000008 | AP151: 0.04360000044 | AQ151: 0.04740000144 | AR151: 0.05160000175 | AU151: ETRANS | AX151: 0.02740000002 | AY151: 0.02830000035 | AZ151: 0.03139999881 | BA151: 0.03390000015 | BB151: 0.03590000048 | BC151: 0.03840000182 | BD151: 0.04149999842 | BE151: 0.0449000001 | BF151: 0.04850000143
D154: Electricity TWh | E154: =E144/3.6 -> 257.5881926 | F154: =F144/3.6 -> 267.9563077 | G154: 301.1589432 | H154: 340.7936388 | I154: 383.1397502 | J154: 444.3226968 | K154: 520.2344714 | L154: 609.1859309 | M154: 713.4171126 | U154: Electricity TWh | V154: =V144/3.6 -> 257.5881926 | W154: =W144/3.6 -> 268.016608 | X154: 301.0014153 | Y154: 338.4608354 | Z154: 382.8219435 | AA154: 438.4133922 | AB154: 514.2364958 | AC154: 603.2453092 | AD154: 707.7327209 | AI154: Electricity TWh | AJ154: =AJ144/3.6 -> 257.5881926 | AK154: =AK144/3.6 -> 268.3742232 | AL154: 296.663528 | AM154: 323.1437529 | AN154: 341.3838874 | AO154: 372.1125015 | AP154: 404.4178857 | AQ154: 439.5460584 | AR154: 477.7436961 | AW154: Electricity TWh | AX154: =AX144/3.6 -> 257.5881926 | AY154: =AY144/3.6 -> 268.4024742 | AZ154: 296.2992234 | BA154: 320.0714429 | BB154: 333.1923887 | BC154: 356.8116691 | BD154: 385.239998 | BE154: 415.9486675 | BF154: 449.1204415
D155: Total cost mR | E155: =E125+E151 -> 80126.2442 | F155: =F125+F151 -> 95153.961 | G155: 133506.4781 | H155: 164508.6949 | I155: 222620.0872 | J155: 274115.8127 | K155: 343978.8974 | L155: 425895.1282 | M155: 536686.1801 | U155: Total cost mR | V155: =V125+V151 -> 80126.2442 | W155: =W125+W151 -> 95156.89488 | X155: 133398.1405 | Y155: 167803.4109 | Z155: 224390.1349 | AA155: 273535.2486 | AB155: 342168.2643 | AC155: 423845.3741 | AD155: 531617.5874 | AI155: Total cost mR | AJ155: =AJ125+AJ151 -> 80126.2442 | AK155: =AK125+AK151 -> 95021.55271 | AL155: 130647.7167 | AM155: 154411.5214 | AN155: 180256.7244 | AO155: 200040.0998 | AP155: 222287.8785 | AQ155: 245039.4578 | AR155: 273761.1453 | AW155: Total cost mR | AX155: =AX125+AX151 -> 80126.2442 | AY155: =AY125+AY151 -> 95022.93357 | AZ155: 130510.5105 | BA155: 153343.9993 | BB155: 185308.961 | BC155: 245120.7658 | BD155: 263882.7025 | BE155: 283246.1225 | BF155: 308193.3851
A157: Generation price after transmissions | E157: =E155/E154/1000*100 -> 31.10633426 | F157: =F155/F154/1000*100 -> 35.51099872 | G157: 44.33090272 | H157: 48.27223168 | I157: 58.10414793 | J157: 61.69295755 | K157: 66.11997402 | L157: 69.91217404 | M157: 75.2275451 | V157: =V155/V154/1000*100 -> 31.10633426 | W157: =W155/W154/1000*100 -> 35.50410386 | X157: 44.31811074 | Y157: 49.57838349 | Z157: 58.61475255 | AA157: 62.39208325 | AB157: 66.53908602 | AC157: 70.26086529 | AD157: 75.11558696 | AJ157: =AJ155/AJ154/1000*100 -> 31.10633426 | AK157: =AK155/AK154/1000*100 -> 35.40636339 | AL157: 44.0390221 | AM157: 47.78415797 | AN157: 52.80176688 | AO157: 53.75796271 | AP157: 54.96489802 | AQ157: 55.74830057 | AR157: 57.302932 | AX157: =AX155/AX154/1000*100 -> 31.10633426 | AY157: =AY155/AY154/1000*100 -> 35.40315113 | AZ157: 44.04686215 | BA157: 47.9093036 | BB157: 55.61620471 | BC157: 68.69751944 | BD157: 68.49826184 | BE157: 68.096413 | BF157: 68.62154483
A160: DISTRIBUTION
A161: Cost of distribution
B162: \T | S162: \T | AG162: \T | AU162: \T
B163: =B148 -> CGERUN10 | S163: =S148 -> CGERUN11 | AG163: =AG148 -> CGERUN20 | AU163: =AU148 -> CGERUN21
B164: =B149 -> COST_ACT,COST_FOM,COST_INV | S164: =S149 -> COST_ACT,COST_FOM,COST_INV | AG164: =AG149 -> COST_ACT,COST_FOM,COST_INV | AU164: =AU149 -> COST_ACT,COST_FOM,COST_INV
E165: =E150 -> 2010 | F165: =F150 -> 2015 | G165: 2020 | H165: 2025 | I165: 2030 | J165: 2035 | K165: 2040 | L165: 2045 | M165: 2050 | V165: =V150 -> 2010 | W165: =W150 -> 2015 | X165: 2020 | Y165: 2025 | Z165: 2030 | AA165: 2035 | AB165: 2040 | AC165: 2045 | AD165: 2050 | AJ165: =AJ150 -> 2010 | AK165: =AK150 -> 2015 | AL165: 2020 | AM165: 2025 | AN165: 2030 | AO165: 2035 | AP165: 2040 | AQ165: 2045 | AR165: 2050 | AX165: =AX150 -> 2010 | AY165: =AY150 -> 2015 | AZ165: 2020 | BA165: 2025 | BB165: 2030 | BC165: 2035 | BD165: 2040 | BE165: 2045 | BF165: 2050
B166: XAGRELC | S166: XAGRELC | AG166: XAGRELC | AU166: XAGRELC
B167: XCOMELC | S167: XCOMELC | AG167: XCOMELC | AU167: XCOMELC
B168: XINDELC | S168: XINDELC | AG168: XINDELC | AU168: XINDELC
B169: XRESELC | S169: XRESELC | AG169: XRESELC | AU169: XRESELC
B170: XTRAELC | S170: XTRAELC | AG170: XTRAELC | AU170: XTRAELC
A172: Electricity produced from distribution
B173: =B162 -> \T | S173: =S162 -> \T | AG173: =AG162 -> \T | AU173: =AU162 -> \T
B174: =B163 -> CGERUN10 | S174: =S163 -> CGERUN11 | AG174: =AG163 -> CGERUN20 | AU174: =AU163 -> CGERUN21
B175: Flow:* | S175: Flow:* | AG175: Flow:* | AU175: Flow:*
E176: =E165 -> 2010 | F176: =F165 -> 2015 | G176: 2020 | H176: 2025 | I176: 2030 | J176: 2035 | K176: 2040 | L176: 2045 | M176: 2050 | V176: =V165 -> 2010 | W176: =W165 -> 2015 | X176: 2020 | Y176: 2025 | Z176: 2030 | AA176: 2035 | AB176: 2040 | AC176: 2045 | AD176: 2050 | AJ176: =AJ165 -> 2010 | AK176: =AK165 -> 2015 | AL176: 2020 | AM176: 2025 | AN176: 2030 | AO176: 2035 | AP176: 2040 | AQ176: 2045 | AR176: 2050 | AX176: =AX165 -> 2010 | AY176: =AY165 -> 2015 | AZ176: 2020 | BA176: 2025 | BB176: 2030 | BC176: 2035 | BD176: 2040 | BE176: 2045 | BF176: 2050
B177: XAGRELC | S177: XAGRELC | AG177: XAGRELC | AU177: XAGRELC
B178: XCOMELC | S178: XCOMELC | AG178: XCOMELC | AU178: XCOMELC
B179: XINDELC | S179: XINDELC | AG179: XINDELC | AU179: XINDELC
B180: XRESELC | S180: XRESELC | AG180: XRESELC | AU180: XRESELC
B181: XTRAELC | S181: XTRAELC | AG181: XTRAELC | AU181: XTRAELC
A183: Cost per unit for distribution only
B184: XAGRELC | E184: =E166/(E177/3.6)/1000*100 ->  | F184: =F166/(F177/3.6)/1000*100 ->  | I184: =I166/(I177/3.6)/1000*100 ->  | S184: XAGRELC | V184: =V166/(V177/3.6)/1000*100 ->  | W184: =W166/(W177/3.6)/1000*100 ->  | AG184: XAGRELC | AJ184: =AJ166/(AJ177/3.6)/1000*100 ->  | AK184: =AK166/(AK177/3.6)/1000*100 ->  | AU184: XAGRELC | AX184: =AX166/(AX177/3.6)/1000*100 ->  | AY184: =AY166/(AY177/3.6)/1000*100 -> 
B185: XCOMELC | E185: =E167/(E178/3.6)/1000*100 ->  | S185: XCOMELC | V185: =V167/(V178/3.6)/1000*100 ->  | AG185: XCOMELC | AJ185: =AJ167/(AJ178/3.6)/1000*100 ->  | AU185: XCOMELC | AX185: =AX167/(AX178/3.6)/1000*100 -> 
B186: XINDELC | S186: XINDELC | AG186: XINDELC | AU186: XINDELC
B187: XRESELC | S187: XRESELC | AG187: XRESELC | AU187: XRESELC
B188: XTRAELC | S188: XTRAELC | AG188: XTRAELC | AU188: XTRAELC
E190: =$D$16&" - "&A191 -> Best - Sector electricity prices | V190: =$F$17&" "&$A$191 -> Best Forced Sector electricity prices
A191: Sector electricity prices | B191: =RIGHT(LEFT(B184,4),3) -> AGR | D191: =B191 -> AGR | E191: =E184+E$157 ->  | F191: =F184+F$157 ->  | S191: =RIGHT(LEFT(S184,4),3) -> AGR | U191: =S191 -> AGR | V191: =V184+V$157 ->  | W191: =W184+W$157 ->  | AG191: =RIGHT(LEFT(AG184,4),3) -> AGR | AI191: =AG191 -> AGR | AJ191: =AJ184+AJ$157 ->  | AK191: =AK184+AK$157 ->  | AU191: =RIGHT(LEFT(AU184,4),3) -> AGR | AW191: =AU191 -> AGR | AX191: =AX184+AX$157 ->  | AY191: =AY184+AY$157 -> 
B192: =RIGHT(LEFT(B185,4),3) -> COM | D192: =B192 -> COM | E192: =E185+E$157 ->  | I192: =I185+I$157 ->  | S192: =RIGHT(LEFT(S185,4),3) -> COM | U192: =S192 -> COM | V192: =V185+V$157 ->  | AG192: =RIGHT(LEFT(AG185,4),3) -> COM | AI192: =AG192 -> COM | AJ192: =AJ185+AJ$157 ->  | AU192: =RIGHT(LEFT(AU185,4),3) -> COM | AW192: =AU192 -> COM | AX192: =AX185+AX$157 -> 
B193: IND | D193: IND | S193: IND | U193: IND | AG193: IND | AI193: IND | AU193: IND | AW193: IND
B194: RES | D194: RES | S194: RES | U194: RES | AG194: RES | AI194: RES | AU194: RES | AW194: RES
B195: TRA | D195: TRA | E195: =E188+E$157 ->  | S195: TRA | U195: TRA | V195: =V188+V$157 ->  | AG195: TRA | AI195: TRA | AJ195: =AJ188+AJ$157 ->  | AU195: TRA | AW195: TRA | AX195: =AX188+AX$157 -> 
B196: =RIGHT(B189,3) -> 
B198: \E
S199: \E | AG199: \E | AU199: \E

Sheet Demand
F7: 1000
E9: From IRP2010 update
F10: Green Shoots | G10: Traditional Sectors | H10: Weathering the Storm | I10: Adrift in troubled waters | J10: Moderate Growth | K10: SO IRP moderate | L10: SO IRP Low | M10: Best-Least.Cost | N10: Worst-Least.Cost
E11: 2010 | F11: 250.273 | G11: 250.273 | H11: 250.273 | I11: 250.276 | J11: 250.273 | K11: 252.943 | L11: 252.943 | M11: =INDEX(Power!$BF$62:$BN$65,1,MATCH(E11,Power!$BF$26:$BN$26,0)) -> 265.4248063 | N11: =INDEX(Power!$BF$62:$BN$65,3,MATCH(E11,Power!$BF$26:$BN$26,0)) -> 265.4248063
E12: 2011 | F12: 255.808 | G12: 255.888 | H12: 255.808 | I12: 255.378 | J12: 255.375 | K12: 255.493 | L12: 255.493 | M12: =INDEX(Power!$BF$62:$BN$65,1,MATCH(E12,Power!$BF$26:$BN$26,0)) ->  | N12: =INDEX(Power!$BF$62:$BN$65,3,MATCH(E12,Power!$BF$26:$BN$26,0)) -> 
E13: 2012 | F13: 251.98 | G13: 252.063 | H13: 251.98 | I13: 251.531 | J13: 251.533 | K13: 255.353 | L13: 254.562 | M13: =INDEX(Power!$BF$62:$BN$65,1,MATCH(E13,Power!$BF$26:$BN$26,0)) ->  | N13: =INDEX(Power!$BF$62:$BN$65,3,MATCH(E13,Power!$BF$26:$BN$26,0)) -> 
E14: 2013 | F14: 258.769 | G14: 259.646 | H14: 257.45 | I14: 257.629 | J14: 258.782 | K14: 265.457 | L14: 265.586 | M14: =INDEX(Power!$BF$62:$BN$65,1,MATCH(E14,Power!$BF$26:$BN$26,0)) ->  | N14: =INDEX(Power!$BF$62:$BN$65,3,MATCH(E14,Power!$BF$26:$BN$26,0)) -> 
E15: 2014 | F15: 265.465 | G15: 268.184 | H15: 263.094 | I15: 263.986 | J15: 266.141 | K15: 274.044 | L15: 271.761 | M15: =INDEX(Power!$BF$62:$BN$65,1,MATCH(E15,Power!$BF$26:$BN$26,0)) ->  | N15: =INDEX(Power!$BF$62:$BN$65,3,MATCH(E15,Power!$BF$26:$BN$26,0)) -> 
E16: 2015 | F16: 271.424 | G16: 276.788 | H16: 267.139 | I16: 268.226 | J16: 272.912 | K16: 285.526 | L16: 280.652 | M16: =INDEX(Power!$BF$62:$BN$65,1,MATCH(E16,Power!$BF$26:$BN$26,0)) -> 269.1526382 | N16: =INDEX(Power!$BF$62:$BN$65,3,MATCH(E16,Power!$BF$26:$BN$26,0)) -> 269.5435539
E17: 2016 | F17: 279.384 | G17: 287.717 | H17: 272.914 | I17: 273.478 | J17: 281.843 | K17: 298.332 | L17: 290.655 | M17: =INDEX(Power!$BF$62:$BN$65,1,MATCH(E17,Power!$BF$26:$BN$26,0)) ->  | N17: =INDEX(Power!$BF$62:$BN$65,3,MATCH(E17,Power!$BF$26:$BN$26,0)) -> 
E18: 2017 | F18: 287.479 | G18: 298.913 | H18: 278.506 | I18: 277.8 | J18: 290.546 | K18: 310.41 | L18: 299.726 | M18: =INDEX(Power!$BF$62:$BN$65,1,MATCH(E18,Power!$BF$26:$BN$26,0)) ->  | N18: =INDEX(Power!$BF$62:$BN$65,3,MATCH(E18,Power!$BF$26:$BN$26,0)) -> 
E19: 2018 | F19: 296.379 | G19: 311.315 | H19: 284.615 | I19: 282.162 | J19: 300.126 | K19: 319.523 | L19: 305.76 | M19: =INDEX(Power!$BF$62:$BN$65,1,MATCH(E19,Power!$BF$26:$BN$26,0)) ->  | N19: =INDEX(Power!$BF$62:$BN$65,3,MATCH(E19,Power!$BF$26:$BN$26,0)) -> 
E20: 2019 | F20: 305.418 | G20: 324.226 | H20: 290.616 | I20: 286.572 | J20: 309.964 | K20: 327.438 | L20: 310.512 | M20: =INDEX(Power!$BF$62:$BN$65,1,MATCH(E20,Power!$BF$26:$BN$26,0)) ->  | N20: =INDEX(Power!$BF$62:$BN$65,3,MATCH(E20,Power!$BF$26:$BN$26,0)) -> 
E21: 2020 | F21: 314.79 | G21: 337.515 | H21: 296.483 | I21: 290.937 | J21: 319.77 | K21: 336.178 | L21: 315.93 | M21: =INDEX(Power!$BF$62:$BN$65,1,MATCH(E21,Power!$BF$26:$BN$26,0)) -> 301.7553063 | N21: =INDEX(Power!$BF$62:$BN$65,3,MATCH(E21,Power!$BF$26:$BN$26,0)) -> 297.3696945
E22: 2021 | F22: 324.303 | G22: 350.686 | H22: 302.448 | I22: 295.693 | J22: 329.116 | K22: 340.946 | L22: 317.499 | M22: =INDEX(Power!$BF$62:$BN$65,1,MATCH(E22,Power!$BF$26:$BN$26,0)) ->  | N22: =INDEX(Power!$BF$62:$BN$65,3,MATCH(E22,Power!$BF$26:$BN$26,0)) -> 
E23: 2022 | F23: 333.929 | G23: 364.273 | H23: 308.428 | I23: 300.258 | J23: 338.887 | K23: 349.164 | L23: 322.214 | M23: =INDEX(Power!$BF$62:$BN$65,1,MATCH(E23,Power!$BF$26:$BN$26,0)) ->  | N23: =INDEX(Power!$BF$62:$BN$65,3,MATCH(E23,Power!$BF$26:$BN$26,0)) -> 
E24: 2023 | F24: 343.561 | G24: 378.4 | H24: 314.556 | I24: 304.24 | J24: 348.477 | K24: 358.299 | L24: 327.658 | M24: =INDEX(Power!$BF$62:$BN$65,1,MATCH(E24,Power!$BF$26:$BN$26,0)) ->  | N24: =INDEX(Power!$BF$62:$BN$65,3,MATCH(E24,Power!$BF$26:$BN$26,0)) -> 
E25: 2024 | F25: 353.651 | G25: 392.644 | H25: 320.808 | I25: 308.284 | J25: 357.76 | K25: 368.136 | L25: 333.612 | M25: =INDEX(Power!$BF$62:$BN$65,1,MATCH(E25,Power!$BF$26:$BN$26,0)) ->  | N25: =INDEX(Power!$BF$62:$BN$65,3,MATCH(E25,Power!$BF$26:$BN$26,0)) -> 
E26: 2025 | F26: 364.056 | G26: 407.635 | H26: 326.798 | I26: 312.243 | J26: 367.218 | K26: 377.496 | L26: 338.997 | M26: =INDEX(Power!$BF$62:$BN$65,1,MATCH(E26,Power!$BF$26:$BN$26,0)) -> 337.5786386 | N26: =INDEX(Power!$BF$62:$BN$65,3,MATCH(E26,Power!$BF$26:$BN$26,0)) -> 323.1432803
E27: 2026 | F27: 366.034 | G27: 414.262 | H27: 323.93 | I27: 307.333 | J27: 367.458 | K27: 379.871 | L27: 337.064 | M27: =INDEX(Power!$BF$62:$BN$65,1,MATCH(E27,Power!$BF$26:$BN$26,0)) ->  | N27: =INDEX(Power!$BF$62:$BN$65,3,MATCH(E27,Power!$BF$26:$BN$26,0)) -> 
E28: 2027 | F28: 376.611 | G28: 428.849 | H28: 329.588 | I28: 311.454 | J28: 376.473 | K28: 391 | L28: 343.747 | M28: =INDEX(Power!$BF$62:$BN$65,1,MATCH(E28,Power!$BF$26:$BN$26,0)) ->  | N28: =INDEX(Power!$BF$62:$BN$65,3,MATCH(E28,Power!$BF$26:$BN$26,0)) -> 
E29: 2028 | F29: 387.506 | G29: 444.017 | H29: 334.88 | I29: 315.637 | J29: 385.369 | K29: 402.296 | L29: 350.421 | M29: =INDEX(Power!$BF$62:$BN$65,1,MATCH(E29,Power!$BF$26:$BN$26,0)) ->  | N29: =INDEX(Power!$BF$62:$BN$65,3,MATCH(E29,Power!$BF$26:$BN$26,0)) -> 
E30: 2029 | F30: 398.408 | G30: 459.472 | H30: 340.317 | I30: 319.301 | J30: 393.688 | K30: 407.175 | L30: 351.357 | M30: =INDEX(Power!$BF$62:$BN$65,1,MATCH(E30,Power!$BF$26:$BN$26,0)) ->  | N30: =INDEX(Power!$BF$62:$BN$65,3,MATCH(E30,Power!$BF$26:$BN$26,0)) -> 
E31: 2030 | F31: 409.14 | G31: 474.99 | H31: 344.747 | I31: 322.925 | J31: 401.268 | K31: 416.41 | L31: 356.001 | M31: =INDEX(Power!$BF$62:$BN$65,1,MATCH(E31,Power!$BF$26:$BN$26,0)) -> 377.6819466 | N31: =INDEX(Power!$BF$62:$BN$65,3,MATCH(E31,Power!$BF$26:$BN$26,0)) -> 341.3832252
E32: 2031 | F32: 418.001 | G32: 488.58 | H32: 349.065 | I32: 326.194 | J32: 408.829 | K32: 427.572 | L32: 362.172 | M32: =INDEX(Power!$BF$62:$BN$65,1,MATCH(E32,Power!$BF$26:$BN$26,0)) ->  | N32: =INDEX(Power!$BF$62:$BN$65,3,MATCH(E32,Power!$BF$26:$BN$26,0)) -> 
E33: 2032 | F33: 425.856 | G33: 501.366 | H33: 353.445 | I33: 329.487 | J33: 416.533 | K33: 440.175 | L33: 369.418 | M33: =INDEX(Power!$BF$62:$BN$65,1,MATCH(E33,Power!$BF$26:$BN$26,0)) ->  | N33: =INDEX(Power!$BF$62:$BN$65,3,MATCH(E33,Power!$BF$26:$BN$26,0)) -> 
E34: 2033 | F34: 433.743 | G34: 514.192 | H34: 357.608 | I34: 332.799 | J34: 424.382 | K34: 450.03 | L34: 374.193 | M34: =INDEX(Power!$BF$62:$BN$65,1,MATCH(E34,Power!$BF$26:$BN$26,0)) ->  | N34: =INDEX(Power!$BF$62:$BN$65,3,MATCH(E34,Power!$BF$26:$BN$26,0)) -> 
E35: 2034 | F35: 440.862 | G35: 525.803 | H35: 361.794 | I35: 335.315 | J35: 432.004 | K35: 460.968 | L35: 379.747 | M35: =INDEX(Power!$BF$62:$BN$65,1,MATCH(E35,Power!$BF$26:$BN$26,0)) ->  | N35: =INDEX(Power!$BF$62:$BN$65,3,MATCH(E35,Power!$BF$26:$BN$26,0)) -> 
E36: 2035 | F36: 447.926 | G36: 537.651 | H36: 365.469 | I36: 337.654 | J36: 438.964 | K36: 473.203 | L36: 386.231 | M36: =INDEX(Power!$BF$62:$BN$65,1,MATCH(E36,Power!$BF$26:$BN$26,0)) -> 438.5371671 | N36: =INDEX(Power!$BF$62:$BN$65,3,MATCH(E36,Power!$BF$26:$BN$26,0)) -> 372.1119441
E37: 2036 | F37: 454.617 | G37: 548.464 | H37: 369.17 | I37: 339.857 | J37: 445.466 | K37: 486.094 | L37: 393.097 | M37: =INDEX(Power!$BF$62:$BN$65,1,MATCH(E37,Power!$BF$26:$BN$26,0)) ->  | N37: =INDEX(Power!$BF$62:$BN$65,3,MATCH(E37,Power!$BF$26:$BN$26,0)) -> 
E38: 2037 | F38: 461.389 | G38: 559.482 | H38: 372.897 | I38: 342.08 | J38: 452.047 | K38: 496.368 | L38: 397.687 | M38: =INDEX(Power!$BF$62:$BN$65,1,MATCH(E38,Power!$BF$26:$BN$26,0)) ->  | N38: =INDEX(Power!$BF$62:$BN$65,3,MATCH(E38,Power!$BF$26:$BN$26,0)) -> 
E39: 2038 | F39: 468.272 | G39: 570.033 | H39: 376.648 | I39: 343.896 | J39: 458.295 | K39: 507.587 | L39: 402.913 | M39: =INDEX(Power!$BF$62:$BN$65,1,MATCH(E39,Power!$BF$26:$BN$26,0)) ->  | N39: =INDEX(Power!$BF$62:$BN$65,3,MATCH(E39,Power!$BF$26:$BN$26,0)) -> 
E40: 2039 | F40: 473.96 | G40: 579.152 | H40: 380.425 | I40: 345.349 | J40: 464.107 | K40: 519.276 | L40: 408.379 | M40: =INDEX(Power!$BF$62:$BN$65,1,MATCH(E40,Power!$BF$26:$BN$26,0)) ->  | N40: =INDEX(Power!$BF$62:$BN$65,3,MATCH(E40,Power!$BF$26:$BN$26,0)) -> 
E41: 2040 | F41: 479.589 | G41: 588.417 | H41: 384.245 | I41: 346.075 | J41: 467.963 | K41: 530.777 | L41: 413.561 | M41: =INDEX(Power!$BF$62:$BN$65,1,MATCH(E41,Power!$BF$26:$BN$26,0)) -> 514.001694 | N41: =INDEX(Power!$BF$62:$BN$65,3,MATCH(E41,Power!$BF$26:$BN$26,0)) -> 404.4202209
E42: 2041 | F42: 485.295 | G42: 597.834 | H42: 388.089 | I42: 346.834 | J42: 471.655 | K42: 540.39 | L42: 417.14 | M42: =INDEX(Power!$BF$62:$BN$65,1,MATCH(E42,Power!$BF$26:$BN$26,0)) ->  | N42: =INDEX(Power!$BF$62:$BN$65,3,MATCH(E42,Power!$BF$26:$BN$26,0)) -> 
E43: 2042 | F43: 490.494 | G43: 606.814 | H43: 391.311 | I43: 347.568 | J43: 475.331 | K43: 548.838 | L43: 419.717 | M43: =INDEX(Power!$BF$62:$BN$65,1,MATCH(E43,Power!$BF$26:$BN$26,0)) ->  | N43: =INDEX(Power!$BF$62:$BN$65,3,MATCH(E43,Power!$BF$26:$BN$26,0)) -> 
E44: 2043 | F44: 495.717 | G44: 615.894 | H44: 394.537 | I44: 348.26 | J44: 478.991 | K44: 558.173 | L44: 422.887 | M44: =INDEX(Power!$BF$62:$BN$65,1,MATCH(E44,Power!$BF$26:$BN$26,0)) ->  | N44: =INDEX(Power!$BF$62:$BN$65,3,MATCH(E44,Power!$BF$26:$BN$26,0)) -> 
E45: 2044 | F45: 500.996 | G45: 624.127 | H45: 397.766 | I45: 348.471 | J45: 482.228 | K45: 567.797 | L45: 426.181 | M45: =INDEX(Power!$BF$62:$BN$65,1,MATCH(E45,Power!$BF$26:$BN$26,0)) ->  | N45: =INDEX(Power!$BF$62:$BN$65,3,MATCH(E45,Power!$BF$26:$BN$26,0)) -> 
E46: 2045 | F46: 505.388 | G46: 631.505 | H46: 400.996 | I46: 348.583 | J46: 485.673 | K46: 576.921 | L46: 428.999 | M46: =INDEX(Power!$BF$62:$BN$65,1,MATCH(E46,Power!$BF$26:$BN$26,0)) -> 602.5241654 | N46: =INDEX(Power!$BF$62:$BN$65,3,MATCH(E46,Power!$BF$26:$BN$26,0)) -> 439.5518051
E47: 2046 | F47: 509.754 | G47: 638.907 | H47: 403.666 | I47: 348.644 | J47: 489.105 | K47: 585.727 | L47: 431.492 | M47: =INDEX(Power!$BF$62:$BN$65,1,MATCH(E47,Power!$BF$26:$BN$26,0)) ->  | N47: =INDEX(Power!$BF$62:$BN$65,3,MATCH(E47,Power!$BF$26:$BN$26,0)) -> 
E48: 2047 | F48: 514.138 | G48: 646.378 | H48: 406.269 | I48: 348.662 | J48: 492.524 | K48: 594.834 | L48: 434.122 | M48: =INDEX(Power!$BF$62:$BN$65,1,MATCH(E48,Power!$BF$26:$BN$26,0)) ->  | N48: =INDEX(Power!$BF$62:$BN$65,3,MATCH(E48,Power!$BF$26:$BN$26,0)) -> 
E49: 2048 | F49: 516.88 | G49: 652.279 | H49: 408.847 | I49: 348.324 | J49: 495.928 | K49: 604.407 | L49: 437.005 | M49: =INDEX(Power!$BF$62:$BN$65,1,MATCH(E49,Power!$BF$26:$BN$26,0)) ->  | N49: =INDEX(Power!$BF$62:$BN$65,3,MATCH(E49,Power!$BF$26:$BN$26,0)) -> 
E50: 2049 | F50: 519.511 | G50: 658.121 | H50: 411.397 | I50: 347.892 | J50: 499.315 | K50: 613.432 | L50: 439.399 | M50: =INDEX(Power!$BF$62:$BN$65,1,MATCH(E50,Power!$BF$26:$BN$26,0)) ->  | N50: =INDEX(Power!$BF$62:$BN$65,3,MATCH(E50,Power!$BF$26:$BN$26,0)) -> 
E51: 2050 | F51: 522.104 | G51: 663.978 | H51: 413.919 | I51: 347.395 | J51: 502.684 | K51: 622.118 | L51: 441.469 | M51: =INDEX(Power!$BF$62:$BN$65,1,MATCH(E51,Power!$BF$26:$BN$26,0)) -> 706.3633033 | N51: =INDEX(Power!$BF$62:$BN$65,3,MATCH(E51,Power!$BF$26:$BN$26,0)) -> 477.7533592
